Workbook

Sheet Cover
BS1: =COUNTA(BS3:BS50) -> 6 | BT1: =COUNTA(BT3:BT50) -> 9 | BU1: 7 | BV1: 8 | BW1: 5 | BX1: 6 | BY1: 6 | BZ1: 3 | CA1: 5 | CB1: 5 | CC1: 8 | CD1: 8 | CE1: =COUNTA(CE3:CE50) -> 8 | CF1: =COUNTA(CF3:CF50) -> 4 | CH1: =16-COUNTBLANK(CI3:CI22) -> 3 | CQ1: Once-off adjustments to base | DG1: Personnel | EZ1: Inflator | FA1: 0.056
AA2: 749 | AY2: SIP Category | AZ2: Econ Class for ODA | BA2: Year | BB2: CurCap | BC2: EconClass | BD2: Outcomes - fixed | BE2: InfraList1 | BF2: InfraList2 | BG2: InfraList3 | BH2: InfraList4 | BI2: ODAList1 | BJ2: ListedProgs | BL2: =MAX(BL3:BL18) -> 7 | BM2: ProgList | BO2: InfraS dropdown list | BQ2: DoR Cat | BS2: Outputs-1 | BT2: Outputs-2 | BU2: Outputs-3 | BV2: Outputs-4 | BW2: Outputs-5 | BX2: Outputs-6 | BY2: Outputs-7 | BZ2: Outputs-8 | CA2: Outputs-9 | CB2: Outputs-10 | CC2: Outputs-11 | CD2: Outputs-12 | CE2: Outputs-13 | CF2: Outputs-14 | CI2: Array Range to lock | CQ2: Department | CR2: Programme | CS2: Subprogramme | CT2: Econ1 | CU2: Econ5 | CV2: Empty1 | CW2: 2019/20 amount above 5.6% growth | CX2: Empty2 | CY2: Trans_Indi | CZ2: Sprog_Indi | DA2: Econc_Indi | DG2: Department | DH2: Programme | DI2: Salary Level | DJ2: 2015/16 - Number of posts on approved establishment as at 30 June 2015 | DK2: 2015/16 - Number of posts on funded establishment as at 30 June 2015 | DL2: 2015/16 - Number of posts additional to the establishment as at 30 June 2015 | DM2: 2014/15 - Number of posts filled | DN2: 2014/15 - Expenditure on posts filled | DO2: 2015/16 - Number of all posts to be filled | DP2: 2015/16 - Expenditure on all posts to be filled | DQ2: 2016/17 - Number of all posts to be filled | DR2: 2016/17 - Expenditure on all posts to be filled | DS2: 2017/18 - Number of all posts to be filled | DT2: 2017/18 - Expenditure on all posts to be filled | DU2: 2018/19 - Number of all posts to be filled | DV2: 2018/19 - Expenditure on all posts to be filled | DW2: Combo_DeptProg | DX2: DeptCode | DY2: ProgCode | DZ2: DeptProg_Combo_Code | ED2: Budgets - ENE 2016
AY3: Not related to SIPs | AZ3: Compensation of employees | BA3: 2013/14 | BB3: Current | BC3: Provincial Revenue Funds | BD3: OUTCOME 1: QUALITY BASIC EDUCATION | BE3: Programme | BF3: New infrastructure assets | BG3: Identification | BH3: Mega | BI3: Long term technical assistance | BJ3: =IF(Summary!F31=0,Direct_charges!$G$8,Summary!F31) -> Administration | BK3: 1 | BL3: =IF(BM3<>"",BK3,0) -> 1 | BM3: =IF(BK3>PListed,"",Cover!BJ3) -> Administration | BN3: 1 | BO3: =IF(ISERROR(INDEX(($BM$3:$BM$18),MATCH(BN3,$BL$3:$BL$18,0))),"",INDEX(($BM$3:$BM$18),MATCH(BN3,$BL$3:$BL$18,0))) -> Administration | BQ3: National | BS3: Improved quality of teaching and learning through development, supply and effective utilisation of teachers | BT3: Average male and female life expectancy at birth increased to 70 years | BU3: Reduced levels of contact crime | BV3: Productive investment is effectively crowded in through the infrastructure build programme | BW3: Establish a credible institutional mechanism for skills planning | BX3: Regulation, funding and investment improved | BY3: Improved land administration and spatial planning for integrated development in rural areas | BZ3: Adequate housing and improved quality living environments | CA3: Members of society have sustainable and reliable access to basic services. | CB3: Ecosystems are sustained and natural resources are used efficiently | CC3: SA’s national priorities advanced in bilateral engagements | CD3: A stable political-administrative interface | CE3: Current social welfare system reformed to deliver better results for vulnerable groups | CF3: Fostering Constitutional values | CH3: 1 | CI3: V177:W246,V248:W261 | CQ3: National Treasury | CR3: Direct charge against the National Revenue Fund | CS3: Provincial Equitable Share | CV3: 0 | CW3: 7093944.216 | CX3: 0 | CY3: =+CQ3&CR3&CS3&CT3&CU3 -> National TreasuryDirect charge against the National Revenue FundProvincial Equitable Share | CZ3: =+CQ3&CR3&CS3 -> National TreasuryDirect charge against the National Revenue FundProvincial Equitable Share | DA3: =+CQ3&CR3&CS3&CU3 -> National TreasuryDirect charge against the National Revenue FundProvincial Equitable Share | DG3: The Presidency | DH3: Administration | DI3: 1 | DJ3: 0 | DK3: 40 | DL3: 40 | DM3: 32 | DN3: 2302 | DO3: 40 | DP3: 2335 | DQ3: 40 | DR3: 2396 | DS3: 40 | DT3: 2559 | DU3: 40 | DV3: 2707 | DW3: =Cover!$DG3&"|"&Cover!$DH3 -> The Presidency|Administration | DX3: =INDEX(($FC$4:$FC$4936),MATCH(Cover!$DG3,$EF$4:$EF$4936,0)) -> 001 | DY3: =INDEX(($FD$4:$FD$4936),MATCH(Cover!$DH3,$EH$4:$EH$4936,0)) -> 001 | DZ3: =Cover!$DX3&Cover!$DY3 -> 001001 | ED3: Lookup_Lvl_No | EE3: Vote No. | EF3: Department | EG3: Programme No. | EH3: Programme | EI3: Subprogramme No. | EJ3: Subprogramme | EK3: Econ2 | EL3: Econ3 | EM3: Econ4 | EN3: 2013_14 | EO3: 2014_15 | EP3: 2015_16_MA | EQ3: 2015_16_AA | ER3: 2015_16_RE | ES3: 2016_17 | ET3: 2017_18 | EU3: 2018_19 | EV3: 2015_16_Pre-Audited | EW3: 2017_18 NR | EX3: 2018_19 NR | EY3: 2017_18 IB | EZ3: 2018_19 IB | FA3: 2019_20 IB | FB3: Combo_DeptProg | FC3: DeptCode | FD3: ProgCode | FE3: SProgCode | FF3: ItemCode | FG3: DeptProg_Combo_Code | FH3: DeptEcon_Combo_Code | FI3: Econ3/4 ID | FJ3: DPSP_Econ_Combo | FK3: Econ_Id | FL3: DeptProgEcon_Combo_Code | FS3: Lookup_Lvl_No | FT3: Vote No. | FU3: Department | FV3: Programme No. | FW3: Programme | FX3: Subprogramme No. | FY3: Subprogramme | FZ3: Econ2 | GA3: Econ3 | GB3: Econ4
AY4: SIP 1: Unlocking the northern mineral belt with Waterberg as Catalyst | AZ4: Goods and services | BA4: 2014/15 | BB4: Capital | BC4: Provincial agencies and funds | BD4: OUTCOME 2: A LONG AND HEALTHY LIFE FOR ALL SOUTH AFRICANS | BE4: Project | BF4: Upgrading and additions | BG4: Pre-feasibility | BH4: Large | BI4: Short term technical assistance | BJ4: =IF(OR(BJ3="Direct_charges",BJ3=""),"",IF(Summary!F32=0,"Direct_charges",Summary!F32)) -> Regional and Urban Development and Legislative Support | BK4: 2 | BL4: =IF(BM4<>"",MAX(BL$3:BL3)+1,0) -> 2 | BM4: =IF(BK4>PListed,"",Cover!BJ4) -> Regional and Urban Development and Legislative Support | BN4: 2 | BO4: =IF(ISERROR(INDEX(($BM$3:$BM$18),MATCH(BN4,$BL$3:$BL$18,0))),"",INDEX(($BM$3:$BM$18),MATCH(BN4,$BL$3:$BL$18,0))) -> Regional and Urban Development and Legislative Support | BQ4: Provincial equitable share | BR4: =PM!F123 -> Provincial Revenue Funds | BS4: Improve the quality of teaching and learning through provision of Infrastructure and learning materials | BT4: Tuberculosis (TB) prevention and cure progressively improved | BU4: An efficient and effective criminal Justice system | BV4: The productive sectors account for a growing share of production and employment, exports are diversified, African regional development is accelerated, the carbon intensity of growth is reduced, knowledge and technology support increasingly inclusive and dynamic growth, and the organs of the state improve their alignment in support of employment-creating growth | BW4: Increase access to programmes leading to intermediate and high level learning | BX4: Reliable generation, transmission and distribution of energy ensured | BY4: Sustainable Land Reform (agrarian transformation) | BZ4: A functionally equitable residential property market | CA4: Intergovernmental and democratic governance arrangements for a functional system of cooperative governance strengthened. | CB4: An effective climate change mitigation and adaptation response | CC4: An economically integrated Southern Africa | CD4: A public service that is a career of choice | CE4: Improved monitoring, evaluation, accountability and quality assurance | CF4: Equal opportunities, inclusion and redress | CH4: 2 | CI4: AE177:AF246,AE248:AF261 | CQ4: Cooperative Governance And Traditional Affairs | CR4: Institutional Development | CS4: Local Government Equitable Share | CT4: Current | CU4: Municipal bank accounts | CV4: 0 | CW4: 1234636.68 | CX4: 0 | CY4: =+CQ4&CR4&CS4&CT4&CU4 -> Cooperative Governance And Traditional AffairsInstitutional DevelopmentLocal Government Equitable Share CurrentMunicipal bank accounts | CZ4: =+CQ4&CR4&CS4 -> Cooperative Governance And Traditional AffairsInstitutional DevelopmentLocal Government Equitable Share | DA4: =+CQ4&CR4&CS4&CU4 -> Cooperative Governance And Traditional AffairsInstitutional DevelopmentLocal Government Equitable Share Municipal bank accounts | DG4: The Presidency | DH4: Administration | DI4: 2 | DJ4: 51 | DK4: 51 | DL4: 0 | DM4: 49 | DN4: 6488 | DO4: 45 | DP4: 7235 | DQ4: 45 | DR4: 7758 | DS4: 45 | DT4: 8148 | DU4: 50 | DV4: 9496 | DW4: The Presidency|Administration | DX4: 001 | DY4: 001 | DZ4: 001001 | EC4: 111 | ED4: 1 | EE4: 1 | EF4: The Presidency | EG4: 1 | EH4: Administration | EI4: 1 | EJ4: Management | EK4: Current payments | EL4: Compensation of employees | EM4: Compensation of employees | EN4: 167267 | EO4: 182609 | EP4: 202851 | EQ4: 201038 | ER4: 195038 | ES4: 223625 | ET4: 222704 | EU4: 227651 | EV4: 0 | EW4: 0 | EX4: 0 | EY4: =+ET4+EW4 -> 222704 | EZ4: =+EU4+EX4 -> 227651 | FA4: 244952.4752 | FB4: =+EF4&"|"&EH4 -> The Presidency|Administration | FC4: =REPT("0",3-LEN(EE4))&EE4 -> 001 | FD4: =REPT("0",3-LEN(EG4))&EG4 -> 001 | FE4: =REPT("0",3-LEN(EI4))&EI4 -> 001 | FF4: =REPT("0",3-LEN(ED4))&ED4 -> 001 | FG4: =+FC4&FD4 -> 001001 | FH4: =+FC4&FF4 -> 001001 | FI4: =+FF4*1 -> 1 | FJ4: =FG4&FE4&REPT("0",3-LEN(FI4))&FI4 -> 001001001001 | FL4: =LEFT(FJ4,6)&FF4 -> 001001001 | FS4: 1 | FT4: 1 | FU4: The Presidency | FV4: 1 | FW4: Administration | FX4: 1 | FY4: Management | FZ4: Current payments | GA4: Compensation of employees | GB4: Compensation of employees
AY5: SIP 2: Durban-Free State Gauteng Logistics and Industrial Corridor | AZ5: Provinces and municipalities | BA5: 2015/16 | BC5: Municipal bank accounts | BD5: OUTCOME 3: ALL PEOPLE IN SOUTH AFRICA ARE AND FEEL SAFE | BF5: Rehabilitation and refurbishment | BG5: Feasibility | BH5: Small | BI5: Conferences / workshops | BJ5: =IF(OR(BJ4="Direct_charges",BJ4=""),"",IF(Summary!F33=0,"Direct_charges",Summary!F33)) -> Institutional Development | BK5: 3 | BL5: =IF(BM5<>"",MAX(BL$3:BL4)+1,0) -> 3 | BM5: =IF(BK5>PListed,"",Cover!BJ5) -> Institutional Development | BN5: 3 | BO5: =IF(ISERROR(INDEX(($BM$3:$BM$18),MATCH(BN5,$BL$3:$BL$18,0))),"",INDEX(($BM$3:$BM$18),MATCH(BN5,$BL$3:$BL$18,0))) -> Institutional Development | BQ5: Provincial conditional grants (Direct) | BR5: =PM!F123 -> Provincial Revenue Funds | BS5: Regular annual national assessments to track improvements in the quality of teaching and learning (ANA) | BT5: Maternal, Infant and Child Mortality reduced | BU5: South Africa’s borders effectively defended, protected, secured and well-managed | BV5: The elimination of unnecessary regulatory burdens and lower price increases for key inputs and wage goods fosters investment and economic growth | BW5: Increase access to occupationally-directed programmes in needed areas and thereby expand the availability of intermediate level skills (with special focus on artisan skills) | BX5: Maintenance, strategic expansion, operational efficiency, capacity and competitiveness of our logistics and transport infrastructure ensured | BY5: Improved food security | BZ5: Enhanced institutional capabilities for effective coordination of spatial investment decisions | CA5: Sound financial and administrative management. | CB5: An environmentally sustainable, low-carbon economy resulting from a well-managed just transition | CC5: Political cohesion within Southern Africa to ensure a peaceful, secure and stable Southern African region | CD5: Sufficient technical and specialist professional skills | CE5: Development of more sustainable model of funding social development | CF5: Using sport and recreation to promote social cohesion | CH5: 3 | CI5: AN177:AO246,AN248:AO261 | CQ5: Cooperative Governance And Traditional Affairs | CR5: Local Government Support and Intervention Management | CS5: Municipal Infrastructure Support Agency | CT5: Current | CU5: Departmental agencies and accounts | CV5: 0 | CW5: -55862.4 | CX5: 0 | CY5: Cooperative Governance And Traditional AffairsLocal Government Support and Intervention ManagementMunicipal Infrastructure Support AgencyCurrentDepartmental agencies and accounts | CZ5: Cooperative Governance And Traditional AffairsLocal Government Support and Intervention ManagementMunicipal Infrastructure Support Agency | DA5: Cooperative Governance And Traditional AffairsLocal Government Support and Intervention ManagementMunicipal Infrastructure Support AgencyDepartmental agencies and accounts | DG5: The Presidency | DH5: Administration | DI5: 3 | DJ5: 9 | DK5: 9 | DL5: 0 | DM5: 14 | DN5: 1845 | DO5: 9 | DP5: 1607 | DQ5: 9 | DR5: 1705 | DS5: 9 | DT5: 1798 | DU5: 9 | DV5: 1901 | DW5: The Presidency|Administration | DX5: 001 | DY5: 001 | DZ5: 001001 | EC5: 111 | ED5: 2 | EE5: 1 | EF5: The Presidency | EG5: 1 | EH5: Administration | EI5: 1 | EJ5: Management | EK5: Current payments | EL5: Goods and services | EM5: Goods and services | EN5: 102299 | EO5: 100461 | EP5: 112217 | EQ5: 110048 | ER5: 96048 | ES5: 100461 | ET5: 102843 | EU5: 107299 | EV5: 0 | EW5: 0 | EX5: 0 | EY5: 102843 | EZ5: 107299 | FA5: 113307.744 | FB5: =+EF5&"|"&EH5 -> The Presidency|Administration | FC5: =REPT("0",3-LEN(EE5))&EE5 -> 001 | FD5: =REPT("0",3-LEN(EG5))&EG5 -> 001 | FE5: =REPT("0",3-LEN(EI5))&EI5 -> 001 | FF5: =REPT("0",3-LEN(ED5))&ED5 -> 002 | FG5: =+FC5&FD5 -> 001001 | FH5: =+FC5&FF5 -> 001002 | FI5: =+FF5*1 -> 2 | FJ5: =FG5&FE5&REPT("0",3-LEN(FI5))&FI5 -> 001001001002 | FL5: =LEFT(FJ5,6)&FF5 -> 001001002 | FS5: 2 | FT5: 1 | FU5: The Presidency | FV5: 1 | FW5: Administration | FX5: 2 | FY5: Support Service to President | FZ5: Transfers and subsidies | GA5: Goods and services | GB5: Goods and services
AY6: Sip 3: South eastern note and corridor development | AZ6: Departmental agencies and accounts | BA6: 2016/17 | BC6: Municipal agencies and funds | BD6: OUTCOME 4: DECENT EMPLOYMENT THROUGH INCLUSIVE ECONOMIC GROWTH | BF6: Maintenance and repair | BG6: Design | BI6: Study tours | BJ6: =IF(OR(BJ5="Direct_charges",BJ5=""),"",IF(Summary!F34=0,"Direct_charges",Summary!F34)) -> National Disaster Management Centre | BK6: 4 | BL6: =IF(BM6<>"",MAX(BL$3:BL5)+1,0) -> 4 | BM6: =IF(BK6>PListed,"",Cover!BJ6) -> National Disaster Management Centre | BN6: 4 | BO6: National Disaster Management Centre | BQ6: Local government equitable share | BR6: =PM!F126 -> Municipal bank accounts | BS6: Improved Grade R and planning for extension of ECD | BT6: Prevalence of Non-Communicable Diseases reduced by 28% | BU6: Secure cyber space | BV6: Workers’ education and skills increasingly meet economic needs | BW6: Increase access to high-level occupationally directed programmes in needed areas | BX6: Maintenance and supply availability of our bulk water resources infrastructure ensured | BY6: Smallholder producers' development and support (technical, financial, infrastructure) for agrarian transformation | CA6: Promotion of social and economic development. | CB6: Enhanced governance systems and capacity | CC6: A Peaceful, secure and stable Africa | CD6: Efficient and effective management and operations systems | CE6: Increased human resource capacity in the social development sector | CF6: Promoting active citizenry and leadership | CH6: 4 | CI6: V269:W281,AE269:AF281,AN269:AO281 | CQ6: Social Development | CR6: Social Assistance | CS6: Old Age | CT6: Current | CU6: Social benefits | CV6: 0 | CW6: 947054.0451 | CX6: 0 | CY6: Social DevelopmentSocial AssistanceOld AgeCurrentSocial benefits | CZ6: Social DevelopmentSocial AssistanceOld Age | DA6: Social DevelopmentSocial AssistanceOld AgeSocial benefits | DG6: The Presidency | DH6: Administration | DI6: 4 | DJ6: 84 | DK6: 90 | DL6: 6 | DM6: 85 | DN6: 18683 | DO6: 88 | DP6: 18324 | DQ6: 88 | DR6: 19443 | DS6: 88 | DT6: 20503 | DU6: 90 | DV6: 22148 | DW6: The Presidency|Administration | DX6: 001 | DY6: 001 | DZ6: 001001 | EC6: 111 | ED6: 3 | EE6: 1 | EF6: The Presidency | EG6: 1 | EH6: Administration | EI6: 1 | EJ6: Management | EK6: Current payments | EL6: Interest and rent on land | EM6: Interest and rent on land | EN6: 4 | EO6: 10 | EP6: 0 | EQ6: 0 | ER6: 0 | ES6: 0 | ET6: 0 | EU6: 0 | EV6: 0 | EW6: 0 | EX6: 0 | EY6: 0 | EZ6: 0 | FA6: 0 | FB6: The Presidency|Administration | FC6: 001 | FD6: 001 | FE6: 001 | FF6: 003 | FG6: 001001 | FH6: 001003 | FI6: 3 | FJ6: 001001001003 | FL6: 001001003 | FS6: 3 | FT6: 1 | FU6: The Presidency | FV6: 1 | FW6: Administration | FX6: 3 | FY6: Support Service to Deputy President | FZ6: Payments for capital assets | GA6: Interest and rent on land | GB6: Interest and rent on land
AY7: SIP 4: Unlocking the economic opportunities in the Both West Province | AZ7: Higher education institutions | BA7: 2017/18 | BC7: Social security funds | BD7: OUTCOME 5: A SKILLED AND CAPABLE WORKFORCE TO SUPPORT AN INCLUSIVE GROWTH PATH | BG7: Tender | BI7: Training | BJ7: =IF(OR(BJ6="Direct_charges",BJ6=""),"",IF(Summary!F35=0,"Direct_charges",Summary!F35)) -> Local Government Support and Intervention Management | BK7: 5 | BL7: =IF(BM7<>"",MAX(BL$3:BL6)+1,0) -> 5 | BM7: =IF(BK7>PListed,"",Cover!BJ7) -> Local Government Support and Intervention Management | BN7: 5 | BO7: Local Government Support and Intervention Management | BQ7: Local government conditional grants (Direct) | BR7: =PM!F126 -> Municipal bank accounts | BS7: A credible, outcomes-focused planning and accountability system (building the capacity of the state to intervene and support quality education) | BT7: Injury, accidents and violence reduced by 50% from 2010 levels | BU7: Ensure Domestic Stability | BV7: Macroeconomic conditions support employment-creating growth | BW7: Strengthen the governance, management and student support in post school education and training institutions | BX7: Expansion, modernisation, access and affordability of our Information and communications infrastructure ensured | BY7: Increased access to quality infrastructure and services, particularly in education, healthcare and public transport in rural areas | CA7: Local public employment programmes expanded through the Community Work Programme. | CB7: Sustainable human communities | CC7: A sustainable developed and economically integrated Africa | CD7: Procurement systems that deliver value for money | CE7: Deepening social assistance and expanding access to social security | CH7: 5 | CI7: V326:W335,V340:W341,V343:W380,V382:W383,V410:W411,V413:W419 | CQ7: Social Development | CR7: Social Assistance | CS7: War Veterans | CT7: Current | CU7: Social benefits | CV7: 0 | CW7: 21.96739168 | CX7: 0 | CY7: Social DevelopmentSocial AssistanceWar VeteransCurrentSocial benefits | CZ7: Social DevelopmentSocial AssistanceWar Veterans | DA7: Social DevelopmentSocial AssistanceWar VeteransSocial benefits | DG7: The Presidency | DH7: Administration | DI7: 5 | DJ7: 20 | DK7: 20 | DL7: 0 | DM7: 17 | DN7: 3320 | DO7: 19 | DP7: 4359 | DQ7: 19 | DR7: 4625 | DS7: 19 | DT7: 4878 | DU7: 20 | DV7: 5417 | DW7: The Presidency|Administration | DX7: 001 | DY7: 001 | DZ7: 001001 | EC7: 111 | ED7: 44 | EE7: 1 | EF7: The Presidency | EG7: 1 | EH7: Administration | EI7: 1 | EJ7: Management | EK7: Transfers and subsidies | EL7: Provinces and municipalities | EM7: Municipalities | EN7: 9 | EO7: 9 | EP7: 0 | EQ7: 2 | ER7: 2 | ES7: 0 | ET7: 0 | EU7: 0 | EV7: 0 | EW7: 0 | EX7: 0 | EY7: 0 | EZ7: 0 | FA7: 0 | FB7: The Presidency|Administration | FC7: 001 | FD7: 001 | FE7: 001 | FF7: 044 | FG7: 001001 | FH7: 001044 | FI7: 44 | FJ7: 001001001044 | FL7: 001001044 | FS7: 44 | FT7: 1 | FU7: The Presidency | FV7: 1 | FW7: Administration | FX7: 4 | FY7: Ministry | FZ7: Payments for financial assets | GA7: Provinces and municipalities | GB7: Municipalities
AY8: SIP 5: Saldanha-Northern Cape Development Corridor | AZ8: Foreign governments and international organisations | BA8: 2018/19 | BC8: Departmental agencies (non-business entities) | BD8: OUTCOME 6: AN EFFICIENT, COMPETITIVE AND RESPONSIVE ECONOMIC INFRASTRUCTURE NETWORK | BE8: InfraList5 | BG8: Construction | BI8: Equipment | BJ8: =IF(OR(BJ7="Direct_charges",BJ7=""),"",IF(Summary!F36=0,"Direct_charges",Summary!F36)) -> Community Work Programme | BK8: 6 | BL8: =IF(BM8<>"",MAX(BL$3:BL7)+1,0) -> 6 | BM8: =IF(BK8>PListed,"",Cover!BJ8) -> Community Work Programme | BN8: 6 | BO8: Community Work Programme | BQ8: General Fuel Levy sharing with Metropolitan Municipalities | BR8: =PM!F126 -> Municipal bank accounts | BS8: Partnerships for a Strong Education System | BT8: Health Systems Reforms Completed | BU8: Identity of all persons in South Africa known and secured | BV8: Reduced workplace conflict and improved collaboration between government, organised business and organised labour | BX8: Coordination, planning, integration and monitoring implementation of strategic integrated projects in the National Infrastructure Plan | BY8: Growth of sustainable rural enterprises and industries, characterised by strong rural-urban linkages, increased investment in agro-processing, trade development and access to local markets and financial services – resulting in rural job creation | CC8: An equitable and just System of Global Governance | CD8: Strengthened accountability to citizens | CE8: Early childhood development provision | CH8: 6 | CI8: AE326:AF335,AE340:AF341,AE343:AF380,AE382:AF383,AE410:AF411,AE413:AF419 | CQ8: Social Development | CR8: Social Assistance | CS8: Disability | CT8: Current | CU8: Social benefits | CV8: 0 | CW8: 301131.9466 | CX8: 0 | CY8: Social DevelopmentSocial AssistanceDisabilityCurrentSocial benefits | CZ8: Social DevelopmentSocial AssistanceDisability | DA8: Social DevelopmentSocial AssistanceDisabilitySocial benefits | DG8: The Presidency | DH8: Administration | DI8: 6 | DJ8: 79 | DK8: 85 | DL8: 6 | DM8: 86 | DN8: 19337 | DO8: 83 | DP8: 22896 | DQ8: 83 | DR8: 24293 | DS8: 83 | DT8: 25618 | DU8: 85 | DV8: 27673 | DW8: The Presidency|Administration | DX8: 001 | DY8: 001 | DZ8: 001001 | EC8: 111 | ED8: 46 | EE8: 1 | EF8: The Presidency | EG8: 1 | EH8: Administration | EI8: 1 | EJ8: Management | EK8: Transfers and subsidies | EL8: Departmental agencies and accounts | EM8: Departmental agencies (non-business entities) | EN8: 0 | EO8: 997 | EP8: 50 | EQ8: 50 | ER8: 50 | ES8: 34 | ET8: 36 | EU8: 38 | EV8: 0 | EW8: 0 | EX8: 0 | EY8: 36 | EZ8: 38 | FA8: 40.128 | FB8: The Presidency|Administration | FC8: 001 | FD8: 001 | FE8: 001 | FF8: 046 | FG8: 001001 | FH8: 001046 | FI8: 46 | FJ8: 001001001046 | FL8: 001001046 | FS8: 46 | FT8: 1 | FU8: The Presidency | FV8: 2 | FW8: Executive Support | FX8: 1 | FY8: Cabinet Services | GA8: Departmental agencies and accounts | GB8: Departmental agencies (non-business entities)
AY9: SIP 6: Integrated municipal infrastructure project | AZ9: Public corporations and private enterprises | BA9: 2019/20 | BC9: Higher education institutions | BD9: OUTCOME 7: COMPREHENSIVE RURAL DEVELOPMENT AND LAND REFORM | BE9: Provinces and municipalities | BF9: InfraList6 | BG9: Hand over | BI9: Other | BJ9: =IF(OR(BJ8="Direct_charges",BJ8=""),"",IF(Summary!F37=0,"Direct_charges",Summary!F37)) -> Direct_charges | BK9: 7 | BL9: =IF(BM9<>"",MAX(BL$3:BL8)+1,0) -> 0 | BM9: =IF(BK9>PListed,"",Cover!BJ9) ->  | BN9: 7 | BO9: Multiple programmes | BT9: Primary health care teams deployed to provide care to families and communities | BU9: Corruption in the public and private sectors reduced | BV9: Expanded economic opportunities for historically excluded and vulnerable groups | CC9: Strong, mutually beneficial South-South cooperation | CD9: Improved inter-departmental coordination and institutionalisation of long-term planning | CE9: Improve household food and nutrition security | CH9: 7 | CI9: AN326:AO335,AN340:AO341,AN343:AO380,AN382:AO383,AN410:AO411,AN413:AO419 | CQ9: Social Development | CR9: Social Assistance | CS9: Foster Care | CT9: Current | CU9: Social benefits | CV9: 0 | CW9: 80604.48365 | CX9: 0 | CY9: Social DevelopmentSocial AssistanceFoster CareCurrentSocial benefits | CZ9: Social DevelopmentSocial AssistanceFoster Care | DA9: Social DevelopmentSocial AssistanceFoster CareSocial benefits | DG9: The Presidency | DH9: Administration | DI9: 7 | DJ9: 72 | DK9: 77 | DL9: 5 | DM9: 77 | DN9: 21458 | DO9: 70 | DP9: 22702 | DQ9: 71 | DR9: 24436 | DS9: 71 | DT9: 25769 | DU9: 77 | DV9: 29439 | DW9: The Presidency|Administration | DX9: 001 | DY9: 001 | DZ9: 001001 | EC9: 111 | ED9: 53 | EE9: 1 | EF9: The Presidency | EG9: 1 | EH9: Administration | EI9: 1 | EJ9: Management | EK9: Transfers and subsidies | EL9: Households | EM9: Other transfers to households | EN9: 2 | EO9: 1808 | EP9: 0 | EQ9: 132 | ER9: 132 | ES9: 0 | ET9: 0 | EU9: 0 | EV9: 0 | EW9: 0 | EX9: 0 | EY9: 0 | EZ9: 0 | FA9: 0 | FB9: The Presidency|Administration | FC9: 001 | FD9: 001 | FE9: 001 | FF9: 053 | FG9: 001001 | FH9: 001053 | FI9: 53 | FJ9: 001001001053 | FL9: 001001053 | FS9: 53 | FT9: 1 | FU9: The Presidency | FV9: 16 | FW9: Direct charge against the National Revenue Fund | FX9: 1 | FY9: Salary of the President | GA9: Households | GB9: Other transfers to households
AY10: SIP 7: Integrated urban space and public transport programme | AZ10: Non-profit institutions | BC10: Foreign governments and international organisations | BD10: OUTCOME 8: SUSTAINABLE HUMAN SETTLEMENTS AND IMPROVED QUALITY OF HOUSEHOLD LIFE | BE10: Departmental agencies and accounts | BF10: Residential buildings | BG10: Handed over | BJ10: =IF(OR(BJ9="Direct_charges",BJ9=""),"",IF(Summary!F38=0,"Direct_charges",Summary!F38)) ->  | BK10: 8 | BL10: =IF(BM10<>"",MAX(BL$3:BL9)+1,0) -> 0 | BM10: =IF(BK10>PListed,"",Cover!BJ10) ->  | BN10: 8 | BT10: Universal health coverage achieved | BV10: Public employment schemes provide short-term relief for the unemployed and build community solidarity and agency | CC10: Beneficial relations with strategic formations of the North | CD10: Improved mechanisms to prevent corruption in the public service (refer to the chapter on Outcome 3 for further elements of fighting corruption effectively) | CE10: Strengthening of community development interventions to strengthen coordination, integration, planning, monitoring and evaluation of services | CH10: 8 | CQ10: Social Development | CR10: Social Assistance | CS10: Care Dependency | CT10: Current | CU10: Social benefits | CV10: 0 | CW10: 43036.44672 | CX10: 0 | CY10: Social DevelopmentSocial AssistanceCare DependencyCurrentSocial benefits | CZ10: Social DevelopmentSocial AssistanceCare Dependency | DA10: Social DevelopmentSocial AssistanceCare DependencySocial benefits | DG10: The Presidency | DH10: Administration | DI10: 8 | DJ10: 53 | DK10: 53 | DL10: 0 | DM10: 50 | DN10: 16902 | DO10: 49 | DP10: 18749 | DQ10: 49 | DR10: 19893 | DS10: 50 | DT10: 21388 | DU10: 52 | DV10: 23546 | DW10: The Presidency|Administration | DX10: 001 | DY10: 001 | DZ10: 001001 | EC10: 111 | ED10: 52 | EE10: 1 | EF10: The Presidency | EG10: 1 | EH10: Administration | EI10: 1 | EJ10: Management | EK10: Transfers and subsidies | EL10: Households | EM10: Social benefits | EN10: 317 | EO10: 556 | EP10: 0 | EQ10: 420 | ER10: 420 | ES10: 0 | ET10: 0 | EU10: 0 | EV10: 0 | EW10: 0 | EX10: 0 | EY10: 0 | EZ10: 0 | FA10: 0 | FB10: The Presidency|Administration | FC10: 001 | FD10: 001 | FE10: 001 | FF10: 052 | FG10: 001001 | FH10: 001052 | FI10: 52 | FJ10: 001001001052 | FL10: 001001052 | FS10: 52 | FT10: 1 | FU10: The Presidency | FV10: 16 | FW10: Direct charge against the National Revenue Fund | FX10: 2 | FY10: Salary of the Deputy President | GA10: Machinery and equipment | GB10: Social benefits
AY11: SIP 8: Green energy in support of the South African economy | AZ11: Households | BC11: Subsidies on products and production (pc) | BD11: OUTCOME 9: RESPONSIVE, ACCOUNTABLE, EFFECTIVE AND EFFICIENT DEVELOPMENTAL LOCAL GOVERNMENT | BE11: Higher education institutions | BF11: Non-residential buildings | BG11: On hold | BJ11: =IF(OR(BJ10="Direct_charges",BJ10=""),"",IF(Summary!F39=0,"Direct_charges",Summary!F39)) ->  | BK11: 9 | BL11: =IF(BM11<>"",MAX(BL$3:BL10)+1,0) -> 0 | BM11: =IF(BK11>PListed,"",Cover!BJ11) ->  | BN11: 9 | BT11: Posts filled with skilled, committed and competent individuals | CH11: 9 | CQ11: Social Development | CR11: Social Assistance | CS11: Child Support | CT11: Current | CU11: Social benefits | CV11: 0 | CW11: 815339.49 | CX11: 0 | CY11: Social DevelopmentSocial AssistanceChild SupportCurrentSocial benefits | CZ11: Social DevelopmentSocial AssistanceChild Support | DA11: Social DevelopmentSocial AssistanceChild SupportSocial benefits | DG11: The Presidency | DH11: Administration | DI11: 9 | DJ11: 43 | DK11: 49 | DL11: 6 | DM11: 43 | DN11: 18415 | DO11: 48 | DP11: 22309 | DQ11: 48 | DR11: 23671 | DS11: 48 | DT11: 24962 | DU11: 49 | DV11: 26893 | DW11: The Presidency|Administration | DX11: 001 | DY11: 001 | DZ11: 001001 | EC11: 111 | ED11: 57 | EE11: 1 | EF11: The Presidency | EG11: 1 | EH11: Administration | EI11: 1 | EJ11: Management | EK11: Payments for capital assets | EL11: Machinery and equipment | EM11: Other machinery and equipment | EN11: 9946 | EO11: 10561 | EP11: 9200 | EQ11: 11907 | ER11: 11907 | ES11: 10000 | ET11: 10442 | EU11: 11138 | EV11: 0 | EW11: 0 | EX11: 0 | EY11: 10442 | EZ11: 11138 | FA11: 11761.728 | FB11: The Presidency|Administration | FC11: 001 | FD11: 001 | FE11: 001 | FF11: 057 | FG11: 001001 | FH11: 001057 | FI11: 57 | FJ11: 001001001057 | FL11: 001001057 | FS11: 57 | FT11: 2 | FU11: Parliament | FV11: 1 | FW11: Strategic Leadership and Governance | FX11: 1 | FY11: Office of the Speaker | GA11: Software and other intangible assets | GB11: Other machinery and equipment
AJ12: =AA13 -> Data file MTEC 2016 | AY12: SIP 9: Electricity generations to support socio-economic development | AZ12: Buildings and other fixed structures | BA12: Donation | BC12: Other transfers to public corporations | BD12: OUTCOME 10: PROTECT AND ENHANCE OUR ENVIRONMENTAL ASSETS AND NATURAL RESOURCES | BE12: Foreign governments and international organisations | BF12: Investment property | BG12: Complete | BJ12: =IF(OR(BJ11="Direct_charges",BJ11=""),"",IF(Summary!F40=0,"Direct_charges",Summary!F40)) ->  | BK12: 10 | BL12: =IF(BM12<>"",MAX(BL$3:BL11)+1,0) -> 0 | BM12: =IF(BK12>PListed,"",Cover!BJ12) ->  | BN12: 10 | CH12: 10 | CQ12: Social Development | CR12: Social Assistance | CS12: Grant-in-Aid | CT12: Current | CU12: Social benefits | CV12: 0 | CW12: 8941.289964 | CX12: 0 | CY12: Social DevelopmentSocial AssistanceGrant-in-AidCurrentSocial benefits | CZ12: Social DevelopmentSocial AssistanceGrant-in-Aid | DA12: Social DevelopmentSocial AssistanceGrant-in-AidSocial benefits | DG12: The Presidency | DH12: Administration | DI12: 10 | DJ12: 16 | DK12: 18 | DL12: 2 | DM12: 20 | DN12: 10371 | DO12: 18 | DP12: 10063 | DQ12: 18 | DR12: 10677 | DS12: 18 | DT12: 11260 | DU12: 18 | DV12: 11903 | DW12: The Presidency|Administration | DX12: 001 | DY12: 001 | DZ12: 001001 | EC12: 111 | ED12: 56 | EE12: 1 | EF12: The Presidency | EG12: 1 | EH12: Administration | EI12: 1 | EJ12: Management | EK12: Payments for capital assets | EL12: Machinery and equipment | EM12: Transport equipment | EN12: 793 | EO12: 869 | EP12: 1165 | EQ12: 1125 | ER12: 1125 | ES12: 1120 | ET12: 1185 | EU12: 1254 | EV12: 0 | EW12: 0 | EX12: 0 | EY12: 1185 | EZ12: 1254 | FA12: 1324.224 | FB12: The Presidency|Administration | FC12: 001 | FD12: 001 | FE12: 001 | FF12: 056 | FG12: 001001 | FH12: 001056 | FI12: 56 | FJ12: 001001001056 | FL12: 001001056 | FS12: 56 | FT12: 2 | FU12: Parliament | FV12: 1 | FW12: Strategic Leadership and Governance | FX12: 2 | FY12: Office of the Chairperson | GA12: Payments for financial assets | GB12: Transport equipment
AA13: Data file MTEC 2016 | AY13: SIP 10: Electricity transmission and distribution for all | AZ13: Machinery and equipment | BA13: Foreign | BC13: Subsidies on products and production (pe) | BD13: OUTCOME 11: CREATE A BETTER SOUTH AFRICA, A BETTER AFRICA AND A BETTER WORLD | BE13: Public corporations and private enterprises | BF13: Heritage assets | BG13: On-going | BJ13: =IF(OR(BJ12="Direct_charges",BJ12=""),"",IF(Summary!F41=0,"Direct_charges",Summary!F41)) ->  | BK13: 11 | BL13: =IF(BM13<>"",MAX(BL$3:BL12)+1,0) -> 0 | BM13: =IF(BK13>PListed,"",Cover!BJ13) ->  | BN13: 11 | BO13: =IF(ISERROR(INDEX(($BM$3:$BM$18),MATCH(BN13,$BL$3:$BL$18,0))),"",INDEX(($BM$3:$BM$18),MATCH(BN13,$BL$3:$BL$18,0))) ->  | CH13: 11 | CQ13: Social Development | CR13: Social Assistance | CS13: Social Relief of Distress | CT13: Current | CU13: Social benefits | CV13: 0 | CW13: 6685.146584 | CX13: 0 | CY13: Social DevelopmentSocial AssistanceSocial Relief of DistressCurrentSocial benefits | CZ13: Social DevelopmentSocial AssistanceSocial Relief of Distress | DA13: Social DevelopmentSocial AssistanceSocial Relief of DistressSocial benefits | DG13: The Presidency | DH13: Administration | DI13: 11 | DJ13: 60 | DK13: 62 | DL13: 2 | DM13: 57 | DN13: 38212 | DO13: 57 | DP13: 38898 | DQ13: 56 | DR13: 40618 | DS13: 58 | DT13: 44211 | DU13: 62 | DV13: 49651 | DW13: The Presidency|Administration | DX13: 001 | DY13: 001 | DZ13: 001001 | EC13: 111 | ED13: 62 | EE13: 1 | EF13: The Presidency | EG13: 1 | EH13: Administration | EI13: 1 | EJ13: Management | EK13: Payments for capital assets | EL13: Software and other intangible assets | EM13: Software and other intangible assets | EN13: 810 | EO13: 0 | EP13: 0 | EQ13: 0 | ER13: 0 | ES13: 0 | ET13: 0 | EU13: 0 | EV13: 0 | EW13: 0 | EX13: 0 | EY13: 0 | EZ13: 0 | FA13: 0 | FB13: The Presidency|Administration | FC13: 001 | FD13: 001 | FE13: 001 | FF13: 062 | FG13: 001001 | FH13: 001062 | FI13: 62 | FJ13: 001001001062 | FL13: 001001062 | FS13: 62 | FT13: 2 | FU13: Parliament | FV13: 2 | FW13: Administration | FX13: 1 | FY13: Secretary's Office | GA13: Non-profit institutions | GB13: Software and other intangible assets
AY14: SIP 11: Agri-logistics and rural infrastructure | AZ14: Heritage assets | BA14: Local | BC14: Other transfers to private enterprises | BD14: OUTCOME 12: AN EFFICIENT, EFFECTIVE AND DEVELOPMENT ORIENTED PUBLIC SERVICE | BE14: Non-profit institutions | BF14: Other fixed structures | BJ14: =IF(OR(BJ13="Direct_charges",BJ13=""),"",IF(Summary!F42=0,"Direct_charges",Summary!F42)) ->  | BK14: 12 | BL14: =IF(BM14<>"",MAX(BL$3:BL13)+1,0) -> 0 | BM14: =IF(BK14>PListed,"",Cover!BJ14) ->  | BN14: 12 | CH14: 12 | DG14: The Presidency | DH14: Administration | DI14: 12 | DJ14: 41 | DK14: 41 | DL14: 0 | DM14: 34 | DN14: 21233 | DO14: 39 | DP14: 32732 | DQ14: 39 | DR14: 34729 | DS14: 40 | DT14: 37398 | DU14: 41 | DV14: 40354 | DW14: The Presidency|Administration | DX14: 001 | DY14: 001 | DZ14: 001001 | EC14: 111 | ED14: 63 | EE14: 1 | EF14: The Presidency | EG14: 1 | EH14: Administration | EI14: 1 | EJ14: Management | EK14: Payments for financial assets | EL14: Payments for financial assets | EM14: Payments for financial assets | EN14: 93 | EO14: 4577 | EP14: 0 | EQ14: 0 | ER14: 0 | ES14: 0 | ET14: 0 | EU14: 0 | EV14: 0 | EW14: 0 | EX14: 0 | EY14: 0 | EZ14: 0 | FA14: 0 | FB14: The Presidency|Administration | FC14: 001 | FD14: 001 | FE14: 001 | FF14: 063 | FG14: 001001 | FH14: 001063 | FI14: 63 | FJ14: 001001001063 | FL14: 001001063 | FS14: 63 | FT14: 2 | FU14: Parliament | FV14: 2 | FW14: Administration | FX14: 2 | FY14: Finance Management Office | GA14: Public corporations and private enterprises | GB14: Payments for financial assets
AY15: SIP 12: Revitalisation of public hospitals and other health facilities | AZ15: Specialised military assets | BC15: Non-profit institutions | BD15: OUTCOME 13: AN INCLUSIVE AND RESPONSIVE SOCIAL PROTECTION SYSTEM | BE15: Households | BJ15: =IF(OR(BJ14="Direct_charges",BJ14=""),"",IF(Summary!F43=0,"Direct_charges",Summary!F43)) ->  | BK15: 13 | BL15: =IF(BM15<>"",MAX(BL$3:BL14)+1,0) -> 0 | BM15: =IF(BK15>PListed,"",Cover!BJ15) ->  | BN15: 13 | CH15: 13 | DG15: The Presidency | DH15: Administration | DI15: 13 | DJ15: 37 | DK15: 38 | DL15: 1 | DM15: 34 | DN15: 33037 | DO15: 35 | DP15: 34920 | DQ15: 37 | DR15: 39240 | DS15: 38 | DT15: 42425 | DU15: 38 | DV15: 44849 | DW15: The Presidency|Administration | DX15: 001 | DY15: 001 | DZ15: 001001 | EC15: 112 | ED15: 1 | EE15: 1 | EF15: The Presidency | EG15: 1 | EH15: Administration | EI15: 2 | EJ15: Support Service to President | EK15: Current payments | EL15: Compensation of employees | EM15: Compensation of employees | EN15: 37472 | EO15: 39298 | EP15: 45630 | EQ15: 42362 | ER15: 42362 | ES15: 43875 | ET15: 39288 | EU15: 41588 | EV15: 0 | EW15: 0 | EX15: 0 | EY15: 39288 | EZ15: 41588 | FA15: 44748.68785 | FB15: The Presidency|Administration | FC15: 001 | FD15: 001 | FE15: 002 | FF15: 001 | FG15: 001001 | FH15: 001001 | FI15: 1 | FJ15: 001001002001 | FL15: 001001001 | FS15: 51 | FT15: 2 | FU15: Parliament | FV15: 2 | FW15: Administration | FX15: 3 | FY15: Internal Audit | GA15: Foreign governments and international organisations | GB15: Non-profit institutions
AY16: SIP 13: National school build programme | AZ16: Biological assets | BC16: Social benefits | BD16: OUTCOME 14: NATION BUILDING AND SOCIAL COHESION | BJ16: =IF(OR(BJ15="Direct_charges",BJ15=""),"",IF(Summary!F44=0,"Direct_charges",Summary!F44)) ->  | BK16: 14 | BL16: =IF(BM16<>"",MAX(BL$3:BL15)+1,0) -> 0 | BM16: =IF(BK16>PListed,"",Cover!BJ16) ->  | BN16: 14 | CH16: 14 | DG16: The Presidency | DH16: Administration | DI16: 14 | DJ16: 17 | DK16: 19 | DL16: 2 | DM16: 21 | DN16: 18999 | DO16: 18 | DP16: 21581 | DQ16: 19 | DR16: 24094 | DS16: 19 | DT16: 25408 | DU16: 19 | DV16: 26860 | DW16: The Presidency|Administration | DX16: 001 | DY16: 001 | DZ16: 001001 | EC16: 112 | ED16: 2 | EE16: 1 | EF16: The Presidency | EG16: 1 | EH16: Administration | EI16: 2 | EJ16: Support Service to President | EK16: Current payments | EL16: Goods and services | EM16: Goods and services | EN16: 17982 | EO16: 19965 | EP16: 21421 | EQ16: 21421 | ER16: 21421 | ES16: 21340 | ET16: 22316 | EU16: 23723 | EV16: 0 | EW16: 0 | EX16: 0 | EY16: 22316 | EZ16: 23723 | FA16: 25051.488 | FB16: The Presidency|Administration | FC16: 001 | FD16: 001 | FE16: 002 | FF16: 002 | FG16: 001001 | FH16: 001002 | FI16: 2 | FJ16: 001001002002 | FL16: 001001002 | FS16: 49 | FT16: 2 | FU16: Parliament | FV16: 2 | FW16: Administration | FX16: 4 | FY16: Strategic Management & Governance | GA16: Heritage assets | GB16: Public corporations
AY17: SIP 14: Higher education infrastructure | AZ17: Land and sub-soil assets | BC17: Other transfers to households | BD17: Departmental mandate | BJ17: =IF(OR(BJ16="Direct_charges",BJ16=""),"",IF(Summary!F45=0,"Direct_charges",Summary!F45)) ->  | BK17: 15 | BL17: =IF(BM17<>"",MAX(BL$3:BL16)+1,0) -> 0 | BM17: =IF(BK17>PListed,"",Cover!BJ17) ->  | BN17: 15 | CH17: 15 | DG17: The Presidency | DH17: Administration | DI17: 15 | DJ17: 5 | DK17: 8 | DL17: 3 | DM17: 5 | DN17: 8463 | DO17: 5 | DP17: 7101 | DQ17: 8 | DR17: 12221 | DS17: 8 | DT17: 12887 | DU17: 8 | DV17: 13623 | DW17: The Presidency|Administration | DX17: 001 | DY17: 001 | DZ17: 001001 | EC17: 112 | ED17: 53 | EE17: 1 | EF17: The Presidency | EG17: 1 | EH17: Administration | EI17: 2 | EJ17: Support Service to President | EK17: Transfers and subsidies | EL17: Households | EM17: Other transfers to households | EN17: 0 | EO17: 153 | EP17: 0 | EQ17: 0 | ER17: 0 | ES17: 0 | ET17: 0 | EU17: 0 | EV17: 0 | EW17: 0 | EX17: 0 | EY17: 0 | EZ17: 0 | FA17: 0 | FB17: The Presidency|Administration | FC17: 001 | FD17: 001 | FE17: 002 | FF17: 053 | FG17: 001001 | FH17: 001053 | FI17: 53 | FJ17: 001001002053 | FL17: 001001053 | FS17: 48 | FT17: 2 | FU17: Parliament | FV17: 3 | FW17: Core Business | FX17: 1 | FY17: Office of the Deputy Secretary | GA17: Buildings and other fixed structures | GB17: Foreign governments and international organisations
AY18: SIP 15: Expanding access to communication technology | AZ18: Software and other intangible assets | BA18: Currency | BL18: =IF(BM18<>"",MAX(BL$3:BL17)+1,0) -> 7 | BM18: Multiple programmes | BN18: 16 | CH18: 16 | DG18: The Presidency | DH18: Administration | DI18: 16 | DJ18: 2 | DK18: 7 | DL18: 5 | DM18: 7 | DN18: 11830 | DO18: 7 | DP18: 13142 | DQ18: 7 | DR18: 13944 | DS18: 7 | DT18: 14704 | DU18: 7 | DV18: 15544 | DW18: The Presidency|Administration | DX18: 001 | DY18: 001 | DZ18: 001001 | EC18: 112 | ED18: 52 | EE18: 1 | EF18: The Presidency | EG18: 1 | EH18: Administration | EI18: 2 | EJ18: Support Service to President | EK18: Transfers and subsidies | EL18: Households | EM18: Social benefits | EN18: 65 | EO18: 35 | EP18: 0 | EQ18: 266 | ER18: 266 | ES18: 0 | ET18: 0 | EU18: 0 | EV18: 0 | EW18: 0 | EX18: 0 | EY18: 0 | EZ18: 0 | FA18: 0 | FB18: The Presidency|Administration | FC18: 001 | FD18: 001 | FE18: 002 | FF18: 052 | FG18: 001001 | FH18: 001052 | FI18: 52 | FJ18: 001001002052 | FL18: 001001052 | FS18: 58 | FT18: 2 | FU18: Parliament | FV18: 3 | FW18: Core Business | FX18: 2 | FY18: National Assembly | GA18: Land and sub-soil assets | GB18: Heritage assets
AY19: SIP 16: SKA and Meerkat | BA19: In Cash | CH19: 17 | DG19: The Presidency | DH19: Executive Support | DI19: 6 | DJ19: 8 | DK19: 8 | DL19: 0 | DM19: 8 | DN19: 1497 | DO19: 8 | DP19: 2562 | DQ19: 8 | DR19: 2870 | DS19: 8 | DT19: 3009 | DU19: 8 | DV19: 3200 | DW19: The Presidency|Executive Support | DX19: 001 | DY19: 002 | DZ19: 001002 | EC19: 112 | ED19: 57 | EE19: 1 | EF19: The Presidency | EG19: 1 | EH19: Administration | EI19: 2 | EJ19: Support Service to President | EK19: Payments for capital assets | EL19: Machinery and equipment | EM19: Other machinery and equipment | EN19: 940 | EO19: 812 | EP19: 243 | EQ19: 243 | ER19: 243 | ES19: 825 | ET19: 859 | EU19: 908 | EV19: 0 | EW19: 0 | EX19: 0 | EY19: 859 | EZ19: 908 | FA19: 958.848 | FB19: The Presidency|Administration | FC19: 001 | FD19: 001 | FE19: 002 | FF19: 057 | FG19: 001001 | FH19: 001057 | FI19: 57 | FJ19: 001001002057 | FL19: 001001057 | FS19: 43 | FT19: 2 | FU19: Parliament | FV19: 3 | FW19: Core Business | FX19: 3 | FY19: National Council of Provinces | GA19: Higher education institutions | GB19: Provinces
AY20: SIP 17: Regional integration for African Cooperation and development | BA20: In Kind | CH20: 18 | DG20: The Presidency | DH20: Executive Support | DI20: 7 | DJ20: 3 | DK20: 3 | DL20: 0 | DM20: 2 | DN20: 755 | DO20: 3 | DP20: 1172 | DQ20: 3 | DR20: 1314 | DS20: 3 | DT20: 1377 | DU20: 3 | DV20: 1464 | DW20: The Presidency|Executive Support | DX20: 001 | DY20: 002 | DZ20: 001002 | EC20: 112 | ED20: 62 | EE20: 1 | EF20: The Presidency | EG20: 1 | EH20: Administration | EI20: 2 | EJ20: Support Service to President | EK20: Payments for capital assets | EL20: Software and other intangible assets | EM20: Software and other intangible assets | EN20: 0 | EO20: 0 | EP20: 63 | EQ20: 63 | ER20: 63 | ES20: 0 | ET20: 0 | EU20: 0 | EV20: 0 | EW20: 0 | EX20: 0 | EY20: 0 | EZ20: 0 | FA20: 0 | FB20: The Presidency|Administration | FC20: 001 | FD20: 001 | FE20: 002 | FF20: 062 | FG20: 001001 | FH20: 001062 | FI20: 62 | FJ20: 001001002062 | FL20: 001001062 | FS20: 55 | FT20: 2 | FU20: Parliament | FV20: 3 | FW20: Core Business | FX20: 4 | FY20: Core Business Support | GA20: Biological assets | GB20: Other fixed structures
AY21: SIP 18. Water and sanitation master plan | CH21: 19 | DG21: The Presidency | DH21: Executive Support | DI21: 9 | DJ21: 2 | DK21: 2 | DL21: 0 | DM21: 2 | DN21: 554 | DO21: 2 | DP21: 850 | DQ21: 2 | DR21: 952 | DS21: 2 | DT21: 998 | DU21: 2 | DV21: 1062 | DW21: The Presidency|Executive Support | DX21: 001 | DY21: 002 | DZ21: 001002 | EC21: 112 | ED21: 63 | EE21: 1 | EF21: The Presidency | EG21: 1 | EH21: Administration | EI21: 2 | EJ21: Support Service to President | EK21: Payments for financial assets | EL21: Payments for financial assets | EM21: Payments for financial assets | EN21: 26 | EO21: 160 | EP21: 0 | EQ21: 0 | ER21: 0 | ES21: 0 | ET21: 0 | EU21: 0 | EV21: 0 | EW21: 0 | EX21: 0 | EY21: 0 | EZ21: 0 | FA21: 0 | FB21: The Presidency|Administration | FC21: 001 | FD21: 001 | FE21: 002 | FF21: 063 | FG21: 001001 | FH21: 001063 | FI21: 63 | FJ21: 001001002063 | FL21: 001001063 | FS21: 54 | FT21: 2 | FU21: Parliament | FV21: 3 | FW21: Core Business | FX21: 5 | FY21: Knowledge and Information Services | GA21: Specialised military assets | GB21: Buildings
AA22: 27 | AB22: =+MATCH(AC22,$AB$25:$AB$71,0) -> 7 | AC22: 4 | CH22: 20 | DG22: The Presidency | DH22: Executive Support | DI22: 11 | DJ22: 1 | DK22: 1 | DL22: 0 | DM22: 1 | DN22: 569 | DO22: 1 | DP22: 742 | DQ22: 1 | DR22: 832 | DS22: 1 | DT22: 872 | DU22: 1 | DV22: 927 | DW22: The Presidency|Executive Support | DX22: 001 | DY22: 002 | DZ22: 001002 | EC22: 113 | ED22: 1 | EE22: 1 | EF22: The Presidency | EG22: 1 | EH22: Administration | EI22: 3 | EJ22: Support Service to Deputy President | EK22: Current payments | EL22: Compensation of employees | EM22: Compensation of employees | EN22: 25146 | EO22: 28988 | EP22: 37761 | EQ22: 35553 | ER22: 35553 | ES22: 36243 | ET22: 36137 | EU22: 38250 | EV22: 0 | EW22: 0 | EX22: 0 | EY22: 36137 | EZ22: 38250 | FA22: 41156.99986 | FB22: The Presidency|Administration | FC22: 001 | FD22: 001 | FE22: 003 | FF22: 001 | FG22: 001001 | FH22: 001001 | FI22: 1 | FJ22: 001001003001 | FL22: 001001001 | FS22: 61 | FT22: 2 | FU22: Parliament | FV22: 3 | FW22: Core Business | FX22: 6 | FY22: International Relations & Protocol | GB22: Land and sub-soil assets
Z23: =IF(AI23="",1,2) -> 2 | AA23: 7 | AB23: =INDEX((AB$25:AB$71),MATCH($AA$23,$AA$25:$AA$71,1)) -> 4 | AC23: =INDEX((AC$25:AC$71),MATCH($AA$23,$AA$25:$AA$71,1)) -> Cooperative Governance And Traditional Affairs | AD23: 0 | AE23: =INDEX((AE$25:AE$71),MATCH($AA$23,$AA$25:$AA$71,1)) -> 0 | AF23: =INDEX((AF$25:AF$71),MATCH($AA$23,$AA$25:$AA$71,1)) -> Misaveni Ngobeni | AG23: (012) 315 5305 | AH23: misaveni.ngobeni@treasury.gov.za | AI23: Millicent Mulaudzi | AJ23: (012) 395 6576 | AK23: =INDEX((AK$25:AK$71),MATCH($AA$23,$AA$25:$AA$71,1)) -> Millicent.Mulaudzi@treasury.gov.za | AL23: 0 | AM23: 0 | AN23: 0 | AO23: datafileNAT@treasury.gov.za | AP23: =INDEX((AP$25:AP$71),MATCH($AA$23,$AA$25:$AA$71,1)) -> 78557210 | AQ23: 84258462 | AR23: =INDEX((AR$25:AR$71),MATCH($AA$23,$AA$25:$AA$71,1)) -> 90164054 | AT23: Revised Baseline | AV23: =IFERROR(INDEX((AV$25:AV$71),MATCH($AB$23,$AT$25:$AT$71,0)),0) -> 78414485 | AW23: =IFERROR(INDEX((AW$25:AW$71),MATCH($AB$23,$AT$25:$AT$71,0)),0) -> 85113770 | AX23: =IFERROR(INDEX((AX$25:AX$71),MATCH($AB$23,$AT$25:$AT$71,0)),0) -> 91060369 | DG23: The Presidency | DH23: Executive Support | DI23: 12 | DJ23: 4 | DK23: 4 | DL23: 0 | DM23: 4 | DN23: 1983 | DO23: 4 | DP23: 3152 | DQ23: 4 | DR23: 3532 | DS23: 4 | DT23: 3702 | DU23: 4 | DV23: 3938 | DW23: The Presidency|Executive Support | DX23: 001 | DY23: 002 | DZ23: 001002 | EC23: 113 | ED23: 2 | EE23: 1 | EF23: The Presidency | EG23: 1 | EH23: Administration | EI23: 3 | EJ23: Support Service to Deputy President | EK23: Current payments | EL23: Goods and services | EM23: Goods and services | EN23: 10266 | EO23: 9513 | EP23: 19801 | EQ23: 18245 | ER23: 18245 | ES23: 15032 | ET23: 16069 | EU23: 16210 | EV23: 0 | EW23: 0 | EX23: 0 | EY23: 16069 | EZ23: 16210 | FA23: 17117.76 | FB23: The Presidency|Administration | FC23: 001 | FD23: 001 | FE23: 003 | FF23: 002 | FG23: 001001 | FH23: 001002 | FI23: 2 | FJ23: 001001003002 | FL23: 001001002 | FS23: 47 | FT23: 2 | FU23: Parliament | FV23: 4 | FW23: Support Services | FX23: 1 | FY23: Office of the Deputy Secretary | GB23: Higher education institutions
AA24: Dept Index No. | AB24: Vote No. | AC24: Department | AD24: Category | AE24: ID1 | AF24: Contact Person | AG24: Tel | AH24: email | AI24: Contact Person | AJ24: Tel | AK24: email | AL24: ID2 | AM24: Contact Person | AN24: Tel | AO24: email | AP24: =MyYearP1 -> 2017/18 | AQ24: =MyYearP2 -> 2018/19 | AR24: =MyYearP3 -> 2019/20 | AT24: Vote No. | AU24: Dept | AV24: =+AP24 -> 2017/18 | AW24: =+AQ24 -> 2018/19 | AX24: 2019/20 | BC24: Payments for Financial Assets | DG24: The Presidency | DH24: Executive Support | DI24: 13 | DJ24: 1 | DK24: 2 | DL24: 1 | DM24: 2 | DN24: 1833 | DO24: 2 | DP24: 2008 | DQ24: 2 | DR24: 2250 | DS24: 2 | DT24: 2358 | DU24: 2 | DV24: 2508 | DW24: The Presidency|Executive Support | DX24: 001 | DY24: 002 | DZ24: 001002 | EC24: 113 | ED24: 53 | EE24: 1 | EF24: The Presidency | EG24: 1 | EH24: Administration | EI24: 3 | EJ24: Support Service to Deputy President | EK24: Transfers and subsidies | EL24: Households | EM24: Other transfers to households | EN24: 0 | EO24: 63 | EP24: 0 | EQ24: 0 | ER24: 0 | ES24: 0 | ET24: 0 | EU24: 0 | EV24: 0 | EW24: 0 | EX24: 0 | EY24: 0 | EZ24: 0 | FA24: 0 | FB24: The Presidency|Administration | FC24: 001 | FD24: 001 | FE24: 003 | FF24: 053 | FG24: 001001 | FH24: 001053 | FI24: 53 | FJ24: 001001003053 | FL24: 001001053 | FS24: 50 | FT24: 2 | FU24: Parliament | FV24: 4 | FW24: Support Services | FX24: 2 | FY24: Parliamentary Communication Services | GB24: Private enterprises
Y25: 1 | AA25: 1 | AB25: 24 | AC25: Agriculture, Forestry and Fisheries | AF25: Bothwell Deka | AG25: (012) 395 6784 | AH25: Bothwell.Deka@treasury.gov.za | AI25: Humbelani Ramuedzisi | AJ25: (012) 315 5585 | AK25: Humbelani.Ramuedzisi@treasury.gov.za | AO25: datafileNAT@treasury.gov.za | AP25: 6706260 | AQ25: 6999026 | AR25: 7435010 | AT25: 24 | AU25: Agriculture, Forestry and Fisheries | AV25: 6782034 | AW25: 7114438 | AX25: 7551758 | BC25: Forex losses | DG25: The Presidency | DH25: Executive Support | DI25: 14 | DJ25: 3 | DK25: 4 | DL25: 1 | DM25: 4 | DN25: 4800 | DO25: 4 | DP25: 5280 | DQ25: 4 | DR25: 5917 | DS25: 4 | DT25: 6201 | DU25: 4 | DV25: 6596 | DW25: The Presidency|Executive Support | DX25: 001 | DY25: 002 | DZ25: 001002 | EC25: 113 | ED25: 52 | EE25: 1 | EF25: The Presidency | EG25: 1 | EH25: Administration | EI25: 3 | EJ25: Support Service to Deputy President | EK25: Transfers and subsidies | EL25: Households | EM25: Social benefits | EN25: 86 | EO25: 102 | EP25: 0 | EQ25: 6 | ER25: 6 | ES25: 0 | ET25: 0 | EU25: 0 | EV25: 0 | EW25: 0 | EX25: 0 | EY25: 0 | EZ25: 0 | FA25: 0 | FB25: The Presidency|Administration | FC25: 001 | FD25: 001 | FE25: 003 | FF25: 052 | FG25: 001001 | FH25: 001052 | FI25: 52 | FJ25: 001001003052 | FL25: 001001052 | FS25: 45 | FT25: 2 | FU25: Parliament | FV25: 4 | FW25: Support Services | FX25: 3 | FY25: Human Resources Management | GB25: Social security funds
Y26: 2 | AA26: 2 | AB26: 37 | AC26: Arts and Culture | AF26: Judy Naidoo | AG26: (012) 315 5269 | AH26: Judy.Naidoo@treasury.gov.za | AI26: Letsepa Pakkies | AJ26: (012) 395 6656 | AK26: Letsepa.Pakkies@treasury.gov.za | AO26: datafileNAT@treasury.gov.za | AP26: 4492689 | AQ26: 4542875 | AR26: 4802404 | AT26: 37 | AU26: Arts and Culture | AV26: 4449845 | AW26: 4491651 | AX26: 4752325 | BC26: Thefts and losses | DG26: The Presidency | DH26: Executive Support | DI26: 15 | DJ26: 1 | DK26: 1 | DL26: 0 | DM26: 1 | DN26: 1321 | DO26: 1 | DP26: 1384 | DQ26: 1 | DR26: 1551 | DS26: 1 | DT26: 1626 | DU26: 1 | DV26: 1730 | DW26: The Presidency|Executive Support | DX26: 001 | DY26: 002 | DZ26: 001002 | EC26: 113 | ED26: 57 | EE26: 1 | EF26: The Presidency | EG26: 1 | EH26: Administration | EI26: 3 | EJ26: Support Service to Deputy President | EK26: Payments for capital assets | EL26: Machinery and equipment | EM26: Other machinery and equipment | EN26: 576 | EO26: 400 | EP26: 224 | EQ26: 780 | ER26: 780 | ES26: 796 | ET26: 842 | EU26: 855 | EV26: 0 | EW26: 0 | EX26: 0 | EY26: 842 | EZ26: 855 | FA26: 902.88 | FB26: The Presidency|Administration | FC26: 001 | FD26: 001 | FE26: 003 | FF26: 057 | FG26: 001001 | FH26: 001057 | FI26: 57 | FJ26: 001001003057 | FL26: 001001057 | FS26: 60 | FT26: 2 | FU26: Parliament | FV26: 4 | FW26: Support Services | FX26: 4 | FY26: Information Communication & Technology | GB26: Biological assets
Y27: 3 | AA27: 3 | AB27: 14 | AC27: Basic Education | AF27: Spencer Janari | AG27: (012) 315 5436 | AH27: Spencer.Janari@treasury.gov.za | AI27: Pindi Masiso | AJ27: (012) 315 5722 | AK27: Pindi.Masiso@treasury.gov.za | AO27: datafileNAT@treasury.gov.za | AP27: 23471039 | AQ27: 24829596 | AR27: 26230172 | AT27: 14 | AU27: Basic Education | AV27: 23408620 | AW27: 24795329 | AX27: 26195958 | BC27: Extension of loans for policy purposes | DG27: The Presidency | DH27: Direct charge against the National Revenue Fund | DI27: Salary of the President | DJ27: 1 | DK27: 1 | DL27: 0 | DM27: 1 | DN27: 2622 | DO27: 1 | DP27: 3109 | DQ27: 1 | DR27: 3274 | DS27: 1 | DT27: 3438 | DU27: 1 | DV27: 3637 | DW27: The Presidency|Direct charge against the National Revenue Fund | DX27: 001 | DY27: 016 | DZ27: 001016 | EC27: 113 | ED27: 63 | EE27: 1 | EF27: The Presidency | EG27: 1 | EH27: Administration | EI27: 3 | EJ27: Support Service to Deputy President | EK27: Payments for financial assets | EL27: Payments for financial assets | EM27: Payments for financial assets | EN27: 5 | EO27: 100 | EP27: 0 | EQ27: 0 | ER27: 0 | ES27: 0 | ET27: 0 | EU27: 0 | EV27: 0 | EW27: 0 | EX27: 0 | EY27: 0 | EZ27: 0 | FA27: 0 | FB27: The Presidency|Administration | FC27: 001 | FD27: 001 | FE27: 003 | FF27: 063 | FG27: 001001 | FH27: 001063 | FI27: 63 | FJ27: 001001003063 | FL27: 001001063 | FS27: 59 | FT27: 2 | FU27: Parliament | FV27: 4 | FW27: Support Services | FX27: 5 | FY27: Institutional Support Services | GB27: Specialised military assets
Y28: 4 | AA28: 4 | AB28: 47 | AC28: Centre for Public Service Innovation | AF28: George Tembo | AG28: (012) 315 5514 | AH28: George.Tembo@treasury.gov.za | AI28: Mokgatla Tema | AJ28: (012) 315 5948 | AK28: Mokgatla.Tema@treasury.gov.za | AO28: datafileNAT@treasury.gov.za | AP28: 34424 | AQ28: 36431 | AR28: 38864 | AT28: 47 | AU28: Centre for Public Service Innovation | AV28: 34045 | AW28: 36030 | AX28: 38437 | BC28: Purchase of equity | CI28: Array Range to print | DG28: The Presidency | DH28: Direct charge against the National Revenue Fund | DI28: Salary of the Deputy President | DJ28: 1 | DK28: 1 | DL28: 0 | DM28: 1 | DN28: 2208 | DO28: 1 | DP28: 2617 | DQ28: 1 | DR28: 2761 | DS28: 1 | DT28: 2935 | DU28: 1 | DV28: 3105 | DW28: The Presidency|Direct charge against the National Revenue Fund | DX28: 001 | DY28: 016 | DZ28: 001016 | EC28: 114 | ED28: 1 | EE28: 1 | EF28: The Presidency | EG28: 1 | EH28: Administration | EI28: 4 | EJ28: Ministry | EK28: Current payments | EL28: Compensation of employees | EM28: Compensation of employees | EN28: 0 | EO28: 0 | EP28: 16128 | EQ28: 0 | ER28: 0 | ES28: 0 | ET28: 0 | EU28: 0 | EV28: 0 | EW28: 0 | EX28: 0 | EY28: 0 | EZ28: 0 | FA28: 0 | FB28: The Presidency|Administration | FC28: 001 | FD28: 001 | FE28: 004 | FF28: 001 | FG28: 001001 | FH28: 001001 | FI28: 1 | FJ28: 001001004001 | FL28: 001001001 | FT28: 2 | FU28: Parliament | FV28: 5 | FW28: Associated Services | FX28: 1 | FY28: Members Support Services
Y29: 5 | AA29: 5 | AB29: 41 | AC29: Civilian Secretariat | AF29: Nompumelelo Radebe | AG29: (012) 315 5957 | AH29: Nompumelelo.Radebe@treasury.gov.za | AI29: Sithabiso Buthelezi | AJ29: (012) 406 9025 | AK29: Sithabiso.Buthelezi@treasury.gov.za | AO29: datafileNAT@treasury.gov.za | AP29: 126057 | AQ29: 136079 | AR29: 145670 | AT29: 41 | AU29: Civilian Secretariat | AV29: 124673 | AW29: 134584 | AX29: 144071 | BC29: Debt take overs | CH29: 1 | CI29: F26:J143,L26:L143,R26:R143,AB26:AB143,AK26:AK143,AT26:AT143 | DG29: Parliament | DH29: Direct charge against the National Revenue Fund | DI29: Members of Parliament | DJ29: 0 | DK29: 0 | DL29: 0 | DM29: 0 | DN29: 479803 | DO29: 0 | DP29: 503132 | DQ29: 0 | DR29: 529798 | DS29: 0 | DT29: 556288 | DU29: 0 | DV29: 588553 | DW29: Parliament|Direct charge against the National Revenue Fund | DX29: 002 | DY29: 016 | DZ29: 002016 | EC29: 114 | ED29: 2 | EE29: 1 | EF29: The Presidency | EG29: 1 | EH29: Administration | EI29: 4 | EJ29: Ministry | EK29: Current payments | EL29: Goods and services | EM29: Goods and services | EN29: 0 | EO29: 0 | EP29: 16695 | EQ29: 0 | ER29: 0 | ES29: 0 | ET29: 0 | EU29: 0 | EV29: 0 | EW29: 0 | EX29: 0 | EY29: 0 | EZ29: 0 | FA29: 0 | FB29: The Presidency|Administration | FC29: 001 | FD29: 001 | FE29: 004 | FF29: 002 | FG29: 001001 | FH29: 001002 | FI29: 2 | FJ29: 001001004002 | FL29: 001001002 | FT29: 2 | FU29: Parliament | FV29: 5 | FW29: Associated Services | FX29: 2 | FY29: Political Party Support
Y30: 6 | AA30: 6 | AB30: 3 | AC30: Communications | AF30: Japie Jacobs | AG30: (012) 315 5546 | AH30: Japie.Jacobs@treasury.gov.za | AI30: Rhoda Marais | AJ30: (012) 315 5906 | AK30: Rhoda.Marais@treasury.gov.za | AO30: datafileNAT@treasury.gov.za | AP30: 1430984 | AQ30: 1526898 | AR30: 1618996 | AT30: 3 | AU30: Communications | AV30: 1425095 | AW30: 1520650 | AX30: 1612340 | BC30: Losses on GFECRA | CH30: 2 | DG30: Parliament | DH30: Strategic Leadership and Governance | DI30: 8 | DJ30: 0 | DK30: 0 | DL30: 0 | DM30: 2 | DN30: 324 | DO30: 1 | DP30: 157 | DQ30: 1 | DR30: 166 | DS30: 1 | DT30: 174 | DU30: 1 | DV30: 183 | DW30: Parliament|Strategic Leadership and Governance | DX30: 002 | DY30: 001 | DZ30: 002001 | EC30: 114 | ED30: 57 | EE30: 1 | EF30: The Presidency | EG30: 1 | EH30: Administration | EI30: 4 | EJ30: Ministry | EK30: Payments for capital assets | EL30: Machinery and equipment | EM30: Other machinery and equipment | EN30: 0 | EO30: 0 | EP30: 491 | EQ30: 0 | ER30: 0 | ES30: 0 | ET30: 0 | EU30: 0 | EV30: 0 | EW30: 0 | EX30: 0 | EY30: 0 | EZ30: 0 | FA30: 0 | FB30: The Presidency|Administration | FC30: 001 | FD30: 001 | FE30: 004 | FF30: 057 | FG30: 001001 | FH30: 001057 | FI30: 57 | FJ30: 001001004057 | FL30: 001001057 | FT30: 2 | FU30: Parliament | FV30: 5 | FW30: Associated Services | FX30: 3 | FY30: Constituency Support
Y31: 7 | AA31: 7 | AB31: 4 | AC31: Cooperative Governance And Traditional Affairs | AF31: Misaveni Ngobeni | AG31: (012) 315 5305 | AH31: misaveni.ngobeni@treasury.gov.za | AI31: Millicent Mulaudzi | AJ31: (012) 395 6576 | AK31: Millicent.Mulaudzi@treasury.gov.za | AO31: datafileNAT@treasury.gov.za | AP31: 78557210 | AQ31: 84258462 | AR31: 90164054 | AT31: 4 | AU31: Cooperative Governance And Traditional Affairs | AV31: 78414485 | AW31: 85113770 | AX31: 91060369 | BC31: Premiums on loan transactions | CH31: 3 | DG31: Parliament | DH31: Strategic Leadership and Governance | DI31: 9 | DJ31: 1 | DK31: 1 | DL31: 0 | DM31: 2 | DN31: 356 | DO31: 1 | DP31: 159 | DQ31: 1 | DR31: 167 | DS31: 1 | DT31: 175 | DU31: 1 | DV31: 185 | DW31: Parliament|Strategic Leadership and Governance | DX31: 002 | DY31: 001 | DZ31: 002001 | EC31: 121 | ED31: 1 | EE31: 1 | EF31: The Presidency | EG31: 2 | EH31: Executive Support | EI31: 1 | EJ31: Cabinet Services | EK31: Current payments | EL31: Compensation of employees | EM31: Compensation of employees | EN31: 13340 | EO31: 13312 | EP31: 18272 | EQ31: 17150 | ER31: 17150 | ES31: 19218 | ET31: 17423 | EU31: 18432 | EV31: 0 | EW31: 0 | EX31: 0 | EY31: 17423 | EZ31: 18432 | FA31: 19832.83193 | FB31: The Presidency|Executive Support | FC31: 001 | FD31: 002 | FE31: 001 | FF31: 001 | FG31: 001002 | FH31: 001001 | FI31: 1 | FJ31: 001002001001 | FL31: 001002001 | FT31: 2 | FU31: Parliament | FV31: 5 | FW31: Associated Services | FX31: 4 | FY31: Party Leadership Support
Y32: 8 | AA32: 8 | AB32: 18 | AC32: Correctional Services | AF32: Werner Krause | AG32: (012) 315 5211 | AH32: Werner.Krause@treasury.gov.za | AI32: Keabetswe Matlwa | AJ32: (012) 395 6678 | AK32: Keabetswe.Matlwa@treasury.gov.za | AO32: datafileNAT@treasury.gov.za | AP32: 23048928 | AQ32: 24700701 | AR32: 26428500 | AT32: 18 | AU32: Correctional Services | AV32: 22814124 | AW32: 24453616 | AX32: 26155812 | BC32: Other | CH32: 4 | DG32: Parliament | DH32: Strategic Leadership and Governance | DI32: 10 | DJ32: 6 | DK32: 6 | DL32: 0 | DM32: 25 | DN32: 6923 | DO32: 18 | DP32: 3196 | DQ32: 18 | DR32: 3375 | DS32: 18 | DT32: 3543 | DU32: 18 | DV32: 3745 | DW32: Parliament|Strategic Leadership and Governance | DX32: 002 | DY32: 001 | DZ32: 002001 | EC32: 121 | ED32: 2 | EE32: 1 | EF32: The Presidency | EG32: 2 | EH32: Executive Support | EI32: 1 | EJ32: Cabinet Services | EK32: Current payments | EL32: Goods and services | EM32: Goods and services | EN32: 3513 | EO32: 4288 | EP32: 7002 | EQ32: 13988 | ER32: 6402 | ES32: 25970 | ET32: 29001 | EU32: 31511 | EV32: 0 | EW32: 0 | EX32: 0 | EY32: 29001 | EZ32: 31511 | FA32: 33275.616 | FB32: The Presidency|Executive Support | FC32: 001 | FD32: 002 | FE32: 001 | FF32: 002 | FG32: 001002 | FH32: 001002 | FI32: 2 | FJ32: 001002001002 | FL32: 001002002 | FT32: 2 | FU32: Parliament | FV32: 5 | FW32: Associated Services | FX32: 5 | FY32: National Assembly Member's Facilities
Y33: 9 | AA33: 9 | AB33: 19 | AC33: Defence And Military Veterans | AF33: Mashudu Bidzha | AG33: (012) 315 5344 | AH33: Mashudu.Bidzha@treasury.gov.za | AI33: Lesiba Ledwaba | AJ33: (012) 395 6660 | AK33: Lesiba.Ledwaba@treasury.gov.za | AO33: datafileNAT@treasury.gov.za | AP33: 48744615 | AQ33: 50725685 | AR33: 54111102 | AT33: 19 | AU33: Defence And Military Veterans | AV33: 48618790 | AW33: 50610314 | AX33: 53966436 | CH33: 5 | DG33: Parliament | DH33: Strategic Leadership and Governance | DI33: 11 | DJ33: 23 | DK33: 23 | DL33: 0 | DM33: 17 | DN33: 7487 | DO33: 12 | DP33: 3590 | DQ33: 12 | DR33: 3791 | DS33: 12 | DT33: 3981 | DU33: 12 | DV33: 4208 | DW33: Parliament|Strategic Leadership and Governance | DX33: 002 | DY33: 001 | DZ33: 002001 | EC33: 121 | ED33: 53 | EE33: 1 | EF33: The Presidency | EG33: 2 | EH33: Executive Support | EI33: 1 | EJ33: Cabinet Services | EK33: Transfers and subsidies | EL33: Households | EM33: Other transfers to households | EN33: 0 | EO33: 230 | EP33: 0 | EQ33: 0 | ER33: 0 | ES33: 0 | ET33: 0 | EU33: 0 | EV33: 0 | EW33: 0 | EX33: 0 | EY33: 0 | EZ33: 0 | FA33: 0 | FB33: The Presidency|Executive Support | FC33: 001 | FD33: 002 | FE33: 001 | FF33: 053 | FG33: 001002 | FH33: 001053 | FI33: 53 | FJ33: 001002001053 | FL33: 001002053 | FT33: 2 | FU33: Parliament | FV33: 5 | FW33: Associated Services | FX33: 6 | FY33: National Council of Provinces Member's Facilities
Y34: 10 | AA34: 10 | AB34: 25 | AC34: Economic Development | AF34: Rudzani Sikhwari | AG34: (012) 315 5823 | AH34: Rudzani.Sikhwari@treasury.gov.za | AO34: datafileNAT@treasury.gov.za | AP34: 714285 | AQ34: 751005 | AR34: 794897 | AT34: 25 | AU34: Economic Development | AV34: 712851 | AW34: 749606 | AX34: 793338 | AY34: Funding Pressures | AZ34: Type of request | BA34: Compensation of employees | DG34: Parliament | DH34: Strategic Leadership and Governance | DI34: 12 | DJ34: 23 | DK34: 23 | DL34: 0 | DM34: 26 | DN34: 12332 | DO34: 20 | DP34: 8112 | DQ34: 20 | DR34: 8563 | DS34: 20 | DT34: 8991 | DU34: 20 | DV34: 9503 | DW34: Parliament|Strategic Leadership and Governance | DX34: 002 | DY34: 001 | DZ34: 002001 | EC34: 121 | ED34: 52 | EE34: 1 | EF34: The Presidency | EG34: 2 | EH34: Executive Support | EI34: 1 | EJ34: Cabinet Services | EK34: Transfers and subsidies | EL34: Households | EM34: Social benefits | EN34: 31 | EO34: 13 | EP34: 0 | EQ34: 0 | ER34: 0 | ES34: 0 | ET34: 0 | EU34: 0 | EV34: 0 | EW34: 0 | EX34: 0 | EY34: 0 | EZ34: 0 | FA34: 0 | FB34: The Presidency|Executive Support | FC34: 001 | FD34: 002 | FE34: 001 | FF34: 052 | FG34: 001002 | FH34: 001052 | FI34: 52 | FJ34: 001002001052 | FL34: 001002052 | FT34: 2 | FU34: Parliament | FV34: 16 | FW34: Direct charge against the National Revenue Fund | FX34: 1 | FY34: Members Remuneration
Y35: 11 | AA35: 11 | AB35: 26 | AC35: Energy | AF35: Rezah Atcha | AG35: (012) 315 5287 | AH35: Rezah.Atcha@treasury.gov.za | AI35: Nomagugu Madikane | AJ35: (012) 315 5312 | AK35: Nomagugu.Madikane@treasury.gov.za | AO35: datafileNAT@treasury.gov.za | AP35: 8128980 | AQ35: 8486400 | AR35: 8968189 | AT35: 26 | AU35: Energy | AV35: 8113450 | AW35: 8469943 | AX35: 9950774 | AY35: Current payments - Compensation of employees | AZ35: New project | BA35: Goods and services | DG35: Parliament | DH35: Strategic Leadership and Governance | DI35: 13 | DJ35: 20 | DK35: 20 | DL35: 0 | DM35: 9 | DN35: 6882 | DO35: 21 | DP35: 11577 | DQ35: 21 | DR35: 12226 | DS35: 21 | DT35: 12837 | DU35: 21 | DV35: 13569 | DW35: Parliament|Strategic Leadership and Governance | DX35: 002 | DY35: 001 | DZ35: 002001 | EC35: 121 | ED35: 57 | EE35: 1 | EF35: The Presidency | EG35: 2 | EH35: Executive Support | EI35: 1 | EJ35: Cabinet Services | EK35: Payments for capital assets | EL35: Machinery and equipment | EM35: Other machinery and equipment | EN35: 522 | EO35: 1437 | EP35: 1116 | EQ35: 1130 | ER35: 1130 | ES35: 1136 | ET35: 1128 | EU35: 1171 | EV35: 0 | EW35: 0 | EX35: 0 | EY35: 1128 | EZ35: 1171 | FA35: 1236.576 | FB35: The Presidency|Executive Support | FC35: 001 | FD35: 002 | FE35: 001 | FF35: 057 | FG35: 001002 | FH35: 001057 | FI35: 57 | FJ35: 001002001057 | FL35: 001002057 | FT35: 3 | FU35: Communications | FV35: 1 | FW35: Administration | FX35: 1 | FY35: Ministry
Y36: 12 | AA36: 12 | AB36: 27 | AC36: Environmental Affairs | AF36: Ricardo Andrews | AG36: (012) 315 5766 | AH36: Ricardo.Andrews@treasury.gov.za | AI36: Ashley Ramasimu | AJ36: (012) 315 5166 | AK36: Mukundi.Maphangwa@treasury.gov.za | AO36: datafileNAT@treasury.gov.za | AP36: 6660557 | AQ36: 6756800 | AR36: 7156998 | AT36: 27 | AU36: Environmental Affairs | AV36: 6848214 | AW36: 7061226 | AX36: 7378025 | AY36: Current payments - Goods and services | AZ36: Urgent cost pressure | BA36: Interest and rent on land | CI36: Array Range to lock (Cond Grants sheet) | DG36: Parliament | DH36: Strategic Leadership and Governance | DI36: 14 | DJ36: 34 | DK36: 34 | DL36: 0 | DM36: 8 | DN36: 6610 | DO36: 9 | DP36: 5375 | DQ36: 9 | DR36: 5676 | DS36: 9 | DT36: 5959 | DU36: 9 | DV36: 6299 | DW36: Parliament|Strategic Leadership and Governance | DX36: 002 | DY36: 001 | DZ36: 002001 | EC36: 121 | ED36: 63 | EE36: 1 | EF36: The Presidency | EG36: 2 | EH36: Executive Support | EI36: 1 | EJ36: Cabinet Services | EK36: Payments for financial assets | EL36: Payments for financial assets | EM36: Payments for financial assets | EN36: 4 | EO36: 17 | EP36: 0 | EQ36: 0 | ER36: 0 | ES36: 0 | ET36: 0 | EU36: 0 | EV36: 0 | EW36: 0 | EX36: 0 | EY36: 0 | EZ36: 0 | FA36: 0 | FB36: The Presidency|Executive Support | FC36: 001 | FD36: 002 | FE36: 001 | FF36: 063 | FG36: 001002 | FH36: 001063 | FI36: 63 | FJ36: 001002001063 | FL36: 001002063 | FT36: 3 | FU36: Communications | FV36: 1 | FW36: Administration | FX36: 2 | FY36: Departmental Management
Y37: 13 | AA37: 13 | AB37: 46 | AC37: Government Communication and Information System | AF37: Japie Jacobs | AG37: (012) 315 5546 | AH37: Japie.Jacobs@treasury.gov.za | AI37: Thapelo Mokwana | AJ37: (012) 315 5796 | AK37: Thapelo.Mokwana@treasury.gov.za | AO37: datafileNAT@treasury.gov.za | AP37: 405817 | AQ37: 432413 | AR37: 461725 | AT37: 46 | AU37: Government Communication and Information System | AV37: 404750 | AW37: 431267 | AX37: 460456 | AY37: Current payments - Interest and rent on land | AZ37: Expansion of existing project | BA37: Provinces and municipalities | CH37: 1 | CI37: V57:W66,AE57:AF66,AN57:AO66,V79:W88,AE79:AF88,AN79:AO88,V101:W110,AE101:AF110,AN101:AO110 | DG37: Parliament | DH37: Strategic Leadership and Governance | DI37: 15 | DJ37: 10 | DK37: 10 | DL37: 0 | DM37: 9 | DN37: 9208 | DO37: 16 | DP37: 10338 | DQ37: 16 | DR37: 10916 | DS37: 16 | DT37: 11461 | DU37: 16 | DV37: 12114 | DW37: Parliament|Strategic Leadership and Governance | DX37: 002 | DY37: 001 | DZ37: 002001 | EC37: 1161 | ED37: 1 | EE37: 1 | EF37: The Presidency | EG37: 16 | EH37: Direct charge against the National Revenue Fund | EI37: 1 | EJ37: Salary of the President | EK37: Current payments | EL37: Compensation of employees | EM37: Compensation of employees | EN37: 2623 | EO37: 2622 | EP37: 3109 | EQ37: 3109 | ER37: 3109 | ES37: 3274 | ET37: 3438 | EU37: 3637 | EV37: 0 | EW37: 0 | EX37: 0 | EY37: 3438 | EZ37: 3637 | FA37: 3913.411987 | FB37: The Presidency|Direct charge against the National Revenue Fund | FC37: 001 | FD37: 016 | FE37: 001 | FF37: 001 | FG37: 001016 | FH37: 001001 | FI37: 1 | FJ37: 001016001001 | FL37: 001016001 | FT37: 3 | FU37: Communications | FV37: 1 | FW37: Administration | FX37: 3 | FY37: Internal Audit
Y38: 14 | AA38: 14 | AB38: 16 | AC38: Health | AF38: Aparna Kollipara | AG38: (012) 315 5386 | AH38: Aparna.Kollipara@treasury.gov.za | AI38: Refiloe Thokoa | AJ38: (012) 395 6559 | AK38: Refiloe.Thokoa@treasury.gov.za | AO38: datafileNAT@treasury.gov.za | AP38: 42778134 | AQ38: 46734183 | AR38: 49370384 | AT38: 16 | AU38: Health | AV38: 42625723 | AW38: 46666972 | AX38: 50384947 | AY38: Current Transfers and subsidies - Provinces and municipalities | BA38: Departmental agencies and accounts | BC38: Transfer Type | CH38: 2 | CI38: V123:W132,AE123:AF132,AN123:AO132,V145:W154,AE145:AF154,AN145:AO154,V167:W176,AE167:AF176,AN167:AO176 | DG38: Parliament | DH38: Strategic Leadership and Governance | DI38: 16 | DJ38: 27 | DK38: 27 | DL38: 0 | DM38: 1 | DN38: 1635 | DO38: 1 | DP38: 1611 | DQ38: 1 | DR38: 1730 | DS38: 1 | DT38: 1819 | DU38: 1 | DV38: 1969 | DW38: Parliament|Strategic Leadership and Governance | DX38: 002 | DY38: 001 | DZ38: 002001 | EC38: 1162 | ED38: 1 | EE38: 1 | EF38: The Presidency | EG38: 16 | EH38: Direct charge against the National Revenue Fund | EI38: 2 | EJ38: Salary of the Deputy President | EK38: Current payments | EL38: Compensation of employees | EM38: Compensation of employees | EN38: 0 | EO38: 2208 | EP38: 2617 | EQ38: 2617 | ER38: 2617 | ES38: 2761 | ET38: 2935 | EU38: 3105 | EV38: 0 | EW38: 0 | EX38: 0 | EY38: 2935 | EZ38: 3105 | FA38: 3340.979989 | FB38: The Presidency|Direct charge against the National Revenue Fund | FC38: 001 | FD38: 016 | FE38: 002 | FF38: 001 | FG38: 001016 | FH38: 001001 | FI38: 1 | FJ38: 001016002001 | FL38: 001016001 | FT38: 3 | FU38: Communications | FV38: 1 | FW38: Administration | FX38: 4 | FY38: Corporate Services
Y39: 15 | AA39: 15 | AB39: 15 | AC39: Higher Education and Training | AF39: Nokwazi Makanya | AG39: (012) 315 9057 | AH39: Nokwazi.Makanya@treasury.gov.za | AI39: Barileng Sape | AJ39: (012) 406 9069 | AK39: Barileng.Sape@treasury.gov.za | AO39: datafileNAT@treasury.gov.za | AP39: 72003215 | AQ39: 77392319 | AR39: 81905524 | AT39: 15 | AU39: Higher Education and Training | AV39: 68949095 | AW39: 78639954 | AX39: 83774977 | AY39: Current Transfers and subsidies - Departmental agencies and accounts | BA39: Higher education institutions | BC39: Indirect Grant | CH39: 3 | CI39: V189:W198,AE189:AF198,AN189:AO198,V211:W220,AE211:AF220,AN211:AO220,V233:W242,AE233:AF242,AN233:AO242 | DG39: Parliament | DH39: Strategic Leadership and Governance | DI39: Other please specify | DJ39: 1 | DK39: 1 | DL39: 0 | DM39: 0 | DN39: 0 | DO39: 0 | DP39: 0 | DQ39: 0 | DR39: 0 | DS39: 0 | DT39: 0 | DU39: 0 | DV39: 0 | DW39: Parliament|Strategic Leadership and Governance | DX39: 002 | DY39: 001 | DZ39: 002001 | EC39: 211 | ED39: 1 | EE39: 2 | EF39: Parliament | EG39: 1 | EH39: Strategic Leadership and Governance | EI39: 1 | EJ39: Office of the Speaker | EK39: Current payments | EL39: Compensation of employees | EM39: Compensation of employees | EN39: 24190 | EO39: 29287 | EP39: 27473 | EQ39: 27473 | ER39: 27473 | ES39: 29011 | ET39: 27933 | EU39: 28474 | EV39: 0 | EW39: 0 | EX39: 0 | EY39: 27933 | EZ39: 28474 | FA39: 30638.0239 | FB39: Parliament|Strategic Leadership and Governance | FC39: 002 | FD39: 001 | FE39: 001 | FF39: 001 | FG39: 002001 | FH39: 002001 | FI39: 1 | FJ39: 002001001001 | FL39: 002001001 | FT39: 3 | FU39: Communications | FV39: 1 | FW39: Administration | FX39: 5 | FY39: Financial Management
Y40: 16 | AA40: 16 | AB40: 5 | AC40: Home Affairs | AF40: Isaac Mabena | AG40: (012) 315 5582 | AH40: Isaac.Mabena@treasury.gov.za | AO40: datafileNAT@treasury.gov.za | AP40: 7060438 | AQ40: 7173675 | AR40: 7641968 | AT40: 5 | AU40: Home Affairs | AV40: 7055539 | AW40: 7799025 | AX40: 7630117 | AY40: Current Transfers and subsidies - Higher education institutions | BA40: Foreign governments and international organisations | BC40: Budgetary allocation to entities | CH40: 4 | CI40: V255:W264,AE255:AF264,AN255:AO264,V277:W286,AE277:AF286,AN277:AO286,V299:W308,AE299:AF308,AN299:AO308 | DG40: Parliament | DH40: Administration | DI40: 8 | DJ40: 2 | DK40: 2 | DL40: 0 | DM40: 3 | DN40: 857 | DO40: 1 | DP40: 246 | DQ40: 1 | DR40: 307 | DS40: 1 | DT40: 333 | DU40: 1 | DV40: 361 | DW40: Parliament|Administration | DX40: 002 | DY40: 002 | DZ40: 002002 | EC40: 211 | ED40: 2 | EE40: 2 | EF40: Parliament | EG40: 1 | EH40: Strategic Leadership and Governance | EI40: 1 | EJ40: Office of the Speaker | EK40: Current payments | EL40: Goods and services | EM40: Goods and services | EN40: 7378 | EO40: 5816 | EP40: 17780 | EQ40: 17780 | ER40: 17780 | ES40: 11169 | ET40: 11677 | EU40: 12342 | EV40: 0 | EW40: 0 | EX40: 0 | EY40: 11677 | EZ40: 12342 | FA40: 13033.152 | FB40: Parliament|Strategic Leadership and Governance | FC40: 002 | FD40: 001 | FE40: 001 | FF40: 002 | FG40: 002001 | FH40: 002002 | FI40: 2 | FJ40: 002001001002 | FL40: 002001002 | FT40: 3 | FU40: Communications | FV40: 2 | FW40: Communications Policy, Research and Development | FX40: 2 | FY40: Broadcasting Policy
Y41: 17 | AA41: 17 | AB41: 38 | AC41: Human Settlements | AF41: James Archer | AG41: (012) 395 6736 | AH41: James.Archer@treasury.gov.za | AI41: Lindiwe Ngcongwane | AJ41: (012) 315 5357 | AK41: Lindiwe.Ngcongwane@treasury.gov.za | AO41: datafileNAT@treasury.gov.za | AP41: 34566326 | AQ41: 36620027 | AR41: 38678373 | AT41: 38 | AU41: Human Settlements | AV41: 33464300 | AW41: 35414719 | AX41: 37447502 | AY41: Current Transfers and subsidies - Foreign governments and international organisations | BA41: Public corporations and private enterprises | BC41: Other | CH41: 5 | CI41: V321:W330,AE321:AF330,AN321:AO330,V343:W352,AE343:AF352,AN343:AO352,V365:W374,AE365:AF374,AN365:AO374 | DG41: Parliament | DH41: Administration | DI41: 9 | DJ41: 23 | DK41: 23 | DL41: 0 | DM41: 14 | DN41: 4356 | DO41: 17 | DP41: 5134 | DQ41: 17 | DR41: 6822 | DS41: 17 | DT41: 7415 | DU41: 17 | DV41: 7045 | DW41: Parliament|Administration | DX41: 002 | DY41: 002 | DZ41: 002002 | EC41: 211 | ED41: 57 | EE41: 2 | EF41: Parliament | EG41: 1 | EH41: Strategic Leadership and Governance | EI41: 1 | EJ41: Office of the Speaker | EK41: Payments for capital assets | EL41: Machinery and equipment | EM41: Other machinery and equipment | EN41: 28 | EO41: 415 | EP41: 263 | EQ41: 263 | ER41: 263 | ES41: 278 | ET41: 292 | EU41: 309 | EV41: 0 | EW41: 0 | EX41: 0 | EY41: 292 | EZ41: 309 | FA41: 326.304 | FB41: Parliament|Strategic Leadership and Governance | FC41: 002 | FD41: 001 | FE41: 001 | FF41: 057 | FG41: 002001 | FH41: 002057 | FI41: 57 | FJ41: 002001001057 | FL41: 002001057 | FT41: 3 | FU41: Communications | FV41: 2 | FW41: Communications Policy, Research and Development | FX41: 3 | FY41: Media Policy
Y42: 18 | AA42: 18 | AB42: 20 | AC42: Independent Police Investigative Directorate | AF42: Nompumelelo Radebe | AG42: (012) 315 5957 | AH42: Nompumelelo.Radebe@treasury.gov.za | AI42: Velisubuhle Buti | AJ42: (012) 395 6709 | AK42: Sithabiso.Buthelezi@treasury.gov.za | AO42: datafileNAT@treasury.gov.za | AP42: 255482 | AQ42: 266958 | AR42: 285824 | AT42: 20 | AU42: Independent Police Investigative Directorate | AV42: 255482 | AW42: 266958 | AX42: 285824 | AY42: Current Transfers and subsidies - Public corporations and private enterprises | BA42: Non-profit institutions | DG42: Parliament | DH42: Administration | DI42: 10 | DJ42: 44 | DK42: 44 | DL42: 0 | DM42: 36 | DN42: 15393 | DO42: 41 | DP42: 13799 | DQ42: 41 | DR42: 16796 | DS42: 41 | DT42: 18240 | DU42: 41 | DV42: 19790 | DW42: Parliament|Administration | DX42: 002 | DY42: 002 | DZ42: 002002 | EC42: 212 | ED42: 1 | EE42: 2 | EF42: Parliament | EG42: 1 | EH42: Strategic Leadership and Governance | EI42: 2 | EJ42: Office of the Chairperson | EK42: Current payments | EL42: Compensation of employees | EM42: Compensation of employees | EN42: 18360 | EO42: 22470 | EP42: 16642 | EQ42: 16642 | ER42: 16642 | ES42: 17599 | ET42: 16946 | EU42: 16851 | EV42: 0 | EW42: 0 | EX42: 0 | EY42: 16946 | EZ42: 16851 | FA42: 18131.67594 | FB42: Parliament|Strategic Leadership and Governance | FC42: 002 | FD42: 001 | FE42: 002 | FF42: 001 | FG42: 002001 | FH42: 002001 | FI42: 1 | FJ42: 002001002001 | FL42: 002001001 | FT42: 3 | FU42: Communications | FV42: 2 | FW42: Communications Policy, Research and Development | FX42: 4 | FY42: Technology and Engineering Services
Y43: 19 | AA43: 19 | AB43: 6 | AC43: International Relations and Cooperation | AF43: Gcobisa Matshaya | AG43: (012) 315 5320 | AH43: Gcobisa.Matshaya@treasury.gov.za | AI43: Thulasizwe Motha | AJ43: (012) 406 9019 | AK43: Thulasizwe.Motha@treasury.gov.za | AO43: datafileNAT@treasury.gov.za | AP43: 5913005 | AQ43: 6182570 | AR43: 6581910 | AT43: 6 | AU43: International Relations and Cooperation | AV43: 6574879 | AW43: 6765659 | AX43: 6505525 | AY43: Current Transfers and subsidies - Non-profit institutions | BA43: Households | DG43: Parliament | DH43: Administration | DI43: 11 | DJ43: 15 | DK43: 15 | DL43: 0 | DM43: 19 | DN43: 8656 | DO43: 8 | DP43: 3324 | DQ43: 8 | DR43: 4985 | DS43: 8 | DT43: 5419 | DU43: 8 | DV43: 6854 | DW43: Parliament|Administration | DX43: 002 | DY43: 002 | DZ43: 002002 | EC43: 212 | ED43: 2 | EE43: 2 | EF43: Parliament | EG43: 1 | EH43: Strategic Leadership and Governance | EI43: 2 | EJ43: Office of the Chairperson | EK43: Current payments | EL43: Goods and services | EM43: Goods and services | EN43: 1341 | EO43: 5274 | EP43: 8218 | EQ43: 8218 | ER43: 8218 | ES43: 14637 | ET43: 15304 | EU43: 16168 | EV43: 0 | EW43: 0 | EX43: 0 | EY43: 15304 | EZ43: 16168 | FA43: 17073.408 | FB43: Parliament|Strategic Leadership and Governance | FC43: 002 | FD43: 001 | FE43: 002 | FF43: 002 | FG43: 002001 | FH43: 002002 | FI43: 2 | FJ43: 002001002002 | FL43: 002001002 | FT43: 3 | FU43: Communications | FV43: 3 | FW43: Industry and Capacity Development | FX43: 2 | FY43: Enterprise Development
Y44: 20 | AA44: 20 | AB44: 21 | AC44: Justice and Constitutional Development | AF44: Maggy Mokoka | AG44: (012) 315 5468 | AH44: Maggy.Mokoka@treasury.gov.za | AI44: Rendani Randela | AJ44: (012) 315 5345 | AK44: rendani.randela@treasury.gov.za | AO44: datafileNAT@treasury.gov.za | AP44: 19123673 | AQ44: 20109884 | AR44: 21457390 | AT44: 21 | AU44: Justice and Constitutional Development | AV44: 18927308 | AW44: 19908353 | AX44: 21233941 | AY44: Current Transfers and subsidies - Households | BA44: Buildings and other fixed structures | DG44: Parliament | DH44: Administration | DI44: 12 | DJ44: 17 | DK44: 17 | DL44: 0 | DM44: 19 | DN44: 13258 | DO44: 17 | DP44: 11162 | DQ44: 17 | DR44: 13908 | DS44: 17 | DT44: 15118 | DU44: 17 | DV44: 16503 | DW44: Parliament|Administration | DX44: 002 | DY44: 002 | DZ44: 002002 | EC44: 212 | ED44: 57 | EE44: 2 | EF44: Parliament | EG44: 1 | EH44: Strategic Leadership and Governance | EI44: 2 | EJ44: Office of the Chairperson | EK44: Payments for capital assets | EL44: Machinery and equipment | EM44: Other machinery and equipment | EN44: 0 | EO44: 239 | EP44: 101 | EQ44: 101 | ER44: 101 | ES44: 107 | ET44: 112 | EU44: 118 | EV44: 0 | EW44: 0 | EX44: 0 | EY44: 112 | EZ44: 118 | FA44: 124.608 | FB44: Parliament|Strategic Leadership and Governance | FC44: 002 | FD44: 001 | FE44: 002 | FF44: 057 | FG44: 002001 | FH44: 002057 | FI44: 57 | FJ44: 002001002057 | FL44: 002001057 | FT44: 3 | FU44: Communications | FV44: 3 | FW44: Industry and Capacity Development | FX44: 3 | FY44: Broadcasting Digital Migration
Y45: 21 | AA45: 21 | AB45: 28 | AC45: Labour | AF45: Judy Naidoo | AG45: (012) 315 5269 | AH45: Judy.Naidoo@treasury.gov.za | AI45: Nico Likhethe | AJ45: (012) 315 5773 | AK45: Velisubuhle.Buti@treasury.gov.za | AO45: datafileNAT@treasury.gov.za | AP45: 3032004 | AQ45: 3224218 | AR45: 3430933 | AT45: 28 | AU45: Labour | AV45: 3065821 | AW45: 3266459 | AX45: 3451500 | AY45: Capital Transfers and subsidies - Provinces and municipalities | BA45: Machinery and equipment | DG45: Parliament | DH45: Administration | DI45: 13 | DJ45: 23 | DK45: 23 | DL45: 0 | DM45: 8 | DN45: 7194 | DO45: 16 | DP45: 12920 | DQ45: 16 | DR45: 15983 | DS45: 16 | DT45: 17389 | DU45: 16 | DV45: 18967 | DW45: Parliament|Administration | DX45: 002 | DY45: 002 | DZ45: 002002 | EC45: 221 | ED45: 1 | EE45: 2 | EF45: Parliament | EG45: 2 | EH45: Administration | EI45: 1 | EJ45: Secretary's Office | EK45: Current payments | EL45: Compensation of employees | EM45: Compensation of employees | EN45: 11521 | EO45: 8868 | EP45: 9500 | EQ45: 9500 | ER45: 9500 | ES45: 10236 | ET45: 10418 | EU45: 10673 | EV45: 0 | EW45: 0 | EX45: 0 | EY45: 10418 | EZ45: 10673 | FA45: 11484.14796 | FB45: Parliament|Administration | FC45: 002 | FD45: 002 | FE45: 001 | FF45: 001 | FG45: 002002 | FH45: 002001 | FI45: 1 | FJ45: 002002001001 | FL45: 002002001 | FT45: 3 | FU45: Communications | FV45: 3 | FW45: Industry and Capacity Development | FX45: 4 | FY45: Industry Research and Analysis
Y46: 22 | AA46: 22 | AB46: 42 | AC46: Military Veterans | AF46: Mashudu Bidzha | AG46: (012) 315 5344 | AH46: Mashudu.Bidzha@treasury.gov.za | AI46: Lesiba Ledwaba | AJ46: (012) 395 6660 | AK46: Lesiba.Ledwaba@treasury.gov.za | AO46: datafileNAT@treasury.gov.za | AP46: 634720 | AQ46: 673360 | AR46: 713513 | AT46: 42 | AU46: Military Veterans | AV46: 622111 | AW46: 660092 | AX46: 699502 | AY46: Capital Transfers and subsidies - Departmental agencies and accounts | BA46: Heritage assets | DG46: Parliament | DH46: Administration | DI46: 14 | DJ46: 8 | DK46: 8 | DL46: 0 | DM46: 7 | DN46: 6479 | DO46: 6 | DP46: 5021 | DQ46: 6 | DR46: 6475 | DS46: 6 | DT46: 7038 | DU46: 6 | DV46: 7736 | DW46: Parliament|Administration | DX46: 002 | DY46: 002 | DZ46: 002002 | EC46: 221 | ED46: 2 | EE46: 2 | EF46: Parliament | EG46: 2 | EH46: Administration | EI46: 1 | EJ46: Secretary's Office | EK46: Current payments | EL46: Goods and services | EM46: Goods and services | EN46: 4888 | EO46: 4397 | EP46: 11950 | EQ46: 11950 | ER46: 11950 | ES46: 18481 | ET46: 19317 | EU46: 20241 | EV46: 0 | EW46: 0 | EX46: 0 | EY46: 19317 | EZ46: 20241 | FA46: 21374.496 | FB46: Parliament|Administration | FC46: 002 | FD46: 002 | FE46: 001 | FF46: 002 | FG46: 002002 | FH46: 002002 | FI46: 2 | FJ46: 002002001002 | FL46: 002002002 | FT46: 3 | FU46: Communications | FV46: 4 | FW46: Entity Oversight | FX46: 1 | FY46: Programme Management for Entity Oversight
Y47: 23 | AA47: 23 | AB47: 29 | AC47: Mineral Resources | AF47: Bothwell Deka | AG47: (012) 395 6784 | AH47: Bothwell.Deka@treasury.gov.za | AI47: Tumelo Mokgoshi | AJ47: (012) 395 6777 | AK47: Tumelo.Mokgoshi@treasury.gov.za | AO47: datafileNAT@treasury.gov.za | AP47: 1847244 | AQ47: 1824594 | AR47: 1938867 | AT47: 29 | AU47: Mineral Resources | AV47: 1839449 | AW47: 1976669 | AX47: 1930012 | AY47: Capital Transfers and subsidies - Higher education institutions | BA47: Specialised military assets | DG47: Parliament | DH47: Administration | DI47: 15 | DJ47: 9 | DK47: 9 | DL47: 0 | DM47: 4 | DN47: 4241 | DO47: 7 | DP47: 6757 | DQ47: 7 | DR47: 8475 | DS47: 7 | DT47: 9154 | DU47: 7 | DV47: 9833 | DW47: Parliament|Administration | DX47: 002 | DY47: 002 | DZ47: 002002 | EC47: 221 | ED47: 57 | EE47: 2 | EF47: Parliament | EG47: 2 | EH47: Administration | EI47: 1 | EJ47: Secretary's Office | EK47: Payments for capital assets | EL47: Machinery and equipment | EM47: Other machinery and equipment | EN47: 64 | EO47: 0 | EP47: 350 | EQ47: 350 | ER47: 350 | ES47: 436 | ET47: 458 | EU47: 481 | EV47: 0 | EW47: 0 | EX47: 0 | EY47: 458 | EZ47: 481 | FA47: 507.936 | FB47: Parliament|Administration | FC47: 002 | FD47: 002 | FE47: 001 | FF47: 057 | FG47: 002002 | FH47: 002057 | FI47: 57 | FJ47: 002002001057 | FL47: 002002057 | FT47: 3 | FU47: Communications | FV47: 4 | FW47: Entity Oversight | FX47: 2 | FY47: Broadcasting and Community Media
Y48: 24 | AA48: 24 | AB48: 44 | AC48: National School of Government | AF48: George Tembo | AG48: (012) 315 5514 | AH48: George.Tembo@treasury.gov.za | AI48: Mokgatla Tema | AJ48: (012) 315 5948 | AK48: Mokgatla.Tema@treasury.gov.za | AO48: datafileNAT@treasury.gov.za | AP48: 156562 | AQ48: 169451 | AR48: 180127 | AT48: 44 | AU48: National School of Government | AV48: 155506 | AW48: 168291 | AX48: 178890 | AY48: Capital Transfers and subsidies - Foreign governments and international organisations | BA48: Biological assets | DG48: Parliament | DH48: Administration | DI48: 16 | DJ48: 1 | DK48: 1 | DL48: 0 | DM48: 1 | DN48: 2482 | DO48: 1 | DP48: 2300 | DQ48: 1 | DR48: 2785 | DS48: 1 | DT48: 3027 | DU48: 1 | DV48: 3184 | DW48: Parliament|Administration | DX48: 002 | DY48: 002 | DZ48: 002002 | EC48: 222 | ED48: 1 | EE48: 2 | EF48: Parliament | EG48: 2 | EH48: Administration | EI48: 2 | EJ48: Finance Management Office | EK48: Current payments | EL48: Compensation of employees | EM48: Compensation of employees | EN48: 31332 | EO48: 32075 | EP48: 33939 | EQ48: 33939 | ER48: 33939 | ES48: 36920 | ET48: 36774 | EU48: 37546 | EV48: 0 | EW48: 0 | EX48: 0 | EY48: 36774 | EZ48: 37546 | FA48: 40399.49587 | FB48: Parliament|Administration | FC48: 002 | FD48: 002 | FE48: 002 | FF48: 001 | FG48: 002002 | FH48: 002001 | FI48: 1 | FJ48: 002002002001 | FL48: 002002001 | FT48: 3 | FU48: Communications | FV48: 4 | FW48: Entity Oversight | FX48: 3 | FY48: Communication and Branding
Y49: 25 | AA49: 25 | AB49: 7 | AC49: National Treasury | AF49: Japie Jacobs | AG49: (012) 315 5546 | AH49: Japie.Jacobs@treasury.gov.za | AI49: Rhoda Marais | AJ49: (012) 315 5906 | AK49: Rhoda.Marais@treasury.gov.za | AO49: datafileNAT@treasury.gov.za | AP49: 646670159 | AQ49: 692386151 | AR49: 738270058 | AT49: 7 | AU49: National Treasury | AV49: 647622933 | AW49: 697294714 | AX49: 750568589 | AY49: Capital Transfers and subsidies - Public corporations and private enterprises | BA49: Land and sub-soil assets | DG49: Parliament | DH49: Core Business | DI49: 7 | DJ49: 9 | DK49: 9 | DL49: 0 | DM49: 18 | DN49: 4967 | DO49: 5 | DP49: 1067 | DQ49: 5 | DR49: 1099 | DS49: 5 | DT49: 1291 | DU49: 5 | DV49: 1389 | DW49: Parliament|Core Business | DX49: 002 | DY49: 003 | DZ49: 002003 | EC49: 222 | ED49: 2 | EE49: 2 | EF49: Parliament | EG49: 2 | EH49: Administration | EI49: 2 | EJ49: Finance Management Office | EK49: Current payments | EL49: Goods and services | EM49: Goods and services | EN49: 7408 | EO49: 10714 | EP49: 9576 | EQ49: 9576 | ER49: 9576 | ES49: 7975 | ET49: 7983 | EU49: 8172 | EV49: 0 | EW49: 0 | EX49: 0 | EY49: 7983 | EZ49: 8172 | FA49: 8629.632 | FB49: Parliament|Administration | FC49: 002 | FD49: 002 | FE49: 002 | FF49: 002 | FG49: 002002 | FH49: 002002 | FI49: 2 | FJ49: 002002002002 | FL49: 002002002 | FT49: 3 | FU49: Communications | FV49: 4 | FW49: Entity Oversight | FX49: 4 | FY49: Regulatory Institutions
Y50: 26 | AA50: 26 | AB50: 22 | AC50: Office of the Chief Justice and Judicial Administration | AF50: Werner Krause | AG50: (012) 315 5211 | AH50: Werner.Krause@treasury.gov.za | AI50: Keabetswe Matlwa | AJ50: (012) 395 6678 | AK50: Keabetswe.Matlwa@treasury.gov.za | AO50: datafileNAT@treasury.gov.za | AP50: 1975067 | AQ50: 2082942 | AR50: 2231769 | AT50: 22 | AU50: Office of the Chief Justice and Judicial Administration | AV50: 1984625 | AW50: 2093064 | AX50: 2242458 | AY50: Capital Transfers and subsidies - Non-profit institutions | BA50: Software and other intangible assets | DG50: Parliament | DH50: Core Business | DI50: 8 | DJ50: 31 | DK50: 31 | DL50: 0 | DM50: 46 | DN50: 15234 | DO50: 17 | DP50: 4386 | DQ50: 17 | DR50: 4518 | DS50: 17 | DT50: 5308 | DU50: 17 | DV50: 5711 | DW50: Parliament|Core Business | DX50: 002 | DY50: 003 | DZ50: 002003 | EC50: 222 | ED50: 57 | EE50: 2 | EF50: Parliament | EG50: 2 | EH50: Administration | EI50: 2 | EJ50: Finance Management Office | EK50: Payments for capital assets | EL50: Machinery and equipment | EM50: Other machinery and equipment | EN50: 0 | EO50: 0 | EP50: 824 | EQ50: 824 | ER50: 824 | ES50: 675 | ET50: 700 | EU50: 290 | EV50: 0 | EW50: 0 | EX50: 0 | EY50: 700 | EZ50: 290 | FA50: 306.24 | FB50: Parliament|Administration | FC50: 002 | FD50: 002 | FE50: 002 | FF50: 057 | FG50: 002002 | FH50: 002057 | FI50: 57 | FJ50: 002002002057 | FL50: 002002057 | FT50: 4 | FU50: Cooperative Governance And Traditional Affairs | FV50: 1 | FW50: Administration | FX50: 1 | FY50: Ministry
Y51: 27 | AA51: 27 | AB51: 2 | AC51: Parliament | AF51: Isaac Mabena | AG51: (012) 315 5582 | AH51: Isaac.Mabena@treasury.gov.za | AO51: datafileNAT@treasury.gov.za | AP51: 2287483 | AQ51: 2390828 | AR51: 2552853 | AT51: 2 | AU51: Parliament | AV51: 2268235 | AW51: 2371139 | AX51: 2531189 | AY51: Capital Transfers and subsidies - Households | BA51: Capitalised compensation of employees | DG51: Parliament | DH51: Core Business | DI51: 9 | DJ51: 100 | DK51: 100 | DL51: 0 | DM51: 158 | DN51: 65099 | DO51: 86 | DP51: 28029 | DQ51: 86 | DR51: 28869 | DS51: 86 | DT51: 33921 | DU51: 86 | DV51: 36499 | DW51: Parliament|Core Business | DX51: 002 | DY51: 003 | DZ51: 002003 | EC51: 223 | ED51: 1 | EE51: 2 | EF51: Parliament | EG51: 2 | EH51: Administration | EI51: 3 | EJ51: Internal Audit | EK51: Current payments | EL51: Compensation of employees | EM51: Compensation of employees | EN51: 11908 | EO51: 6536 | EP51: 5666 | EQ51: 5666 | ER51: 5666 | ES51: 6697 | ET51: 6671 | EU51: 6699 | EV51: 0 | EW51: 0 | EX51: 0 | EY51: 6671 | EZ51: 6699 | FA51: 7208.123976 | FB51: Parliament|Administration | FC51: 002 | FD51: 002 | FE51: 003 | FF51: 001 | FG51: 002002 | FH51: 002001 | FI51: 1 | FJ51: 002002003001 | FL51: 002002001 | FT51: 4 | FU51: Cooperative Governance And Traditional Affairs | FV51: 1 | FW51: Administration | FX51: 2 | FY51: Management
Y52: 28 | AA52: 28 | AB52: 8 | AC52: Planning, Monitoring and Evaluation | AF52: Gcobisa Matshaya | AG52: (012) 315 5320 | AH52: Gcobisa.Matshaya@treasury.gov.za | AI52: Thulasizwe Motha | AJ52: (012) 406 9019 | AK52: Thulasizwe.Motha@treasury.gov.za | AO52: datafileNAT@treasury.gov.za | AP52: 907761 | AQ52: 994255 | AR52: 1014042 | AT52: 8 | AU52: Planning, Monitoring and Evaluation | AV52: 923496 | AW52: 942489 | AX52: 995870 | AY52: Payments for capital assets - Buildings and other fixed structures | BA52: Capitalised goods and services | DG52: Parliament | DH52: Core Business | DI52: 10 | DJ52: 313 | DK52: 313 | DL52: 0 | DM52: 262 | DN52: 130828 | DO52: 286 | DP52: 110072 | DQ52: 286 | DR52: 121080 | DS52: 286 | DT52: 142269 | DU52: 286 | DV52: 153081 | DW52: Parliament|Core Business | DX52: 002 | DY52: 003 | DZ52: 002003 | EC52: 223 | ED52: 2 | EE52: 2 | EF52: Parliament | EG52: 2 | EH52: Administration | EI52: 3 | EJ52: Internal Audit | EK52: Current payments | EL52: Goods and services | EM52: Goods and services | EN52: 5842 | EO52: 6567 | EP52: 7652 | EQ52: 7652 | ER52: 7652 | ES52: 6777 | ET52: 7085 | EU52: 7425 | EV52: 0 | EW52: 0 | EX52: 0 | EY52: 7085 | EZ52: 7425 | FA52: 7840.8 | FB52: Parliament|Administration | FC52: 002 | FD52: 002 | FE52: 003 | FF52: 002 | FG52: 002002 | FH52: 002002 | FI52: 2 | FJ52: 002002003002 | FL52: 002002002 | FT52: 4 | FU52: Cooperative Governance And Traditional Affairs | FV52: 1 | FW52: Administration | FX52: 3 | FY52: Corporate Services
Y53: 29 | AA53: 29 | AB53: 23 | AC53: Police | AF53: Nompumelelo Radebe | AG53: (012) 315 5957 | AH53: Nompumelelo.Radebe@treasury.gov.za | AI53: Sithabiso Buthelezi | AJ53: (012) 406 9025 | AK53: Sithabiso.Buthelezi@treasury.gov.za | AO53: datafileNAT@treasury.gov.za | AP53: 87252156 | AQ53: 92954320 | AR53: 99199094 | AT53: 23 | AU53: Police | AV53: 87025128 | AW53: 92741002 | AX53: 98945875 | AY53: Payments for capital assets - Machinery and equipment | BA53: Payments for financial assets | DG53: Parliament | DH53: Core Business | DI53: 11 | DJ53: 173 | DK53: 173 | DL53: 0 | DM53: 66 | DN53: 57897 | DO53: 154 | DP53: 90375 | DQ53: 154 | DR53: 93086 | DS53: 154 | DT53: 109668 | DU53: 154 | DV53: 118003 | DW53: Parliament|Core Business | DX53: 002 | DY53: 003 | DZ53: 002003 | EC53: 223 | ED53: 57 | EE53: 2 | EF53: Parliament | EG53: 2 | EH53: Administration | EI53: 3 | EJ53: Internal Audit | EK53: Payments for capital assets | EL53: Machinery and equipment | EM53: Other machinery and equipment | EN53: 0 | EO53: 0 | EP53: 273 | EQ53: 273 | ER53: 273 | ES53: 183 | ET53: 192 | EU53: 201 | EV53: 0 | EW53: 0 | EX53: 0 | EY53: 192 | EZ53: 201 | FA53: 212.256 | FB53: Parliament|Administration | FC53: 002 | FD53: 002 | FE53: 003 | FF53: 057 | FG53: 002002 | FH53: 002057 | FI53: 57 | FJ53: 002002003057 | FL53: 002002057 | FT53: 4 | FU53: Cooperative Governance And Traditional Affairs | FV53: 1 | FW53: Administration | FX53: 4 | FY53: Financial Services
Y54: 30 | AA54: 30 | AB54: 9 | AC54: Public Enterprises | AF54: Thabiso Molewa | AG54: (012) 315 6780 | AH54: Thabiso.Molewa@treasury.gov.za | AO54: datafileNAT@treasury.gov.za | AP54: 279483 | AQ54: 289938 | AR54: 309644 | AT54: 9 | AU54: Public Enterprises | AV54: 276696 | AW54: 287153 | AX54: 306515 | AY54: Payments for capital assets - Heritage assets | DG54: Parliament | DH54: Core Business | DI54: 12 | DJ54: 9 | DK54: 9 | DL54: 0 | DM54: 67 | DN54: 75694 | DO54: 8 | DP54: 6682 | DQ54: 8 | DR54: 6882 | DS54: 8 | DT54: 8086 | DU54: 8 | DV54: 8701 | DW54: Parliament|Core Business | DX54: 002 | DY54: 003 | DZ54: 002003 | EC54: 224 | ED54: 1 | EE54: 2 | EF54: Parliament | EG54: 2 | EH54: Administration | EI54: 4 | EJ54: Strategic Management & Governance | EK54: Current payments | EL54: Compensation of employees | EM54: Compensation of employees | EN54: 9803 | EO54: 15437 | EP54: 11558 | EQ54: 11558 | ER54: 11558 | ES54: 22683 | ET54: 22550 | EU54: 22855 | EV54: 0 | EW54: 0 | EX54: 0 | EY54: 22550 | EZ54: 22855 | FA54: 24591.97992 | FB54: Parliament|Administration | FC54: 002 | FD54: 002 | FE54: 004 | FF54: 001 | FG54: 002002 | FH54: 002001 | FI54: 1 | FJ54: 002002004001 | FL54: 002002001 | FT54: 4 | FU54: Cooperative Governance And Traditional Affairs | FV54: 1 | FW54: Administration | FX54: 5 | FY54: Internal Audit and Risk Management
Y55: 31 | AA55: 31 | AB55: 10 | AC55: Public Service and Administration | AF55: George Tembo | AG55: (012) 315 5514 | AH55: George.Tembo@treasury.gov.za | AI55: Mokgatla Tema | AJ55: (012) 315 5948 | AK55: Mokgatla.Tema@treasury.gov.za | AO55: datafileNAT@treasury.gov.za | AP55: 900892 | AQ55: 948720 | AR55: 1013458 | AT55: 10 | AU55: Public Service and Administration | AV55: 892144 | AW55: 939648 | AX55: 1003521 | AY55: Payments for capital assets - Specialised military assets | DG55: Parliament | DH55: Core Business | DI55: 13 | DJ55: 111 | DK55: 111 | DL55: 0 | DM55: 31 | DN55: 65066 | DO55: 84 | DP55: 79035 | DQ55: 84 | DR55: 81406 | DS55: 84 | DT55: 95652 | DU55: 84 | DV55: 102560 | DW55: Parliament|Core Business | DX55: 002 | DY55: 003 | DZ55: 002003 | EC55: 224 | ED55: 2 | EE55: 2 | EF55: Parliament | EG55: 2 | EH55: Administration | EI55: 4 | EJ55: Strategic Management & Governance | EK55: Current payments | EL55: Goods and services | EM55: Goods and services | EN55: 5174 | EO55: 2035 | EP55: 2685 | EQ55: 2685 | ER55: 2685 | ES55: 4691 | ET55: 4904 | EU55: 5139 | EV55: 0 | EW55: 0 | EX55: 0 | EY55: 4904 | EZ55: 5139 | FA55: 5426.784 | FB55: Parliament|Administration | FC55: 002 | FD55: 002 | FE55: 004 | FF55: 002 | FG55: 002002 | FH55: 002002 | FI55: 2 | FJ55: 002002004002 | FL55: 002002002 | FT55: 4 | FU55: Cooperative Governance And Traditional Affairs | FV55: 1 | FW55: Administration | FX55: 6 | FY55: Office Accommodation
Y56: 32 | AA56: 32 | AB56: 45 | AC56: Public Service Commission | AF56: George Tembo | AG56: (012) 315 5514 | AH56: George.Tembo@treasury.gov.za | AI56: Viwe Sobudula | AJ56: (012) 315 5015 | AK56: Viwe.Sobudula@treasury.gov.za | AO56: datafileNAT@treasury.gov.za | AP56: 248397 | AQ56: 265722 | AR56: 284794 | AT56: 45 | AU56: Public Service Commission | AV56: 245664 | AW56: 262800 | AX56: 281662 | AY56: Payments for capital assets - Biological assets | DG56: Parliament | DH56: Core Business | DI56: 14 | DJ56: 32 | DK56: 32 | DL56: 0 | DM56: 17 | DN56: 42949 | DO56: 26 | DP56: 28120 | DQ56: 26 | DR56: 28963 | DS56: 26 | DT56: 34032 | DU56: 26 | DV56: 36993 | DW56: Parliament|Core Business | DX56: 002 | DY56: 003 | DZ56: 002003 | EC56: 224 | ED56: 57 | EE56: 2 | EF56: Parliament | EG56: 2 | EH56: Administration | EI56: 4 | EJ56: Strategic Management & Governance | EK56: Payments for capital assets | EL56: Machinery and equipment | EM56: Other machinery and equipment | EN56: 25372 | EO56: 0 | EP56: 265 | EQ56: 265 | ER56: 265 | ES56: 237 | ET56: 249 | EU56: 261 | EV56: 0 | EW56: 0 | EX56: 0 | EY56: 249 | EZ56: 261 | FA56: 275.616 | FB56: Parliament|Administration | FC56: 002 | FD56: 002 | FE56: 004 | FF56: 057 | FG56: 002002 | FH56: 002057 | FI56: 57 | FJ56: 002002004057 | FL56: 002002057 | FT56: 4 | FU56: Cooperative Governance And Traditional Affairs | FV56: 2 | FW56: Regional and Urban Development and Legislative Support | FX56: 1 | FY56: Management: Regional and Urban Development and Legislative Support
Y57: 33 | AA57: 33 | AB57: 11 | AC57: Public Works | AF57: George Tembo | AG57: (012) 315 5514 | AH57: George.Tembo@treasury.gov.za | AI57: Mercy Mhlophe | AJ57: (012) 315 5598 | AK57: Mercy.Mhlophe@treasury.gov.za | AO57: datafileNAT@treasury.gov.za | AP57: 7221159 | AQ57: 7661805 | AR57: 8101277 | AT57: 11 | AU57: Public Works | AV57: 7038130 | AW57: 7494254 | AX57: 7937780 | AY57: Payments for capital assets - Land and sub-soil assets | DG57: Parliament | DH57: Core Business | DI57: 15 | DJ57: 11 | DK57: 11 | DL57: 0 | DM57: 6 | DN57: 16351 | DO57: 9 | DP57: 12152 | DQ57: 9 | DR57: 12516 | DS57: 9 | DT57: 14706 | DU57: 9 | DV57: 15986 | DW57: Parliament|Core Business | DX57: 002 | DY57: 003 | DZ57: 002003 | EC57: 224 | ED57: 62 | EE57: 2 | EF57: Parliament | EG57: 2 | EH57: Administration | EI57: 4 | EJ57: Strategic Management & Governance | EK57: Payments for capital assets | EL57: Software and other intangible assets | EM57: Software and other intangible assets | EN57: 0 | EO57: 4344 | EP57: 0 | EQ57: 0 | ER57: 0 | ES57: 0 | ET57: 0 | EU57: 0 | EV57: 0 | EW57: 0 | EX57: 0 | EY57: 0 | EZ57: 0 | FA57: 0 | FB57: Parliament|Administration | FC57: 002 | FD57: 002 | FE57: 004 | FF57: 062 | FG57: 002002 | FH57: 002062 | FI57: 62 | FJ57: 002002004062 | FL57: 002002062 | FT57: 4 | FU57: Cooperative Governance And Traditional Affairs | FV57: 2 | FW57: Regional and Urban Development and Legislative Support | FX57: 2 | FY57: Local Government Legislative Support and Institutional Establishment
Y58: 34 | AA58: 34 | AB58: 39 | AC58: Rural Development and Land Reform | AF58: Bothwell Deka | AG58: (012) 395 6784 | AH58: Bothwell.Deka@treasury.gov.za | AI58: Kismore Mangondo | AJ58: (012) 315 5558 | AK58: Kismore.Mangondo@treasury.gov.za | AO58: datafileNAT@treasury.gov.za | AP58: 10549450 | AQ58: 11078750 | AR58: 11746199 | AT58: 39 | AU58: Rural Development and Land Reform | AV58: 10274240 | AW58: 10755429 | AX58: 11408730 | AY58: Payments for capital assets - Software and other intangible assets | DG58: Parliament | DH58: Core Business | DI58: 16 | DJ58: 2 | DK58: 2 | DL58: 0 | DM58: 0 | DN58: 0 | DO58: 1 | DP58: 1399 | DQ58: 1 | DR58: 1785 | DS58: 1 | DT58: 2097 | DU58: 1 | DV58: 2278 | DW58: Parliament|Core Business | DX58: 002 | DY58: 003 | DZ58: 002003 | EC58: 231 | ED58: 1 | EE58: 2 | EF58: Parliament | EG58: 3 | EH58: Core Business | EI58: 1 | EJ58: Office of the Deputy Secretary | EK58: Current payments | EL58: Compensation of employees | EM58: Compensation of employees | EN58: 0 | EO58: 0 | EP58: 2417 | EQ58: 2417 | ER58: 2417 | ES58: 3508 | ET58: 3491 | EU58: 3589 | EV58: 0 | EW58: 0 | EX58: 0 | EY58: 3491 | EZ58: 3589 | FA58: 3861.763987 | FB58: Parliament|Core Business | FC58: 002 | FD58: 003 | FE58: 001 | FF58: 001 | FG58: 002003 | FH58: 002001 | FI58: 1 | FJ58: 002003001001 | FL58: 002003001 | FT58: 4 | FU58: Cooperative Governance And Traditional Affairs | FV58: 2 | FW58: Regional and Urban Development and Legislative Support | FX58: 3 | FY58: Urban Development Planning
Y59: 35 | AA59: 35 | AB59: 30 | AC59: Science and Technology | AF59: Ricardo Andrews | AG59: (012) 315 5766 | AH59: Ricardo.Andrews@treasury.gov.za | AO59: datafileNAT@treasury.gov.za | AP59: 7562521 | AQ59: 7756351 | AR59: 8197335 | AT59: 30 | AU59: Science and Technology | AV59: 7557229 | AW59: 7916025 | AX59: 8191351 | AY59: Payments for financial assets | DG59: Parliament | DH59: Support Services | DI59: 7 | DJ59: 24 | DK59: 24 | DL59: 0 | DM59: 27 | DN59: 7246 | DO59: 0 | DP59: 0 | DQ59: 0 | DR59: 0 | DS59: 0 | DT59: 0 | DU59: 0 | DV59: 0 | DW59: Parliament|Support Services | DX59: 002 | DY59: 004 | DZ59: 002004 | EC59: 231 | ED59: 2 | EE59: 2 | EF59: Parliament | EG59: 3 | EH59: Core Business | EI59: 1 | EJ59: Office of the Deputy Secretary | EK59: Current payments | EL59: Goods and services | EM59: Goods and services | EN59: 0 | EO59: 0 | EP59: 83 | EQ59: 83 | ER59: 83 | ES59: 1636 | ET59: 1860 | EU59: 1805 | EV59: 0 | EW59: 0 | EX59: 0 | EY59: 1860 | EZ59: 1805 | FA59: 1906.08 | FB59: Parliament|Core Business | FC59: 002 | FD59: 003 | FE59: 001 | FF59: 002 | FG59: 002003 | FH59: 002002 | FI59: 2 | FJ59: 002003001002 | FL59: 002003002 | FT59: 4 | FU59: Cooperative Governance And Traditional Affairs | FV59: 2 | FW59: Regional and Urban Development and Legislative Support | FX59: 4 | FY59: Spatial Planning: Districts and Regions
Y60: 36 | AA60: 36 | AB60: 31 | AC60: Small Business Development | AF60: Rudzani Sikhwari | AG60: (012) 315 5823 | AH60: Rudzani.Sikhwari@treasury.gov.za | AO60: datafileNAT@treasury.gov.za | AP60: 1459453 | AQ60: 1539979 | AR60: 1629080 | AT60: 31 | AU60: Small Business Development | AV60: 1449796 | AW60: 1529874 | AX60: 1618267 | DG60: Parliament | DH60: Support Services | DI60: 8 | DJ60: 209 | DK60: 209 | DL60: 0 | DM60: 180 | DN60: 49088 | DO60: 184 | DP60: 42155 | DQ60: 184 | DR60: 46032 | DS60: 184 | DT60: 49489 | DU60: 184 | DV60: 52996 | DW60: Parliament|Support Services | DX60: 002 | DY60: 004 | DZ60: 002004 | EC60: 232 | ED60: 1 | EE60: 2 | EF60: Parliament | EG60: 3 | EH60: Core Business | EI60: 2 | EJ60: National Assembly | EK60: Current payments | EL60: Compensation of employees | EM60: Compensation of employees | EN60: 20943 | EO60: 25267 | EP60: 18878 | EQ60: 18878 | ER60: 18878 | ES60: 19987 | ET60: 19187 | EU60: 19304 | EV60: 0 | EW60: 0 | EX60: 0 | EY60: 19187 | EZ60: 19304 | FA60: 20771.10393 | FB60: Parliament|Core Business | FC60: 002 | FD60: 003 | FE60: 002 | FF60: 001 | FG60: 002003 | FH60: 002001 | FI60: 1 | FJ60: 002003002001 | FL60: 002003001 | FT60: 4 | FU60: Cooperative Governance And Traditional Affairs | FV60: 2 | FW60: Regional and Urban Development and Legislative Support | FX60: 5 | FY60: Intergovernmental Policy and Practice
Y61: 37 | AA61: 37 | AB61: 17 | AC61: Social Development | AF61: Lindi Mzankomo | AG61: (012) 315 5256 | AH61: Lindi.Mzankomo@treasury.gov.za | AI61: Yusuf Mayet | AJ61: (012) 315 5189 | AK61: Yusuf.Mayet@treasury.gov.za | AO61: datafileNAT@treasury.gov.za | AP61: 161520096 | AQ61: 174808504 | AR61: 186810162 | AT61: 17 | AU61: Social Development | AV61: 160707768 | AW61: 173186694 | AX61: 186109718 | DG61: Parliament | DH61: Support Services | DI61: 9 | DJ61: 91 | DK61: 91 | DL61: 0 | DM61: 70 | DN61: 21817 | DO61: 78 | DP61: 22713 | DQ61: 78 | DR61: 24741 | DS61: 78 | DT61: 26506 | DU61: 78 | DV61: 28509 | DW61: Parliament|Support Services | DX61: 002 | DY61: 004 | DZ61: 002004 | EC61: 232 | ED61: 2 | EE61: 2 | EF61: Parliament | EG61: 3 | EH61: Core Business | EI61: 2 | EJ61: National Assembly | EK61: Current payments | EL61: Goods and services | EM61: Goods and services | EN61: 4212 | EO61: 2077 | EP61: 7118 | EQ61: 7118 | ER61: 7118 | ES61: 7054 | ET61: 7904 | EU61: 7863 | EV61: 0 | EW61: 0 | EX61: 0 | EY61: 7904 | EZ61: 7863 | FA61: 8303.328 | FB61: Parliament|Core Business | FC61: 002 | FD61: 003 | FE61: 002 | FF61: 002 | FG61: 002003 | FH61: 002002 | FI61: 2 | FJ61: 002003002002 | FL61: 002003002 | FT61: 4 | FU61: Cooperative Governance And Traditional Affairs | FV61: 2 | FW61: Regional and Urban Development and Legislative Support | FX61: 6 | FY61: Municipal Demarcation Transition Grant
Y62: 38 | AA62: 38 | AB62: 40 | AC62: Sport and Recreation South Africa | AF62: Spencer Janari | AG62: (012) 315 5436 | AH62: Spencer.Janari@treasury.gov.za | AI62: Letsepa Pakkies | AJ62: (012) 395 6656 | AK62: Letsepa.Pakkies@treasury.gov.za | AO62: datafileNAT@treasury.gov.za | AP62: 1074986 | AQ62: 1135004 | AR62: 1200831 | AT62: 40 | AU62: Sport and Recreation South Africa | AV62: 1066564 | AW62: 1125570 | AX62: 1190865 | DG62: Parliament | DH62: Support Services | DI62: 10 | DJ62: 98 | DK62: 98 | DL62: 0 | DM62: 61 | DN62: 32161 | DO62: 91 | DP62: 31097 | DQ62: 91 | DR62: 34020 | DS62: 91 | DT62: 36470 | DU62: 91 | DV62: 39278 | DW62: Parliament|Support Services | DX62: 002 | DY62: 004 | DZ62: 002004 | EC62: 232 | ED62: 57 | EE62: 2 | EF62: Parliament | EG62: 3 | EH62: Core Business | EI62: 2 | EJ62: National Assembly | EK62: Payments for capital assets | EL62: Machinery and equipment | EM62: Other machinery and equipment | EN62: 172 | EO62: 0 | EP62: 0 | EQ62: 0 | ER62: 0 | ES62: 0 | ET62: 0 | EU62: 0 | EV62: 0 | EW62: 0 | EX62: 0 | EY62: 0 | EZ62: 0 | FA62: 0 | FB62: Parliament|Core Business | FC62: 002 | FD62: 003 | FE62: 002 | FF62: 057 | FG62: 002003 | FH62: 002057 | FI62: 57 | FJ62: 002003002057 | FL62: 002003057 | FT62: 4 | FU62: Cooperative Governance And Traditional Affairs | FV62: 3 | FW62: Institutional Development | FX62: 1 | FY62: Management: Institutional Development
Y63: 39 | AA63: 39 | AB63: 12 | AC63: Statistics South Africa | AF63: Japie Jacobs | AG63: (012) 315 5546 | AH63: Japie.Jacobs@treasury.gov.za | AI63: Thapelo Mokwana | AJ63: (012) 315 5796 | AK63: Thapelo.Mokwana@treasury.gov.za | AO63: datafileNAT@treasury.gov.za | AP63: 2168280 | AQ63: 2200423 | AR63: 2333120 | AT63: 12 | AU63: Statistics South Africa | AV63: 2146313 | AW63: 2248769 | AX63: 2309125 | DG63: Parliament | DH63: Support Services | DI63: 11 | DJ63: 36 | DK63: 36 | DL63: 0 | DM63: 54 | DN63: 36740 | DO63: 29 | DP63: 14541 | DQ63: 29 | DR63: 15836 | DS63: 29 | DT63: 16974 | DU63: 29 | DV63: 18238 | DW63: Parliament|Support Services | DX63: 002 | DY63: 004 | DZ63: 002004 | EC63: 233 | ED63: 1 | EE63: 2 | EF63: Parliament | EG63: 3 | EH63: Core Business | EI63: 3 | EJ63: National Council of Provinces | EK63: Current payments | EL63: Compensation of employees | EM63: Compensation of employees | EN63: 19759 | EO63: 21397 | EP63: 22269 | EQ63: 22269 | ER63: 22269 | ES63: 23588 | ET63: 22699 | EU63: 22403 | EV63: 0 | EW63: 0 | EX63: 0 | EY63: 22699 | EZ63: 22403 | FA63: 24105.62792 | FB63: Parliament|Core Business | FC63: 002 | FD63: 003 | FE63: 003 | FF63: 001 | FG63: 002003 | FH63: 002001 | FI63: 1 | FJ63: 002003003001 | FL63: 002003001 | FT63: 4 | FU63: Cooperative Governance And Traditional Affairs | FV63: 3 | FW63: Institutional Development | FX63: 2 | FY63: Human Resources Management Systems
Y64: 40 | AA64: 40 | AB64: 32 | AC64: Telecommunications and Postal Services | AF64: Rezah Atcha | AG64: (012) 315 5287 | AH64: Rezah.Atcha@treasury.gov.za | AI64: Keitumetse Motshegwe | AJ64: (012) 395 6750 | AK64: keitumetse.motshegwe@treasury.gov.za | AO64: datafileNAT@treasury.gov.za | AP64: 1636306 | AQ64: 1751126 | AR64: 1853726 | AT64: 32 | AU64: Telecommunications and Postal Services | AV64: 1614206 | AW64: 1727533 | AX64: 1828804 | DG64: Parliament | DH64: Support Services | DI64: 12 | DJ64: 70 | DK64: 70 | DL64: 0 | DM64: 18 | DN64: 19093 | DO64: 58 | DP64: 41180 | DQ64: 58 | DR64: 45886 | DS64: 58 | DT64: 49181 | DU64: 58 | DV64: 52873 | DW64: Parliament|Support Services | DX64: 002 | DY64: 004 | DZ64: 002004 | EC64: 233 | ED64: 2 | EE64: 2 | EF64: Parliament | EG64: 3 | EH64: Core Business | EI64: 3 | EJ64: National Council of Provinces | EK64: Current payments | EL64: Goods and services | EM64: Goods and services | EN64: 14526 | EO64: 7414 | EP64: 12691 | EQ64: 12691 | ER64: 12691 | ES64: 12575 | ET64: 14092 | EU64: 14310 | EV64: 0 | EW64: 0 | EX64: 0 | EY64: 14092 | EZ64: 14310 | FA64: 15111.36 | FB64: Parliament|Core Business | FC64: 002 | FD64: 003 | FE64: 003 | FF64: 002 | FG64: 002003 | FH64: 002002 | FI64: 2 | FJ64: 002003003002 | FL64: 002003002 | FT64: 4 | FU64: Cooperative Governance And Traditional Affairs | FV64: 3 | FW64: Institutional Development | FX64: 3 | FY64: Municipal Finance
Y65: 41 | AA65: 41 | AB65: 1 | AC65: The Presidency | AF65: Gcobisa Matshaya | AG65: (012) 315 532 | AH65: Gcobisa.Matshaya@treasury.gov.za | AI65: Thulasizwe Motha | AJ65: (012) 406 9019 | AK65: Thulasizwe.Motha@treasury.gov.za | AO65: datafileNAT@treasury.gov.za | AP65: 506646 | AQ65: 526770 | AR65: 562922 | AT65: 1 | AU65: The Presidency | AV65: 501542 | AW65: 521626 | AX65: 557178 | DG65: Parliament | DH65: Support Services | DI65: 13 | DJ65: 17 | DK65: 17 | DL65: 0 | DM65: 27 | DN65: 34494 | DO65: 13 | DP65: 10604 | DQ65: 13 | DR65: 11601 | DS65: 13 | DT65: 12436 | DU65: 13 | DV65: 13394 | DW65: Parliament|Support Services | DX65: 002 | DY65: 004 | DZ65: 002004 | EC65: 233 | ED65: 56 | EE65: 2 | EF65: Parliament | EG65: 3 | EH65: Core Business | EI65: 3 | EJ65: National Council of Provinces | EK65: Payments for capital assets | EL65: Machinery and equipment | EM65: Transport equipment | EN65: 141 | EO65: 0 | EP65: 0 | EQ65: 0 | ER65: 0 | ES65: 0 | ET65: 0 | EU65: 0 | EV65: 0 | EW65: 0 | EX65: 0 | EY65: 0 | EZ65: 0 | FA65: 0 | FB65: Parliament|Core Business | FC65: 002 | FD65: 003 | FE65: 003 | FF65: 056 | FG65: 002003 | FH65: 002056 | FI65: 56 | FJ65: 002003003056 | FL65: 002003056 | FT65: 4 | FU65: Cooperative Governance And Traditional Affairs | FV65: 3 | FW65: Institutional Development | FX65: 4 | FY65: Citizen Engagement
Y66: 42 | AA66: 42 | AB66: 33 | AC66: Tourism | AF66: Ricardo Andrews | AG66: (012) 315 5766 | AH66: Ricardo.Andrews@treasury.gov.za | AI66: Thamsanqa Nhlapo | AJ66: (012) 315 5024 | AK66: Thamsanqa.Nhlapo@treasury.gov.za | AO66: datafileNAT@treasury.gov.za | AP66: 2067301 | AQ66: 2172618 | AR66: 2300001 | AT66: 33 | AU66: Tourism | AV66: 2030156 | AW66: 2163067 | AX66: 2258065 | DG66: Parliament | DH66: Support Services | DI66: 14 | DJ66: 18 | DK66: 18 | DL66: 0 | DM66: 9 | DN66: 21494 | DO66: 18 | DP66: 18926 | DQ66: 18 | DR66: 20902 | DS66: 18 | DT66: 22335 | DU66: 18 | DV66: 23478 | DW66: Parliament|Support Services | DX66: 002 | DY66: 004 | DZ66: 002004 | EC66: 234 | ED66: 1 | EE66: 2 | EF66: Parliament | EG66: 3 | EH66: Core Business | EI66: 4 | EJ66: Core Business Support | EK66: Current payments | EL66: Compensation of employees | EM66: Compensation of employees | EN66: 155239 | EO66: 263960 | EP66: 138889 | EQ66: 166205 | ER66: 166205 | ES66: 169248 | ET66: 186706 | EU66: 189535 | EV66: 0 | EW66: 0 | EX66: 0 | EY66: 186706 | EZ66: 189535 | FA66: 203939.6593 | FB66: Parliament|Core Business | FC66: 002 | FD66: 003 | FE66: 004 | FF66: 001 | FG66: 002003 | FH66: 002001 | FI66: 1 | FJ66: 002003004001 | FL66: 002003001 | FT66: 4 | FU66: Cooperative Governance And Traditional Affairs | FV66: 3 | FW66: Institutional Development | FX66: 5 | FY66: Anti-Corruption and Good Governance
Y67: 43 | AA67: 43 | AB67: 34 | AC67: Trade and Industry | AF67: Nokuthula Ngomane | AG67: (012) 315 5223 | AH67: Nokuthula.Ngomane@treasury.gov.za | AI67: Millicent Movare | AJ67: (012) 315 5279 | AK67: Millicent.Movare@treasury.gov.za | AO67: datafileNAT@treasury.gov.za | AP67: 9290480 | AQ67: 8631385 | AR67: 9133510 | AT67: 34 | AU67: Trade and Industry | AV67: 9274795 | AW67: 9965857 | AX67: 9116002 | CY67: =+CQ67&CR67&CS67&CT67&CU67 ->  | DG67: Parliament | DH67: Support Services | DI67: 15 | DJ67: 14 | DK67: 14 | DL67: 0 | DM67: 2 | DN67: 5191 | DO67: 11 | DP67: 14256 | DQ67: 11 | DR67: 14771 | DS67: 11 | DT67: 15789 | DU67: 11 | DV67: 17603 | DW67: Parliament|Support Services | DX67: 002 | DY67: 004 | DZ67: 002004 | EC67: 234 | ED67: 2 | EE67: 2 | EF67: Parliament | EG67: 3 | EH67: Core Business | EI67: 4 | EJ67: Core Business Support | EK67: Current payments | EL67: Goods and services | EM67: Goods and services | EN67: 119618 | EO67: 64401 | EP67: 88621 | EQ67: 88621 | ER67: 88621 | ES67: 72194 | ET67: 77259 | EU67: 86497 | EV67: 0 | EW67: 0 | EX67: 0 | EY67: 77259 | EZ67: 86497 | FA67: 91340.832 | FB67: Parliament|Core Business | FC67: 002 | FD67: 003 | FE67: 004 | FF67: 002 | FG67: 002003 | FH67: 002002 | FI67: 2 | FJ67: 002003004002 | FL67: 002003002 | FT67: 4 | FU67: Cooperative Governance And Traditional Affairs | FV67: 3 | FW67: Institutional Development | FX67: 6 | FY67: Municipal Property Rates
Y68: 44 | AA68: 44 | AB68: 43 | AC68: Traditional Affairs | AF68: Misaveni Ngobeni | AG68: (012) 315 5305 | AH68: misaveni.ngobeni@treasury.gov.za | AI68: Millicent Mulaudzi | AJ68: (012) 395 6576 | AK68: Millicent.Mulaudzi@treasury.gov.za | AO68: datafileNAT@treasury.gov.za | AP68: 141709 | AQ68: 150733 | AR68: 160651 | AT68: 43 | AU68: Traditional Affairs | AV68: 140596 | AW68: 149546 | AX68: 159381 | CZ68: =+CQ68&CR68&CS68 ->  | DA68: =+CQ68&CR68&CS68&CU68 ->  | DG68: Parliament | DH68: Support Services | DI68: 16 | DJ68: 5 | DK68: 5 | DL68: 0 | DM68: 1 | DN68: 2611 | DO68: 1 | DP68: 1366 | DQ68: 1 | DR68: 1466 | DS68: 1 | DT68: 1716 | DU68: 1 | DV68: 2003 | DW68: Parliament|Support Services | DX68: 002 | DY68: 004 | DZ68: 002004 | EC68: 234 | ED68: 57 | EE68: 2 | EF68: Parliament | EG68: 3 | EH68: Core Business | EI68: 4 | EJ68: Core Business Support | EK68: Payments for capital assets | EL68: Machinery and equipment | EM68: Other machinery and equipment | EN68: 1708 | EO68: 0 | EP68: 363 | EQ68: 363 | ER68: 363 | ES68: 617 | ET68: 318 | EU68: 955 | EV68: 0 | EW68: 0 | EX68: 0 | EY68: 318 | EZ68: 955 | FA68: 1008.48 | FB68: Parliament|Core Business | FC68: 002 | FD68: 003 | FE68: 004 | FF68: 057 | FG68: 002003 | FH68: 002057 | FI68: 57 | FJ68: 002003004057 | FL68: 002003057 | FT68: 4 | FU68: Cooperative Governance And Traditional Affairs | FV68: 3 | FW68: Institutional Development | FX68: 7 | FY68: Local Government Equitable Share
Y69: 45 | AA69: 45 | AB69: 35 | AC69: Transport | AF69: Ulrike Rwida | AG69: (012) 315 5578 | AH69: Ulrike.Rwida@treasury.gov.za | AI69: Luyolo Ntlangula | AJ69: (012) 315 5571 | AK69: Luyolo.Ntlangula@treasury.gov.za | AO69: datafileNAT@treasury.gov.za | AP69: 61100711 | AQ69: 65453336 | AR69: 69127880 | AT69: 35 | AU69: Transport | AV69: 59795180 | AW69: 64950207 | AX69: 68545887 | DG69: Parliament | DH69: Associated Services | DI69: 8 | DJ69: 2 | DK69: 2 | DL69: 0 | DM69: 1 | DN69: 285 | DO69: 1 | DP69: 278 | DQ69: 1 | DR69: 289 | DS69: 1 | DT69: 304 | DU69: 1 | DV69: 323 | DW69: Parliament|Associated Services | DX69: 002 | DY69: 005 | DZ69: 002005 | EC69: 235 | ED69: 1 | EE69: 2 | EF69: Parliament | EG69: 3 | EH69: Core Business | EI69: 5 | EJ69: Knowledge and Information Services | EK69: Current payments | EL69: Compensation of employees | EM69: Compensation of employees | EN69: 151126 | EO69: 143485 | EP69: 143358 | EQ69: 143358 | ER69: 143358 | ES69: 147275 | ET69: 159831 | EU69: 157004 | EV69: 0 | EW69: 0 | EX69: 0 | EY69: 159831 | EZ69: 157004 | FA69: 168936.3034 | FB69: =+EF69&"|"&EH69 -> Parliament|Core Business | FC69: =REPT("0",3-LEN(EE69))&EE69 -> 002 | FD69: =REPT("0",3-LEN(EG69))&EG69 -> 003 | FE69: =REPT("0",3-LEN(EI69))&EI69 -> 005 | FF69: =REPT("0",3-LEN(ED69))&ED69 -> 001 | FG69: =+FC69&FD69 -> 002003 | FH69: =+FC69&FF69 -> 002001 | FI69: =+FF69*1 -> 1 | FJ69: =FG69&FE69&REPT("0",3-LEN(FI69))&FI69 -> 002003005001 | FL69: =LEFT(FJ69,6)&FF69 -> 002003001 | FT69: 4 | FU69: Cooperative Governance And Traditional Affairs | FV69: 3 | FW69: Institutional Development | FX69: 8 | FY69: Municipal Infrastructure Grant
Y70: 46 | AA70: 46 | AB70: 36 | AC70: Water and Sanitation | AF70: Misaveni Ngobeni | AG70: (012) 315 5305 | AH70: misaveni.ngobeni@treasury.gov.za | AI70: Iqbal Mahomed Alli | AJ70: (012) 315 5809 | AK70: Iqbal.Mahomed-Alli@treasury.gov.za | AO70: datafileNAT@treasury.gov.za | AP70: 16038266 | AQ70: 17159677 | AR70: 18155413 | AT70: 36 | AU70: Water and Sanitation | AV70: 15107449 | AW70: 16560799 | AX70: 17514811 | DG70: Parliament | DH70: Associated Services | DI70: 9 | DJ70: 6 | DK70: 6 | DL70: 0 | DM70: 8 | DN70: 4584 | DO70: 6 | DP70: 2035 | DQ70: 6 | DR70: 2112 | DS70: 6 | DT70: 2229 | DU70: 6 | DV70: 2367 | DW70: Parliament|Associated Services | DX70: 002 | DY70: 005 | DZ70: 002005 | EC70: 235 | ED70: 2 | EE70: 2 | EF70: Parliament | EG70: 3 | EH70: Core Business | EI70: 5 | EJ70: Knowledge and Information Services | EK70: Current payments | EL70: Goods and services | EM70: Goods and services | EN70: 27095 | EO70: 13382 | EP70: 13860 | EQ70: 13860 | ER70: 13860 | ES70: 20195 | ET70: 14212 | EU70: 21890 | EV70: 0 | EW70: 0 | EX70: 0 | EY70: 14212 | EZ70: 21890 | FA70: 23115.84 | FB70: Parliament|Core Business | FC70: 002 | FD70: 003 | FE70: 005 | FF70: 002 | FG70: 002003 | FH70: 002002 | FI70: 2 | FJ70: 002003005002 | FL70: 002003002 | FT70: 4 | FU70: Cooperative Governance And Traditional Affairs | FV70: 3 | FW70: Institutional Development | FX70: 9 | FY70: Municipal Systems Improvement Grant
Y71: 47 | AA71: 47 | AB71: 13 | AC71: Women | AF71: George Tembo | AG71: (012) 315 5514 | AH71: George.Tembo@treasury.gov.za | AI71: Viwe Sobudula | AJ71: (012) 315 5015 | AK71: Viwe.Sobudula@treasury.gov.za | AO71: datafileNAT@treasury.gov.za | AP71: 207440 | AQ71: 216876 | AR71: 230517 | AT71: 13 | AU71: Women | AV71: 206163 | AW71: 215606 | AX71: 229081 | DG71: Parliament | DH71: Associated Services | DI71: 10 | DJ71: 4 | DK71: 4 | DL71: 0 | DM71: 2 | DN71: 2042 | DO71: 4 | DP71: 1541 | DQ71: 4 | DR71: 1600 | DS71: 4 | DT71: 1688 | DU71: 4 | DV71: 1792 | DW71: Parliament|Associated Services | DX71: 002 | DY71: 005 | DZ71: 002005 | EC71: 235 | ED71: 57 | EE71: 2 | EF71: Parliament | EG71: 3 | EH71: Core Business | EI71: 5 | EJ71: Knowledge and Information Services | EK71: Payments for capital assets | EL71: Machinery and equipment | EM71: Other machinery and equipment | EN71: 886 | EO71: 0 | EP71: 505 | EQ71: 505 | ER71: 505 | ES71: 438 | ET71: 268 | EU71: 377 | EV71: 0 | EW71: 0 | EX71: 0 | EY71: 268 | EZ71: 377 | FA71: 398.112 | FB71: Parliament|Core Business | FC71: 002 | FD71: 003 | FE71: 005 | FF71: 057 | FG71: 002003 | FH71: 002057 | FI71: 57 | FJ71: 002003005057 | FL71: 002003057 | FT71: 4 | FU71: Cooperative Governance And Traditional Affairs | FV71: 3 | FW71: Institutional Development | FX71: 10 | FY71: Department of Traditional Affairs
AP72: =SUM(AP25:AP71) -> 1412958850 | AQ72: =SUM(AQ25:AQ71) -> 1509109823 | AR72: =SUM(AR25:AR71) -> 1606959730 | AT72: Grand Total | AV72: =SUM(AV25:AV71) -> 1405835237 | AW72: =SUM(AW25:AW71) -> 1513958440 | AX72: 1619433560 | DG72: Parliament | DH72: Associated Services | DI72: 11 | DJ72: 3 | DK72: 3 | DL72: 0 | DM72: 2 | DN72: 2972 | DO72: 3 | DP72: 1916 | DQ72: 3 | DR72: 1989 | DS72: 3 | DT72: 2098 | DU72: 3 | DV72: 2228 | DW72: Parliament|Associated Services | DX72: 002 | DY72: 005 | DZ72: 002005 | EC72: 236 | ED72: 1 | EE72: 2 | EF72: Parliament | EG72: 3 | EH72: Core Business | EI72: 6 | EJ72: International Relations & Protocol | EK72: Current payments | EL72: Compensation of employees | EM72: Compensation of employees | EN72: 13411 | EO72: 19976 | EP72: 15672 | EQ72: 8190 | ER72: 8190 | ES72: 16598 | ET72: 15928 | EU72: 27216 | EV72: 0 | EW72: 0 | EX72: 0 | EY72: 15928 | EZ72: 27216 | FA72: 29284.4159 | FB72: Parliament|Core Business | FC72: 002 | FD72: 003 | FE72: 006 | FF72: 001 | FG72: 002003 | FH72: 002001 | FI72: 1 | FJ72: 002003006001 | FL72: 002003001 | FT72: 4 | FU72: Cooperative Governance And Traditional Affairs | FV72: 3 | FW72: Institutional Development | FX72: 11 | FY72: Municipal Infrastructure Support Agency
DG73: Parliament | DH73: Associated Services | DI73: 12 | DJ73: 1 | DK73: 1 | DL73: 0 | DM73: 0 | DN73: 0 | DO73: 1 | DP73: 699 | DQ73: 1 | DR73: 726 | DS73: 1 | DT73: 765 | DU73: 1 | DV73: 813 | DW73: Parliament|Associated Services | DX73: 002 | DY73: 005 | DZ73: 002005 | EC73: 236 | ED73: 2 | EE73: 2 | EF73: Parliament | EG73: 3 | EH73: Core Business | EI73: 6 | EJ73: International Relations & Protocol | EK73: Current payments | EL73: Goods and services | EM73: Goods and services | EN73: 31825 | EO73: 20712 | EP73: 37898 | EQ73: 37898 | ER73: 37898 | ES73: 31070 | ET73: 36482 | EU73: 28190 | EV73: 0 | EW73: 0 | EX73: 0 | EY73: 36482 | EZ73: 28190 | FA73: 29768.64 | FB73: Parliament|Core Business | FC73: 002 | FD73: 003 | FE73: 006 | FF73: 002 | FG73: 002003 | FH73: 002002 | FI73: 2 | FJ73: 002003006002 | FL73: 002003002 | FT73: 4 | FU73: Cooperative Governance And Traditional Affairs | FV73: 4 | FW73: National Disaster Management Centre | FX73: 1 | FY73: Management: National Disaster Management Centre
DG74: Parliament | DH74: Associated Services | DI74: 13 | DJ74: 0 | DK74: 0 | DL74: 0 | DM74: 1 | DN74: 1434 | DO74: 0 | DP74: 0 | DQ74: 0 | DR74: 0 | DS74: 0 | DT74: 0 | DU74: 0 | DV74: 0 | DW74: Parliament|Associated Services | DX74: 002 | DY74: 005 | DZ74: 002005 | EC74: 236 | ED74: 57 | EE74: 2 | EF74: Parliament | EG74: 3 | EH74: Core Business | EI74: 6 | EJ74: International Relations & Protocol | EK74: Payments for capital assets | EL74: Machinery and equipment | EM74: Other machinery and equipment | EN74: 2841 | EO74: 0 | EP74: 0 | EQ74: 0 | ER74: 0 | ES74: 0 | ET74: 0 | EU74: 0 | EV74: 0 | EW74: 0 | EX74: 0 | EY74: 0 | EZ74: 0 | FA74: 0 | FB74: Parliament|Core Business | FC74: 002 | FD74: 003 | FE74: 006 | FF74: 057 | FG74: 002003 | FH74: 002057 | FI74: 57 | FJ74: 002003006057 | FL74: 002003057 | FT74: 4 | FU74: Cooperative Governance And Traditional Affairs | FV74: 4 | FW74: National Disaster Management Centre | FX74: 2 | FY74: Disaster Risk Reduction, Capacity Building and Intervention
DG75: Parliament | DH75: Associated Services | DI75: 14 | DJ75: 1 | DK75: 1 | DL75: 0 | DM75: 1 | DN75: 1509 | DO75: 1 | DP75: 1129 | DQ75: 1 | DR75: 1172 | DS75: 1 | DT75: 1236 | DU75: 1 | DV75: 1313 | DW75: Parliament|Associated Services | DX75: 002 | DY75: 005 | DZ75: 002005 | EC75: 241 | ED75: 1 | EE75: 2 | EF75: Parliament | EG75: 4 | EH75: Support Services | EI75: 1 | EJ75: Office of the Deputy Secretary | EK75: Current payments | EL75: Compensation of employees | EM75: Compensation of employees | EN75: 0 | EO75: 2444 | EP75: 2500 | EQ75: 2500 | ER75: 2500 | ES75: 2636 | ET75: 2613 | EU75: 2561 | EV75: 0 | EW75: 0 | EX75: 0 | EY75: 2613 | EZ75: 2561 | FA75: 2755.635991 | FB75: Parliament|Support Services | FC75: 002 | FD75: 004 | FE75: 001 | FF75: 001 | FG75: 002004 | FH75: 002001 | FI75: 1 | FJ75: 002004001001 | FL75: 002004001 | FT75: 4 | FU75: Cooperative Governance And Traditional Affairs | FV75: 4 | FW75: National Disaster Management Centre | FX75: 3 | FY75: Legislation and Policy Management
DG76: Parliament | DH76: Associated Services | DI76: 15 | DJ76: 2 | DK76: 2 | DL76: 0 | DM76: 0 | DN76: 0 | DO76: 1 | DP76: 1318 | DQ76: 1 | DR76: 1368 | DS76: 1 | DT76: 1443 | DU76: 1 | DV76: 1533 | DW76: Parliament|Associated Services | DX76: 002 | DY76: 005 | DZ76: 002005 | EC76: 241 | ED76: 2 | EE76: 2 | EF76: Parliament | EG76: 4 | EH76: Support Services | EI76: 1 | EJ76: Office of the Deputy Secretary | EK76: Current payments | EL76: Goods and services | EM76: Goods and services | EN76: 5 | EO76: 309 | EP76: 1050 | EQ76: 1050 | ER76: 1050 | ES76: 2416 | ET76: 2589 | EU76: 2382 | EV76: 0 | EW76: 0 | EX76: 0 | EY76: 2589 | EZ76: 2382 | FA76: 2515.392 | FB76: Parliament|Support Services | FC76: 002 | FD76: 004 | FE76: 001 | FF76: 002 | FG76: 002004 | FH76: 002002 | FI76: 2 | FJ76: 002004001002 | FL76: 002004002 | FT76: 4 | FU76: Cooperative Governance And Traditional Affairs | FV76: 4 | FW76: National Disaster Management Centre | FX76: 4 | FY76: Integrated Provincial Disaster Management Support, Monitoring and Evaluation Systems
DG77: Parliament | DH77: Associated Services | DI77: Other please specify | DJ77: 0 | DK77: 0 | DL77: 0 | DM77: 0 | DN77: 0 | DO77: 0 | DP77: 0 | DQ77: 0 | DR77: 50955 | DS77: 0 | DT77: 0 | DU77: 0 | DV77: 0 | DW77: Parliament|Associated Services | DX77: 002 | DY77: 005 | DZ77: 002005 | EC77: 241 | ED77: 57 | EE77: 2 | EF77: Parliament | EG77: 4 | EH77: Support Services | EI77: 1 | EJ77: Office of the Deputy Secretary | EK77: Payments for capital assets | EL77: Machinery and equipment | EM77: Other machinery and equipment | EN77: 0 | EO77: 0 | EP77: 50 | EQ77: 50 | ER77: 50 | ES77: 0 | ET77: 0 | EU77: 0 | EV77: 0 | EW77: 0 | EX77: 0 | EY77: 0 | EZ77: 0 | FA77: 0 | FB77: Parliament|Support Services | FC77: 002 | FD77: 004 | FE77: 001 | FF77: 057 | FG77: 002004 | FH77: 002057 | FI77: 57 | FJ77: 002004001057 | FL77: 002004057 | FT77: 4 | FU77: Cooperative Governance And Traditional Affairs | FV77: 4 | FW77: National Disaster Management Centre | FX77: 5 | FY77: Fire Services
DG78: Parliament | DH78: Associated Services | DI78: Parmed Medical Aid | DJ78: 0 | DK78: 0 | DL78: 0 | DM78: 0 | DN78: 47284 | DO78: 0 | DP78: 49089 | DQ78: 0 | DR78: 0 | DS78: 0 | DT78: 53761 | DU78: 0 | DV78: 57101 | DW78: Parliament|Associated Services | DX78: 002 | DY78: 005 | DZ78: 002005 | EC78: 242 | ED78: 1 | EE78: 2 | EF78: Parliament | EG78: 4 | EH78: Support Services | EI78: 2 | EJ78: Parliamentary Communication Services | EK78: Current payments | EL78: Compensation of employees | EM78: Compensation of employees | EN78: 36065 | EO78: 43709 | EP78: 39321 | EQ78: 39321 | ER78: 39321 | ES78: 41602 | ET78: 39883 | EU78: 39430 | EV78: 0 | EW78: 0 | EX78: 0 | EY78: 39883 | EZ78: 39430 | FA78: 42426.67986 | FB78: Parliament|Support Services | FC78: 002 | FD78: 004 | FE78: 002 | FF78: 001 | FG78: 002004 | FH78: 002001 | FI78: 1 | FJ78: 002004002001 | FL78: 002004001 | FT78: 4 | FU78: Cooperative Governance And Traditional Affairs | FV78: 4 | FW78: National Disaster Management Centre | FX78: 6 | FY78: Information Technology, Intelligence and Information Management Systems
DG79: Communications | DH79: Administration | DI79: 3 | DJ79: 2 | DK79: 2 | DL79: 0 | DM79: 0 | DN79: 0 | DO79: 0 | DP79: 0 | DQ79: 0 | DR79: 0 | DS79: 0 | DT79: 0 | DU79: 2 | DV79: 134 | DW79: Communications|Administration | DX79: 003 | DY79: 001 | DZ79: 003001 | EC79: 242 | ED79: 2 | EE79: 2 | EF79: Parliament | EG79: 4 | EH79: Support Services | EI79: 2 | EJ79: Parliamentary Communication Services | EK79: Current payments | EL79: Goods and services | EM79: Goods and services | EN79: 33843 | EO79: 17852 | EP79: 40313 | EQ79: 40313 | ER79: 40313 | ES79: 39912 | ET79: 41720 | EU79: 44073 | EV79: 0 | EW79: 0 | EX79: 0 | EY79: 41720 | EZ79: 44073 | FA79: 46541.088 | FB79: Parliament|Support Services | FC79: 002 | FD79: 004 | FE79: 002 | FF79: 002 | FG79: 002004 | FH79: 002002 | FI79: 2 | FJ79: 002004002002 | FL79: 002004002 | FT79: 4 | FU79: Cooperative Governance And Traditional Affairs | FV79: 4 | FW79: National Disaster Management Centre | FX79: 7 | FY79: Disaster Relief Grant
DG80: Communications | DH80: Administration | DI80: 4 | DJ80: 0 | DK80: 1 | DL80: 1 | DM80: 0 | DN80: 0 | DO80: 6 | DP80: 704 | DQ80: 0 | DR80: 0 | DS80: 0 | DT80: 0 | DU80: 2 | DV80: 186 | DW80: Communications|Administration | DX80: 003 | DY80: 001 | DZ80: 003001 | EC80: 243 | ED80: 1 | EE80: 2 | EF80: Parliament | EG80: 4 | EH80: Support Services | EI80: 3 | EJ80: Human Resources Management | EK80: Current payments | EL80: Compensation of employees | EM80: Compensation of employees | EN80: 32169 | EO80: 56723 | EP80: 35000 | EQ80: 35000 | ER80: 35000 | ES80: 38666 | ET80: 37799 | EU80: 37869 | EV80: 0 | EW80: 0 | EX80: 0 | EY80: 37799 | EZ80: 37869 | FA80: 40747.04387 | FB80: Parliament|Support Services | FC80: 002 | FD80: 004 | FE80: 003 | FF80: 001 | FG80: 002004 | FH80: 002001 | FI80: 1 | FJ80: 002004003001 | FL80: 002004001 | FT80: 4 | FU80: Cooperative Governance And Traditional Affairs | FV80: 4 | FW80: National Disaster Management Centre | FX80: 8 | FY80: Municipal Disaster Recovery Grant
DG81: Communications | DH81: Administration | DI81: 5 | DJ81: 3 | DK81: 3 | DL81: 0 | DM81: 2 | DN81: 442 | DO81: 2 | DP81: 760 | DQ81: 7 | DR81: 2450 | DS81: 10 | DT81: 3671 | DU81: 9 | DV81: 3000 | DW81: Communications|Administration | DX81: 003 | DY81: 001 | DZ81: 003001 | EC81: 243 | ED81: 2 | EE81: 2 | EF81: Parliament | EG81: 4 | EH81: Support Services | EI81: 3 | EJ81: Human Resources Management | EK81: Current payments | EL81: Goods and services | EM81: Goods and services | EN81: 12988 | EO81: 13170 | EP81: 13584 | EQ81: 13584 | ER81: 13584 | ES81: 13640 | ET81: 13601 | EU81: 13906 | EV81: 0 | EW81: 0 | EX81: 0 | EY81: 13601 | EZ81: 13906 | FA81: 14684.736 | FB81: Parliament|Support Services | FC81: 002 | FD81: 004 | FE81: 003 | FF81: 002 | FG81: 002004 | FH81: 002002 | FI81: 2 | FJ81: 002004003002 | FL81: 002004002 | FT81: 4 | FU81: Cooperative Governance And Traditional Affairs | FV81: 5 | FW81: Local Government Support and Intervention Management | FX81: 1 | FY81: Management: Local Government Support and Interventions
DG82: Communications | DH82: Administration | DI82: 6 | DJ82: 9 | DK82: 9 | DL82: 0 | DM82: 2 | DN82: 508 | DO82: 2 | DP82: 830 | DQ82: 6 | DR82: 2243 | DS82: 9 | DT82: 3523 | DU82: 6 | DV82: 2963 | DW82: Communications|Administration | DX82: 003 | DY82: 001 | DZ82: 003001 | EC82: 243 | ED82: 57 | EE82: 2 | EF82: Parliament | EG82: 4 | EH82: Support Services | EI82: 3 | EJ82: Human Resources Management | EK82: Payments for capital assets | EL82: Machinery and equipment | EM82: Other machinery and equipment | EN82: 0 | EO82: 0 | EP82: 116 | EQ82: 116 | ER82: 116 | ES82: 477 | ET82: 515 | EU82: 557 | EV82: 0 | EW82: 0 | EX82: 0 | EY82: 515 | EZ82: 557 | FA82: 588.192 | FB82: Parliament|Support Services | FC82: 002 | FD82: 004 | FE82: 003 | FF82: 057 | FG82: 002004 | FH82: 002057 | FI82: 57 | FJ82: 002004003057 | FL82: 002004057 | FT82: 4 | FU82: Cooperative Governance And Traditional Affairs | FV82: 5 | FW82: Local Government Support and Intervention Management | FX82: 2 | FY82: Municipal Performance Monitoring
DG83: Communications | DH83: Administration | DI83: 7 | DJ83: 2 | DK83: 2 | DL83: 0 | DM83: 0 | DN83: 0 | DO83: 0 | DP83: 0 | DQ83: 2 | DR83: 875 | DS83: 3 | DT83: 1620 | DU83: 4 | DV83: 2237 | DW83: Communications|Administration | DX83: 003 | DY83: 001 | DZ83: 003001 | EC83: 244 | ED83: 1 | EE83: 2 | EF83: Parliament | EG83: 4 | EH83: Support Services | EI83: 4 | EJ83: Information Communication & Technology | EK83: Current payments | EL83: Compensation of employees | EM83: Compensation of employees | EN83: 35706 | EO83: 39708 | EP83: 36805 | EQ83: 36805 | ER83: 36805 | ES83: 38927 | ET83: 36774 | EU83: 35701 | EV83: 0 | EW83: 0 | EX83: 0 | EY83: 36774 | EZ83: 35701 | FA83: 38414.27587 | FB83: Parliament|Support Services | FC83: 002 | FD83: 004 | FE83: 004 | FF83: 001 | FG83: 002004 | FH83: 002001 | FI83: 1 | FJ83: 002004004001 | FL83: 002004001 | FT83: 4 | FU83: Cooperative Governance And Traditional Affairs | FV83: 5 | FW83: Local Government Support and Intervention Management | FX83: 3 | FY83: Local Government Improvement Programme
DG84: Communications | DH84: Administration | DI84: 8 | DJ84: 7 | DK84: 7 | DL84: 0 | DM84: 2 | DN84: 706 | DO84: 3 | DP84: 1670 | DQ84: 0 | DR84: 0 | DS84: 4 | DT84: 0 | DU84: 6 | DV84: 0 | DW84: Communications|Administration | DX84: 003 | DY84: 001 | DZ84: 003001 | EC84: 244 | ED84: 2 | EE84: 2 | EF84: Parliament | EG84: 4 | EH84: Support Services | EI84: 4 | EJ84: Information Communication & Technology | EK84: Current payments | EL84: Goods and services | EM84: Goods and services | EN84: 19092 | EO84: 11693 | EP84: 23239 | EQ84: 23239 | ER84: 23239 | ES84: 23028 | ET84: 24073 | EU84: 25430 | EV84: 0 | EW84: 0 | EX84: 0 | EY84: 24073 | EZ84: 25430 | FA84: 26854.08 | FB84: Parliament|Support Services | FC84: 002 | FD84: 004 | FE84: 004 | FF84: 002 | FG84: 002004 | FH84: 002002 | FI84: 2 | FJ84: 002004004002 | FL84: 002004002 | FT84: 4 | FU84: Cooperative Governance And Traditional Affairs | FV84: 5 | FW84: Local Government Support and Intervention Management | FX84: 4 | FY84: Litigations and Interventions
DG85: Communications | DH85: Administration | DI85: 9 | DJ85: 6 | DK85: 6 | DL85: 0 | DM85: 9 | DN85: 2790 | DO85: 7 | DP85: 3640 | DQ85: 10 | DR85: 4502 | DS85: 11 | DT85: 6005 | DU85: 13 | DV85: 8150 | DW85: Communications|Administration | DX85: 003 | DY85: 001 | DZ85: 003001 | EC85: 244 | ED85: 57 | EE85: 2 | EF85: Parliament | EG85: 4 | EH85: Support Services | EI85: 4 | EJ85: Information Communication & Technology | EK85: Payments for capital assets | EL85: Machinery and equipment | EM85: Other machinery and equipment | EN85: 1200 | EO85: 95118 | EP85: 266 | EQ85: 266 | ER85: 266 | ES85: 127 | ET85: 420 | EU85: 228 | EV85: 0 | EW85: 0 | EX85: 0 | EY85: 420 | EZ85: 228 | FA85: 240.768 | FB85: Parliament|Support Services | FC85: 002 | FD85: 004 | FE85: 004 | FF85: 057 | FG85: 002004 | FH85: 002057 | FI85: 57 | FJ85: 002004004057 | FL85: 002004057 | FT85: 4 | FU85: Cooperative Governance And Traditional Affairs | FV85: 5 | FW85: Local Government Support and Intervention Management | FX85: 5 | FY85: Municipal Infrastructure Grant Management
DG86: Communications | DH86: Administration | DI86: 10 | DJ86: 0 | DK86: 1 | DL86: 1 | DM86: 1 | DN86: 350 | DO86: 2 | DP86: 1325 | DQ86: 3 | DR86: 1576 | DS86: 3 | DT86: 1860 | DU86: 4 | DV86: 3006 | DW86: Communications|Administration | DX86: 003 | DY86: 001 | DZ86: 003001 | EC86: 245 | ED86: 1 | EE86: 2 | EF86: Parliament | EG86: 4 | EH86: Support Services | EI86: 5 | EJ86: Institutional Support Services | EK86: Current payments | EL86: Compensation of employees | EM86: Compensation of employees | EN86: 67035 | EO86: 87351 | EP86: 83212 | EQ86: 83212 | ER86: 83212 | ES86: 93424 | ET86: 91477 | EU86: 94192 | EV86: 0 | EW86: 0 | EX86: 0 | EY86: 91477 | EZ86: 94192 | FA86: 101350.5917 | FB86: Parliament|Support Services | FC86: 002 | FD86: 004 | FE86: 005 | FF86: 001 | FG86: 002004 | FH86: 002001 | FI86: 1 | FJ86: 002004005001 | FL86: 002004001 | FT86: 4 | FU86: Cooperative Governance And Traditional Affairs | FV86: 5 | FW86: Local Government Support and Intervention Management | FX86: 6 | FY86: South African Local Government Association
DG87: Communications | DH87: Administration | DI87: 11 | DJ87: 11 | DK87: 12 | DL87: 1 | DM87: 2 | DN87: 1100 | DO87: 6 | DP87: 3603 | DQ87: 9 | DR87: 4994 | DS87: 8 | DT87: 6230 | DU87: 7 | DV87: 5994 | DW87: Communications|Administration | DX87: 003 | DY87: 001 | DZ87: 003001 | EC87: 245 | ED87: 2 | EE87: 2 | EF87: Parliament | EG87: 4 | EH87: Support Services | EI87: 5 | EJ87: Institutional Support Services | EK87: Current payments | EL87: Goods and services | EM87: Goods and services | EN87: 19466 | EO87: 20582 | EP87: 15264 | EQ87: 15264 | ER87: 15264 | ES87: 23197 | ET87: 20066 | EU87: 21145 | EV87: 0 | EW87: 0 | EX87: 0 | EY87: 20066 | EZ87: 21145 | FA87: 22329.12 | FB87: Parliament|Support Services | FC87: 002 | FD87: 004 | FE87: 005 | FF87: 002 | FG87: 002004 | FH87: 002002 | FI87: 2 | FJ87: 002004005002 | FL87: 002004002 | FT87: 4 | FU87: Cooperative Governance And Traditional Affairs | FV87: 5 | FW87: Local Government Support and Intervention Management | FX87: 7 | FY87: Municipal Demarcation Board
DG88: Communications | DH88: Administration | DI88: 12 | DJ88: 4 | DK88: 4 | DL88: 0 | DM88: 3 | DN88: 1890 | DO88: 5 | DP88: 3523 | DQ88: 4 | DR88: 2560 | DS88: 4 | DT88: 3500 | DU88: 3 | DV88: 2920 | DW88: Communications|Administration | DX88: 003 | DY88: 001 | DZ88: 003001 | EC88: 245 | ED88: 57 | EE88: 2 | EF88: Parliament | EG88: 4 | EH88: Support Services | EI88: 5 | EJ88: Institutional Support Services | EK88: Payments for capital assets | EL88: Machinery and equipment | EM88: Other machinery and equipment | EN88: 1300 | EO88: 0 | EP88: 177 | EQ88: 177 | ER88: 177 | ES88: 87 | ET88: 319 | EU88: 289 | EV88: 0 | EW88: 0 | EX88: 0 | EY88: 319 | EZ88: 289 | FA88: 305.184 | FB88: Parliament|Support Services | FC88: 002 | FD88: 004 | FE88: 005 | FF88: 057 | FG88: 002004 | FH88: 002057 | FI88: 57 | FJ88: 002004005057 | FL88: 002004057 | FT88: 4 | FU88: Cooperative Governance And Traditional Affairs | FV88: 5 | FW88: Local Government Support and Intervention Management | FX88: 8 | FY88: South African Cities Network
DG89: Communications | DH89: Administration | DI89: 13 | DJ89: 13 | DK89: 15 | DL89: 2 | DM89: 4 | DN89: 3900 | DO89: 6 | DP89: 4772 | DQ89: 5 | DR89: 4494 | DS89: 6 | DT89: 5400 | DU89: 5 | DV89: 5444 | DW89: Communications|Administration | DX89: 003 | DY89: 001 | DZ89: 003001 | EC89: 251 | ED89: 1 | EE89: 2 | EF89: Parliament | EG89: 5 | EH89: Associated Services | EI89: 1 | EJ89: Members Support Services | EK89: Current payments | EL89: Compensation of employees | EM89: Compensation of employees | EN89: 6417 | EO89: 7851 | EP89: 9230 | EQ89: 9230 | ER89: 9230 | ES89: 8631 | ET89: 8597 | EU89: 9180 | EV89: 0 | EW89: 0 | EX89: 0 | EY89: 8597 | EZ89: 9180 | FA89: 9877.679967 | FB89: Parliament|Associated Services | FC89: 002 | FD89: 005 | FE89: 001 | FF89: 001 | FG89: 002005 | FH89: 002001 | FI89: 1 | FJ89: 002005001001 | FL89: 002005001 | FT89: 4 | FU89: Cooperative Governance And Traditional Affairs | FV89: 5 | FW89: Local Government Support and Intervention Management | FX89: 9 | FY89: United Cities and Local Government of Africa
DG90: Communications | DH90: Administration | DI90: 14 | DJ90: 3 | DK90: 4 | DL90: 1 | DM90: 2 | DN90: 2931 | DO90: 3 | DP90: 3782 | DQ90: 3 | DR90: 2933 | DS90: 3 | DT90: 3200 | DU90: 3 | DV90: 3513 | DW90: Communications|Administration | DX90: 003 | DY90: 001 | DZ90: 003001 | EC90: 251 | ED90: 2 | EE90: 2 | EF90: Parliament | EG90: 5 | EH90: Associated Services | EI90: 1 | EJ90: Members Support Services | EK90: Current payments | EL90: Goods and services | EM90: Goods and services | EN90: 483 | EO90: 688 | EP90: 770 | EQ90: 770 | ER90: 770 | ES90: 1053 | ET90: 1308 | EU90: 1036 | EV90: 0 | EW90: 0 | EX90: 0 | EY90: 1308 | EZ90: 1036 | FA90: 1094.016 | FB90: Parliament|Associated Services | FC90: 002 | FD90: 005 | FE90: 001 | FF90: 002 | FG90: 002005 | FH90: 002002 | FI90: 2 | FJ90: 002005001002 | FL90: 002005002 | FT90: 4 | FU90: Cooperative Governance And Traditional Affairs | FV90: 6 | FW90: Community Work Programme | FX90: 1 | FY90: Management: Community Work Programme
DG91: Communications | DH91: Administration | DI91: 15 | DJ91: 0 | DK91: 2 | DL91: 2 | DM91: 2 | DN91: 3500 | DO91: 2 | DP91: 4673 | DQ91: 2 | DR91: 3926 | DS91: 3 | DT91: 4500 | DU91: 2 | DV91: 3926 | DW91: Communications|Administration | DX91: 003 | DY91: 001 | DZ91: 003001 | EC91: 251 | ED91: 57 | EE91: 2 | EF91: Parliament | EG91: 5 | EH91: Associated Services | EI91: 1 | EJ91: Members Support Services | EK91: Payments for capital assets | EL91: Machinery and equipment | EM91: Other machinery and equipment | EN91: 105 | EO91: 0 | EP91: 0 | EQ91: 0 | ER91: 0 | ES91: 96 | ET91: 101 | EU91: 106 | EV91: 0 | EW91: 0 | EX91: 0 | EY91: 101 | EZ91: 106 | FA91: 111.936 | FB91: Parliament|Associated Services | FC91: 002 | FD91: 005 | FE91: 001 | FF91: 057 | FG91: 002005 | FH91: 002057 | FI91: 57 | FJ91: 002005001057 | FL91: 002005057 | FT91: 4 | FU91: Cooperative Governance And Traditional Affairs | FV91: 6 | FW91: Community Work Programme | FX91: 2 | FY91: Programme Coordination
DG92: Communications | DH92: Administration | DI92: 16 | DJ92: 3 | DK92: 3 | DL92: 0 | DM92: 2 | DN92: 6287 | DO92: 2 | DP92: 5890 | DQ92: 2 | DR92: 5400 | DS92: 2 | DT92: 5770 | DU92: 2 | DV92: 6443 | DW92: Communications|Administration | DX92: 003 | DY92: 001 | DZ92: 003001 | EC92: 252 | ED92: 51 | EE92: 2 | EF92: Parliament | EG92: 5 | EH92: Associated Services | EI92: 2 | EJ92: Political Party Support | EK92: Transfers and subsidies | EL92: Non-profit institutions | EM92: Non-profit institutions | EN92: 80683 | EO92: 89561 | EP92: 87025 | EQ92: 93393 | ER92: 93393 | ES92: 92029 | ET92: 96630 | EU92: 102235 | EV92: 0 | EW92: 0 | EX92: 0 | EY92: 96630 | EZ92: 102235 | FA92: 107960.16 | FB92: Parliament|Associated Services | FC92: 002 | FD92: 005 | FE92: 002 | FF92: 051 | FG92: 002005 | FH92: 002051 | FI92: 51 | FJ92: 002005002051 | FL92: 002005051 | FT92: 4 | FU92: Cooperative Governance And Traditional Affairs | FV92: 6 | FW92: Community Work Programme | FX92: 3 | FY92: Partnerships, Norms, Standards and Innovation
DG93: Communications | DH93: Communications Policy, Research and Development | DI93: 8 | DJ93: 2 | DK93: 2 | DL93: 0 | DM93: 2 | DN93: 648 | DO93: 2 | DP93: 563 | DQ93: 2 | DR93: 435 | DS93: 4 | DT93: 1359 | DU93: 4 | DV93: 1326 | DW93: Communications|Communications Policy, Research and Development | DX93: 003 | DY93: 002 | DZ93: 003002 | EC93: 253 | ED93: 51 | EE93: 2 | EF93: Parliament | EG93: 5 | EH93: Associated Services | EI93: 3 | EJ93: Constituency Support | EK93: Transfers and subsidies | EL93: Non-profit institutions | EM93: Non-profit institutions | EN93: 243165 | EO93: 254215 | EP93: 269658 | EQ93: 269700 | ER93: 269700 | ES93: 285163 | ET93: 309360 | EU93: 327303 | EV93: 0 | EW93: 0 | EX93: 0 | EY93: 309360 | EZ93: 327303 | FA93: 345631.968 | FB93: Parliament|Associated Services | FC93: 002 | FD93: 005 | FE93: 003 | FF93: 051 | FG93: 002005 | FH93: 002051 | FI93: 51 | FJ93: 002005003051 | FL93: 002005051 | FT93: 5 | FU93: Home Affairs | FV93: 1 | FW93: Administration | FX93: 1 | FY93: Ministry
DG94: Communications | DH94: Communications Policy, Research and Development | DI94: 9 | DJ94: 1 | DK94: 1 | DL94: 0 | DM94: 1 | DN94: 384 | DO94: 0 | DP94: 0 | DQ94: 4 | DR94: 1484 | DS94: 3 | DT94: 818 | DU94: 3 | DV94: 1023 | DW94: Communications|Communications Policy, Research and Development | DX94: 003 | DY94: 002 | DZ94: 003002 | EC94: 254 | ED94: 51 | EE94: 2 | EF94: Parliament | EG94: 5 | EH94: Associated Services | EI94: 4 | EJ94: Party Leadership Support | EK94: Transfers and subsidies | EL94: Non-profit institutions | EM94: Non-profit institutions | EN94: 9254 | EO94: 8397 | EP94: 7835 | EQ94: 8907 | ER94: 8907 | ES94: 8286 | ET94: 8700 | EU94: 9205 | EV94: 0 | EW94: 0 | EX94: 0 | EY94: 8700 | EZ94: 9205 | FA94: 9720.48 | FB94: Parliament|Associated Services | FC94: 002 | FD94: 005 | FE94: 004 | FF94: 051 | FG94: 002005 | FH94: 002051 | FI94: 51 | FJ94: 002005004051 | FL94: 002005051 | FT94: 5 | FU94: Home Affairs | FV94: 1 | FW94: Administration | FX94: 2 | FY94: Management Support Services
DG95: Communications | DH95: Communications Policy, Research and Development | DI95: 11 | DJ95: 1 | DK95: 1 | DL95: 0 | DM95: 2 | DN95: 1064 | DO95: 2 | DP95: 767 | DQ95: 2 | DR95: 764 | DS95: 2 | DT95: 1123 | DU95: 2 | DV95: 1533 | DW95: Communications|Communications Policy, Research and Development | DX95: 003 | DY95: 002 | DZ95: 003002 | EC95: 255 | ED95: 1 | EE95: 2 | EF95: Parliament | EG95: 5 | EH95: Associated Services | EI95: 5 | EJ95: National Assembly Member's Facilities | EK95: Current payments | EL95: Compensation of employees | EM95: Compensation of employees | EN95: 19796 | EO95: 52259 | EP95: 48775 | EQ95: 48775 | ER95: 48775 | ES95: 51580 | ET95: 54149 | EU95: 57290 | EV95: 0 | EW95: 0 | EX95: 0 | EY95: 54149 | EZ95: 57290 | FA95: 61644.0398 | FB95: Parliament|Associated Services | FC95: 002 | FD95: 005 | FE95: 005 | FF95: 001 | FG95: 002005 | FH95: 002001 | FI95: 1 | FJ95: 002005005001 | FL95: 002005001 | FT95: 5 | FU95: Home Affairs | FV95: 1 | FW95: Administration | FX95: 3 | FY95: Corporate Services
DG96: Communications | DH96: Communications Policy, Research and Development | DI96: 12 | DJ96: 2 | DK96: 2 | DL96: 0 | DM96: 1 | DN96: 670 | DO96: 1 | DP96: 603 | DQ96: 1 | DR96: 720 | DS96: 2 | DT96: 1319 | DU96: 2 | DV96: 1719 | DW96: Communications|Communications Policy, Research and Development | DX96: 003 | DY96: 002 | DZ96: 003002 | EC96: 255 | ED96: 2 | EE96: 2 | EF96: Parliament | EG96: 5 | EH96: Associated Services | EI96: 5 | EJ96: National Assembly Member's Facilities | EK96: Current payments | EL96: Goods and services | EM96: Goods and services | EN96: 182892 | EO96: 120143 | EP96: 153061 | EQ96: 153061 | ER96: 153061 | ES96: 148862 | ET96: 158406 | EU96: 169692 | EV96: 0 | EW96: 0 | EX96: 0 | EY96: 158406 | EZ96: 169692 | FA96: 179194.752 | FB96: Parliament|Associated Services | FC96: 002 | FD96: 005 | FE96: 005 | FF96: 002 | FG96: 002005 | FH96: 002002 | FI96: 2 | FJ96: 002005005002 | FL96: 002005002 | FT96: 5 | FU96: Home Affairs | FV96: 1 | FW96: Administration | FX96: 4 | FY96: Transversal Information Technology Management
DG97: Communications | DH97: Communications Policy, Research and Development | DI97: 13 | DJ97: 1 | DK97: 1 | DL97: 0 | DM97: 2 | DN97: 1638 | DO97: 2 | DP97: 1294 | DQ97: 2 | DR97: 1319 | DS97: 2 | DT97: 1410 | DU97: 2 | DV97: 1450 | DW97: Communications|Communications Policy, Research and Development | DX97: 003 | DY97: 002 | DZ97: 003002 | EC97: 255 | ED97: 51 | EE97: 2 | EF97: Parliament | EG97: 5 | EH97: Associated Services | EI97: 5 | EJ97: National Assembly Member's Facilities | EK97: Transfers and subsidies | EL97: Non-profit institutions | EM97: Non-profit institutions | EN97: 0 | EO97: 365 | EP97: 0 | EQ97: 0 | ER97: 0 | ES97: 0 | ET97: 0 | EU97: 0 | EV97: 0 | EW97: 0 | EX97: 0 | EY97: 0 | EZ97: 0 | FA97: 0 | FB97: Parliament|Associated Services | FC97: 002 | FD97: 005 | FE97: 005 | FF97: 051 | FG97: 002005 | FH97: 002051 | FI97: 51 | FJ97: 002005005051 | FL97: 002005051 | FT97: 5 | FU97: Home Affairs | FV97: 1 | FW97: Administration | FX97: 5 | FY97: Office Accommodation
DG98: Communications | DH98: Communications Policy, Research and Development | DI98: 14 | DJ98: 1 | DK98: 1 | DL98: 0 | DM98: 1 | DN98: 1003 | DO98: 1 | DP98: 1098 | DQ98: 1 | DR98: 1434 | DS98: 1 | DT98: 1563 | DU98: 1 | DV98: 1579 | DW98: Communications|Communications Policy, Research and Development | DX98: 003 | DY98: 002 | DZ98: 003002 | EC98: 256 | ED98: 2 | EE98: 2 | EF98: Parliament | EG98: 5 | EH98: Associated Services | EI98: 6 | EJ98: National Council of Provinces Member's Facilities | EK98: Current payments | EL98: Goods and services | EM98: Goods and services | EN98: 5710 | EO98: 9162 | EP98: 32334 | EQ98: 32334 | ER98: 32334 | ES98: 31017 | ET98: 32293 | EU98: 33282 | EV98: 0 | EW98: 0 | EX98: 0 | EY98: 32293 | EZ98: 33282 | FA98: 35145.792 | FB98: Parliament|Associated Services | FC98: 002 | FD98: 005 | FE98: 006 | FF98: 002 | FG98: 002005 | FH98: 002002 | FI98: 2 | FJ98: 002005006002 | FL98: 002005002 | FT98: 5 | FU98: Home Affairs | FV98: 2 | FW98: Citizen Affairs | FX98: 1 | FY98: Citizen Affairs Management
DG99: Communications | DH99: Industry and Capacity Development | DI99: 4 | DJ99: 1 | DK99: 1 | DL99: 0 | DM99: 2 | DN99: 270 | DO99: 1 | DP99: 197 | DQ99: 1 | DR99: 94 | DS99: 1 | DT99: 104 | DU99: 2 | DV99: 250 | DW99: Communications|Industry and Capacity Development | DX99: 003 | DY99: 003 | DZ99: 003003 | EC99: 2161 | ED99: 1 | EE99: 2 | EF99: Parliament | EG99: 16 | EH99: Direct charge against the National Revenue Fund | EI99: 1 | EJ99: Members Remuneration | EK99: Current payments | EL99: Compensation of employees | EM99: Compensation of employees | EN99: 401856 | EO99: 479803 | EP99: 503132 | EQ99: 503132 | ER99: 503132 | ES99: 529798 | ET99: 556288 | EU99: 588553 | EV99: 0 | EW99: 0 | EX99: 0 | EY99: 556288 | EZ99: 588553 | FA99: 633283.0259 | FB99: Parliament|Direct charge against the National Revenue Fund | FC99: 002 | FD99: 016 | FE99: 001 | FF99: 001 | FG99: 002016 | FH99: 002001 | FI99: 1 | FJ99: 002016001001 | FL99: 002016001 | FT99: 5 | FU99: Home Affairs | FV99: 2 | FW99: Citizen Affairs | FX99: 2 | FY99: Status Services
DG100: Communications | DH100: Industry and Capacity Development | DI100: 7 | DJ100: 0 | DK100: 0 | DL100: 0 | DM100: 1 | DN100: 234 | DO100: 0 | DP100: 0 | DQ100: 0 | DR100: 0 | DS100: 0 | DT100: 0 | DU100: 0 | DV100: 0 | DW100: Communications|Industry and Capacity Development | DX100: 003 | DY100: 003 | DZ100: 003003 | EC100: 311 | ED100: 1 | EE100: 3 | EF100: Communications | EG100: 1 | EH100: Administration | EI100: 1 | EJ100: Ministry | EK100: Current payments | EL100: Compensation of employees | EM100: Compensation of employees | EN100: 0 | EO100: 12000 | EP100: 3693 | EQ100: 3693 | ER100: 3544 | ES100: 3896 | ET100: 4091 | EU100: 4339 | EV100: 0 | EW100: 0 | EX100: 0 | EY100: 4091 | EZ100: 4339 | FA100: 4668.763985 | FB100: Communications|Administration | FC100: 003 | FD100: 001 | FE100: 001 | FF100: 001 | FG100: 003001 | FH100: 003001 | FI100: 1 | FJ100: 003001001001 | FL100: 003001001 | FT100: 5 | FU100: Home Affairs | FV100: 2 | FW100: Citizen Affairs | FX100: 3 | FY100: Identification Services
DG101: Communications | DH101: Industry and Capacity Development | DI101: 8 | DJ101: 1 | DK101: 1 | DL101: 0 | DM101: 1 | DN101: 0 | DO101: 1 | DP101: 144 | DQ101: 2 | DR101: 430 | DS101: 1 | DT101: 525 | DU101: 1 | DV101: 556 | DW101: Communications|Industry and Capacity Development | DX101: 003 | DY101: 003 | DZ101: 003003 | EC101: 311 | ED101: 2 | EE101: 3 | EF101: Communications | EG101: 1 | EH101: Administration | EI101: 1 | EJ101: Ministry | EK101: Current payments | EL101: Goods and services | EM101: Goods and services | EN101: 0 | EO101: 0 | EP101: 8277 | EQ101: 3784 | ER101: 6600 | ES101: 3500 | ET101: 3696 | EU101: 5498 | EV101: 0 | EW101: 0 | EX101: 0 | EY101: 3696 | EZ101: 5498 | FA101: 5805.888 | FB101: Communications|Administration | FC101: 003 | FD101: 001 | FE101: 001 | FF101: 002 | FG101: 003001 | FH101: 003002 | FI101: 2 | FJ101: 003001001002 | FL101: 003001002 | FT101: 5 | FU101: Home Affairs | FV101: 2 | FW101: Citizen Affairs | FX101: 5 | FY101: Service Delivery to Provinces
DG102: Communications | DH102: Industry and Capacity Development | DI102: 9 | DJ102: 0 | DK102: 1 | DL102: 1 | DM102: 0 | DN102: 0 | DO102: 1 | DP102: 217 | DQ102: 2 | DR102: 579 | DS102: 1 | DT102: 707 | DU102: 1 | DV102: 748 | DW102: Communications|Industry and Capacity Development | DX102: 003 | DY102: 003 | DZ102: 003003 | EC102: 311 | ED102: 57 | EE102: 3 | EF102: Communications | EG102: 1 | EH102: Administration | EI102: 1 | EJ102: Ministry | EK102: Payments for capital assets | EL102: Machinery and equipment | EM102: Other machinery and equipment | EN102: 0 | EO102: 0 | EP102: 30 | EQ102: 30 | ER102: 161 | ES102: 44 | ET102: 46 | EU102: 49 | EV102: 0 | EW102: 0 | EX102: 0 | EY102: 46 | EZ102: 49 | FA102: 51.744 | FB102: Communications|Administration | FC102: 003 | FD102: 001 | FE102: 001 | FF102: 057 | FG102: 003001 | FH102: 003057 | FI102: 57 | FJ102: 003001001057 | FL102: 003001057 | FT102: 5 | FU102: Home Affairs | FV102: 2 | FW102: Citizen Affairs | FX102: 7 | FY102: Government Printing Works
DG103: Communications | DH103: Industry and Capacity Development | DI103: 10 | DJ103: 0 | DK103: 1 | DL103: 0 | DM103: 0 | DN103: 0 | DO103: 1 | DP103: 243 | DQ103: 1 | DR103: 310 | DS103: 1 | DT103: 758 | DU103: 2 | DV103: 802 | DW103: Communications|Industry and Capacity Development | DX103: 003 | DY103: 003 | DZ103: 003003 | EC103: 312 | ED103: 1 | EE103: 3 | EF103: Communications | EG103: 1 | EH103: Administration | EI103: 2 | EJ103: Departmental Management | EK103: Current payments | EL103: Compensation of employees | EM103: Compensation of employees | EN103: 819 | EO103: 867 | EP103: 9889 | EQ103: 12984 | ER103: 18065 | ES103: 10433 | ET103: 14333 | EU103: 14799 | EV103: 0 | EW103: 0 | EX103: 0 | EY103: 14333 | EZ103: 14799 | FA103: 15923.72395 | FB103: Communications|Administration | FC103: 003 | FD103: 001 | FE103: 002 | FF103: 001 | FG103: 003001 | FH103: 003001 | FI103: 1 | FJ103: 003001002001 | FL103: 003001001 | FT103: 5 | FU103: Home Affairs | FV103: 2 | FW103: Citizen Affairs | FX103: 8 | FY103: Electoral Commission
Z104: =IF(AI104="",1,2) -> 1 | AA104: =+AA23 -> 7 | AB104: =+AB23 -> 4 | AP104: =INDEX((AP$106:AP$152),MATCH($AA$23,$AA$106:$AA$152,1)) -> 342691 | AQ104: =INDEX((AQ$106:AQ$152),MATCH($AA$23,$AA$106:$AA$152,1)) -> 343322 | AR104: 369414.4708 | AT104: Personnel Revised Baseline | AV104: =IFERROR(INDEX((AV$106:AV$151),MATCH($AB$23,$AT$106:$AT$151,0)),0) -> 338922 | AW104: =IFERROR(INDEX((AW$106:AW$151),MATCH($AB$23,$AT$106:$AT$151,0)),0) -> 339475 | AX104: 365354 | DG104: Communications | DH104: Industry and Capacity Development | DI104: 11 | DJ104: 2 | DK104: 2 | DL104: 1 | DM104: 1 | DN104: 548 | DO104: 2 | DP104: 0 | DQ104: 0 | DR104: 0 | DS104: 2 | DT104: 0 | DU104: 0 | DV104: 0 | DW104: Communications|Industry and Capacity Development | DX104: 003 | DY104: 003 | DZ104: 003003 | EC104: 312 | ED104: 2 | EE104: 3 | EF104: Communications | EG104: 1 | EH104: Administration | EI104: 2 | EJ104: Departmental Management | EK104: Current payments | EL104: Goods and services | EM104: Goods and services | EN104: 0 | EO104: 0 | EP104: 0 | EQ104: 4493 | ER104: 5515 | ES104: 4210 | ET104: 4452 | EU104: 5713 | EV104: 0 | EW104: 0 | EX104: 0 | EY104: 4452 | EZ104: 5713 | FA104: 6032.928 | FB104: Communications|Administration | FC104: 003 | FD104: 001 | FE104: 002 | FF104: 002 | FG104: 003001 | FH104: 003002 | FI104: 2 | FJ104: 003001002002 | FL104: 003001002 | FT104: 5 | FU104: Home Affairs | FV104: 2 | FW104: Citizen Affairs | FX104: 9 | FY104: Represented Political Parties’ Fund
AA105: Dept Index No. | AB105: Vote No. | AC105: Department | AD105: Category | AE105: ID1 | AF105: Contact Person | AG105: Tel | AH105: email | AI105: Contact Person | AJ105: Tel | AK105: email | AL105: ID2 | AM105: Contact Person | AN105: Tel | AO105: email | AP105: =MyYearP1 -> 2017/18 | AQ105: =MyYearP2 -> 2018/19 | AR105: =MyYearP3 -> 2019/20 | AT105: Vote No. | AU105: Dept | AV105: =+AP105 -> 2017/18 | AW105: =+AQ105 -> 2018/19 | AX105: =+AR105 -> 2019/20 | DG105: Communications | DH105: Industry and Capacity Development | DI105: 12 | DJ105: 0 | DK105: 0 | DL105: 0 | DM105: 2 | DN105: 1230 | DO105: 0 | DP105: 0 | DQ105: 0 | DR105: 0 | DS105: 0 | DT105: 0 | DU105: 0 | DV105: 0 | DW105: Communications|Industry and Capacity Development | DX105: 003 | DY105: 003 | DZ105: 003003 | EC105: 312 | ED105: 57 | EE105: 3 | EF105: Communications | EG105: 1 | EH105: Administration | EI105: 2 | EJ105: Departmental Management | EK105: Payments for capital assets | EL105: Machinery and equipment | EM105: Other machinery and equipment | EN105: 0 | EO105: 0 | EP105: 0 | EQ105: 0 | ER105: 87 | ES105: 0 | ET105: 0 | EU105: 0 | EV105: 0 | EW105: 0 | EX105: 0 | EY105: 0 | EZ105: 0 | FA105: 0 | FB105: Communications|Administration | FC105: 003 | FD105: 001 | FE105: 002 | FF105: 057 | FG105: 003001 | FH105: 003057 | FI105: 57 | FJ105: 003001002057 | FL105: 003001057 | FT105: 5 | FU105: Home Affairs | FV105: 3 | FW105: Immigration Affairs | FX105: 1 | FY105: Immigration Affairs Management
Y106: 1 | AA106: 1 | AB106: 24 | AC106: Agriculture, Forestry and Fisheries | AF106: Bothwell Deka | AG106: (012) 395 6784 | AH106: Bothwell.Deka@treasury.gov.za | AI106: Humbelani Ramuedzisi | AJ106: (012) 315 5585 | AK106: Humbelani.Ramuedzisi@treasury.gov.za | AO106: datafileNAT@treasury.gov.za | AP106: 2129171 | AQ106: 2201926 | AR106: 2369272.368 | AT106: 24 | AU106: Agriculture, Forestry and Fisheries | AV106: 2105751 | AW106: 2177251 | AX106: 2343230 | DG106: Communications | DH106: Industry and Capacity Development | DI106: 13 | DJ106: 2 | DK106: 4 | DL106: 2 | DM106: 3 | DN106: 3493 | DO106: 4 | DP106: 2893 | DQ106: 4 | DR106: 3153 | DS106: 4 | DT106: 3247 | DU106: 4 | DV106: 3500 | DW106: Communications|Industry and Capacity Development | DX106: 003 | DY106: 003 | DZ106: 003003 | EC106: 313 | ED106: 1 | EE106: 3 | EF106: Communications | EG106: 1 | EH106: Administration | EI106: 3 | EJ106: Internal Audit | EK106: Current payments | EL106: Compensation of employees | EM106: Compensation of employees | EN106: 0 | EO106: 0 | EP106: 0 | EQ106: 0 | ER106: 0 | ES106: 0 | ET106: 1508 | EU106: 1455 | EV106: 0 | EW106: 0 | EX106: 0 | EY106: 1508 | EZ106: 1455 | FA106: 1565.579995 | FB106: Communications|Administration | FC106: 003 | FD106: 001 | FE106: 003 | FF106: 001 | FG106: 003001 | FH106: 003001 | FI106: 1 | FJ106: 003001003001 | FL106: 003001001 | FT106: 5 | FU106: Home Affairs | FV106: 3 | FW106: Immigration Affairs | FX106: 2 | FY106: Admission Services
Y107: 2 | AA107: 2 | AB107: 37 | AC107: Arts and Culture | AF107: Judy Naidoo | AG107: (012) 315 5269 | AH107: Judy.Naidoo@treasury.gov.za | AI107: Letsepa Pakkies | AJ107: (012) 395 6656 | AK107: Letsepa.Pakkies@treasury.gov.za | AO107: datafileNAT@treasury.gov.za | AP107: 235049 | AQ107: 256403 | AR107: 275889.6271 | AT107: 37 | AU107: Arts and Culture | AV107: 232464 | AW107: 253530 | AX107: 272858 | DG107: Communications | DH107: Industry and Capacity Development | DI107: 14 | DJ107: 3 | DK107: 4 | DL107: 1 | DM107: 1 | DN107: 1354 | DO107: 2 | DP107: 1900 | DQ107: 3 | DR107: 3550 | DS107: 4 | DT107: 4577 | DU107: 4 | DV107: 4636 | DW107: Communications|Industry and Capacity Development | DX107: 003 | DY107: 003 | DZ107: 003003 | EC107: 313 | ED107: 2 | EE107: 3 | EF107: Communications | EG107: 1 | EH107: Administration | EI107: 3 | EJ107: Internal Audit | EK107: Current payments | EL107: Goods and services | EM107: Goods and services | EN107: 0 | EO107: 0 | EP107: 0 | EQ107: 0 | ER107: 3 | ES107: 465 | ET107: 491 | EU107: 1021 | EV107: 0 | EW107: 0 | EX107: 0 | EY107: 491 | EZ107: 1021 | FA107: 1078.176 | FB107: Communications|Administration | FC107: 003 | FD107: 001 | FE107: 003 | FF107: 002 | FG107: 003001 | FH107: 003002 | FI107: 2 | FJ107: 003001003002 | FL107: 003001002 | FT107: 5 | FU107: Home Affairs | FV107: 3 | FW107: Immigration Affairs | FX107: 3 | FY107: Immigration Services
Y108: 3 | AA108: 3 | AB108: 14 | AC108: Basic Education | AF108: Spencer Janari | AG108: (012) 315 5436 | AH108: Spencer.Janari@treasury.gov.za | AI108: Pindi Masiso | AJ108: (012) 315 5722 | AK108: Pindi.Masiso@treasury.gov.za | AO108: datafileNAT@treasury.gov.za | AP108: 481996 | AQ108: 505953 | AR108: 544405.4262 | AT108: 14 | AU108: Basic Education | AV108: 476694 | AW108: 500283 | AX108: 538421 | DG108: Communications | DH108: Entity Oversight | DI108: 7 | DJ108: 0 | DK108: 1 | DL108: 1 | DM108: 1 | DN108: 294 | DO108: 1 | DP108: 369 | DQ108: 1 | DR108: 464 | DS108: 1 | DT108: 490 | DU108: 1 | DV108: 518 | DW108: Communications|Entity Oversight | DX108: 003 | DY108: 004 | DZ108: 003004 | EC108: 314 | ED108: 1 | EE108: 3 | EF108: Communications | EG108: 1 | EH108: Administration | EI108: 4 | EJ108: Corporate Services | EK108: Current payments | EL108: Compensation of employees | EM108: Compensation of employees | EN108: 5934 | EO108: 6777 | EP108: 11974 | EQ108: 8879 | ER108: 6899 | ES108: 12642 | ET108: 14830 | EU108: 15604 | EV108: 0 | EW108: 0 | EX108: 0 | EY108: 14830 | EZ108: 15604 | FA108: 16789.90394 | FB108: Communications|Administration | FC108: 003 | FD108: 001 | FE108: 004 | FF108: 001 | FG108: 003001 | FH108: 003001 | FI108: 1 | FJ108: 003001004001 | FL108: 003001001 | FT108: 5 | FU108: Home Affairs | FV108: 3 | FW108: Immigration Affairs | FX108: 4 | FY108: Asylum Seekers
Y109: 4 | AA109: 4 | AB109: 47 | AC109: Centre for Public Service Innovation | AF109: George Tembo | AG109: (012) 315 5514 | AH109: George.Tembo@treasury.gov.za | AI109: Mokgatla Tema | AJ109: (012) 315 5948 | AK109: Mokgatla.Tema@treasury.gov.za | AO109: datafileNAT@treasury.gov.za | AP109: 18564 | AQ109: 19641 | AR109: 21133.71593 | AT109: 47 | AU109: Centre for Public Service Innovation | AV109: 18360 | AW109: 19425 | AX109: 20902 | DG109: Communications | DH109: Entity Oversight | DI109: 11 | DJ109: 0 | DK109: 1 | DL109: 0 | DM109: 0 | DN109: 0 | DO109: 1 | DP109: 495 | DQ109: 1 | DR109: 765 | DS109: 1 | DT109: 809 | DU109: 1 | DV109: 855 | DW109: Communications|Entity Oversight | DX109: 003 | DY109: 004 | DZ109: 003004 | EC109: 314 | ED109: 2 | EE109: 3 | EF109: Communications | EG109: 1 | EH109: Administration | EI109: 4 | EJ109: Corporate Services | EK109: Current payments | EL109: Goods and services | EM109: Goods and services | EN109: 0 | EO109: 0 | EP109: 0 | EQ109: 0 | ER109: -120 | ES109: 500 | ET109: 529 | EU109: 560 | EV109: 0 | EW109: 0 | EX109: 0 | EY109: 529 | EZ109: 560 | FA109: 591.36 | FB109: Communications|Administration | FC109: 003 | FD109: 001 | FE109: 004 | FF109: 002 | FG109: 003001 | FH109: 003002 | FI109: 2 | FJ109: 003001004002 | FL109: 003001002 | FT109: 6 | FU109: International Relations and Cooperation | FV109: 1 | FW109: Administration | FX109: 1 | FY109: Ministry
Y110: 5 | AA110: 5 | AB110: 41 | AC110: Civilian Secretariat | AF110: Nompumelelo Radebe | AG110: (012) 315 5957 | AH110: Nompumelelo.Radebe@treasury.gov.za | AI110: Sithabiso Buthelezi | AJ110: (012) 406 9025 | AK110: Sithabiso.Buthelezi@treasury.gov.za | AO110: datafileNAT@treasury.gov.za | AP110: 89803 | AQ110: 98536 | AR110: 106024.7356 | AT110: 41 | AU110: Civilian Secretariat | AV110: 88815 | AW110: 97452 | AX110: 104859 | DG110: Communications | DH110: Entity Oversight | DI110: 12 | DJ110: 0 | DK110: 1 | DL110: 0 | DM110: 1 | DN110: 670 | DO110: 1 | DP110: 750 | DQ110: 1 | DR110: 1113 | DS110: 1 | DT110: 1177 | DU110: 1 | DV110: 1244 | DW110: Communications|Entity Oversight | DX110: 003 | DY110: 004 | DZ110: 003004 | EC110: 314 | ED110: 57 | EE110: 3 | EF110: Communications | EG110: 1 | EH110: Administration | EI110: 4 | EJ110: Corporate Services | EK110: Payments for capital assets | EL110: Machinery and equipment | EM110: Other machinery and equipment | EN110: 0 | EO110: 0 | EP110: 0 | EQ110: 0 | ER110: 37 | ES110: 0 | ET110: 0 | EU110: 0 | EV110: 0 | EW110: 0 | EX110: 0 | EY110: 0 | EZ110: 0 | FA110: 0 | FB110: Communications|Administration | FC110: 003 | FD110: 001 | FE110: 004 | FF110: 057 | FG110: 003001 | FH110: 003057 | FI110: 57 | FJ110: 003001004057 | FL110: 003001057 | FT110: 6 | FU110: International Relations and Cooperation | FV110: 1 | FW110: Administration | FX110: 2 | FY110: Departmental Management
Y111: 6 | AA111: 6 | AB111: 3 | AC111: Communications | AF111: Japie Jacobs | AG111: (012) 315 5546 | AH111: Japie.Jacobs@treasury.gov.za | AI111: Rhoda Marais | AJ111: (012) 315 5906 | AK111: Rhoda.Marais@treasury.gov.za | AO111: datafileNAT@treasury.gov.za | AP111: 70857 | AQ111: 74787 | AR111: 80470.81173 | AT111: 3 | AU111: Communications | AV111: 76697 | AW111: 81256 | AX111: 87682 | DG111: Communications | DH111: Entity Oversight | DI111: 13 | DJ111: 1 | DK111: 1 | DL111: 0 | DM111: 1 | DN111: 882 | DO111: 1 | DP111: 890 | DQ111: 1 | DR111: 1132 | DS111: 1 | DT111: 1196 | DU111: 1 | DV111: 1265 | DW111: Communications|Entity Oversight | DX111: 003 | DY111: 004 | DZ111: 003004 | EC111: 315 | ED111: 1 | EE111: 3 | EF111: Communications | EG111: 1 | EH111: Administration | EI111: 5 | EJ111: Financial Management | EK111: Current payments | EL111: Compensation of employees | EM111: Compensation of employees | EN111: 4575 | EO111: 4760 | EP111: 8511 | EQ111: 8511 | ER111: 6664 | ES111: 8982 | ET111: 9462 | EU111: 10011 | EV111: 0 | EW111: 0 | EX111: 0 | EY111: 9462 | EZ111: 10011 | FA111: 10771.83596 | FB111: Communications|Administration | FC111: 003 | FD111: 001 | FE111: 005 | FF111: 001 | FG111: 003001 | FH111: 003001 | FI111: 1 | FJ111: 003001005001 | FL111: 003001001 | FT111: 6 | FU111: International Relations and Cooperation | FV111: 1 | FW111: Administration | FX111: 3 | FY111: Audit Services
Y112: 7 | AA112: 7 | AB112: 4 | AC112: Cooperative Governance And Traditional Affairs | AF112: Misaveni Ngobeni | AG112: (012) 315 5305 | AH112: misaveni.ngobeni@treasury.gov.za | AI112: Millicent Mulaudzi | AJ112: (012) 395 6576 | AK112: Millicent.Mulaudzi@treasury.gov.za | AO112: datafileNAT@treasury.gov.za | AP112: 342691 | AQ112: 343322 | AR112: 369414.4708 | AT112: 4 | AU112: Cooperative Governance And Traditional Affairs | AV112: 338922 | AW112: 339475 | AX112: 365354 | DG112: Communications | DH112: Entity Oversight | DI112: 14 | DJ112: 0 | DK112: 1 | DL112: 0 | DM112: 1 | DN112: 988 | DO112: 1 | DP112: 1050 | DQ112: 1 | DR112: 1350 | DS112: 1 | DT112: 1687 | DU112: 1 | DV112: 1783 | DW112: Communications|Entity Oversight | DX112: 003 | DY112: 004 | DZ112: 003004 | EC112: 315 | ED112: 2 | EE112: 3 | EF112: Communications | EG112: 1 | EH112: Administration | EI112: 5 | EJ112: Financial Management | EK112: Current payments | EL112: Goods and services | EM112: Goods and services | EN112: 27 | EO112: 28 | EP112: 30 | EQ112: 30 | ER112: 40 | ES112: 430 | ET112: 457 | EU112: 482 | EV112: 0 | EW112: 0 | EX112: 0 | EY112: 457 | EZ112: 482 | FA112: 508.992 | FB112: Communications|Administration | FC112: 003 | FD112: 001 | FE112: 005 | FF112: 002 | FG112: 003001 | FH112: 003002 | FI112: 2 | FJ112: 003001005002 | FL112: 003001002 | FT112: 6 | FU112: International Relations and Cooperation | FV112: 1 | FW112: Administration | FX112: 4 | FY112: Financial Management
Y113: 8 | AA113: 8 | AB113: 18 | AC113: Correctional Services | AF113: Werner Krause | AG113: (012) 315 5211 | AH113: Werner.Krause@treasury.gov.za | AI113: Keabetswe Matlwa | AJ113: (012) 395 6678 | AK113: Keabetswe.Matlwa@treasury.gov.za | AO113: datafileNAT@treasury.gov.za | AP113: 15952152 | AQ113: 17228003 | AR113: 18537331.17 | AT113: 18 | AU113: Correctional Services | AV113: 15776687 | AW113: 17034941 | AX113: 18333576 | DG113: Communications | DH113: Entity Oversight | DI113: 15 | DJ113: 0 | DK113: 1 | DL113: 0 | DM113: 0 | DN113: 0 | DO113: 1 | DP113: 950 | DQ113: 1 | DR113: 1786 | DS113: 1 | DT113: 1889 | DU113: 1 | DV113: 1996 | DW113: Communications|Entity Oversight | DX113: 003 | DY113: 004 | DZ113: 003004 | EC113: 315 | ED113: 57 | EE113: 3 | EF113: Communications | EG113: 1 | EH113: Administration | EI113: 5 | EJ113: Financial Management | EK113: Payments for capital assets | EL113: Machinery and equipment | EM113: Other machinery and equipment | EN113: 8 | EO113: 9 | EP113: 10 | EQ113: 10 | ER113: 0 | ES113: 0 | ET113: 0 | EU113: 0 | EV113: 0 | EW113: 0 | EX113: 0 | EY113: 0 | EZ113: 0 | FA113: 0 | FB113: Communications|Administration | FC113: 003 | FD113: 001 | FE113: 005 | FF113: 057 | FG113: 003001 | FH113: 003057 | FI113: 57 | FJ113: 003001005057 | FL113: 003001057 | FT113: 6 | FU113: International Relations and Cooperation | FV113: 1 | FW113: Administration | FX113: 5 | FY113: Corporate Services
Y114: 9 | AA114: 9 | AB114: 19 | AC114: Defence And Military Veterans | AF114: Mashudu Bidzha | AG114: (012) 315 5344 | AH114: Mashudu.Bidzha@treasury.gov.za | AI114: Lesiba Ledwaba | AJ114: (012) 395 6660 | AK114: Lesiba.Ledwaba@treasury.gov.za | AO114: datafileNAT@treasury.gov.za | AP114: 26447971 | AQ114: 27116696 | AR114: 29177564.8 | AT114: 19 | AU114: Defence And Military Veterans | AV114: 26447971 | AW114: 27116696 | AX114: 29177565 | DG114: Communications | DH114: Entity Oversight | DI114: 16 | DJ114: 0 | DK114: 1 | DL114: 0 | DM114: 0 | DN114: 0 | DO114: 1 | DP114: 1070 | DQ114: 1 | DR114: 2334 | DS114: 1 | DT114: 2209 | DU114: 1 | DV114: 2335 | DW114: Communications|Entity Oversight | DX114: 003 | DY114: 004 | DZ114: 003004 | EC114: 322 | ED114: 1 | EE114: 3 | EF114: Communications | EG114: 2 | EH114: Communications Policy, Research and Development | EI114: 2 | EJ114: Broadcasting Policy | EK114: Current payments | EL114: Compensation of employees | EM114: Compensation of employees | EN114: 4588 | EO114: 5407 | EP114: 5769 | EQ114: 4844 | ER114: 4324 | ES114: 6156 | ET114: 7411 | EU114: 8338 | EV114: 0 | EW114: 0 | EX114: 0 | EY114: 7411 | EZ114: 8338 | FA114: 8971.68797 | FB114: Communications|Communications Policy, Research and Development | FC114: 003 | FD114: 002 | FE114: 002 | FF114: 001 | FG114: 003002 | FH114: 003001 | FI114: 1 | FJ114: 003002002001 | FL114: 003002001 | FT114: 6 | FU114: International Relations and Cooperation | FV114: 1 | FW114: Administration | FX114: 6 | FY114: Diplomatic Training, Research and Development
Y115: 10 | AA115: 10 | AB115: 25 | AC115: Economic Development | AF115: Rudzani Sikhwari | AG115: (012) 315 5823 | AH115: Rudzani.Sikhwari@treasury.gov.za | AO115: datafileNAT@treasury.gov.za | AP115: 91074 | AQ115: 91802 | AR115: 98778.95167 | AT115: 25 | AU115: Economic Development | AV115: 90072 | AW115: 90773 | AX115: 97693 | DG115: Cooperative Governance And Traditional Affairs | DH115: Administration | DI115: 3 | DJ115: 24 | DK115: 24 | DL115: 0 | DM115: 24 | DN115: 5630 | DO115: 24 | DP115: 6375 | DQ115: 24 | DR115: 3752 | DS115: 24 | DT115: 3955 | DU115: 24 | DV115: 4184 | DW115: Cooperative Governance And Traditional Affairs|Administration | DX115: 004 | DY115: 001 | DZ115: 004001 | EC115: 322 | ED115: 2 | EE115: 3 | EF115: Communications | EG115: 2 | EH115: Communications Policy, Research and Development | EI115: 2 | EJ115: Broadcasting Policy | EK115: Current payments | EL115: Goods and services | EM115: Goods and services | EN115: 993 | EO115: 1045 | EP115: 1950 | EQ115: 1842 | ER115: 1368 | ES115: 1684 | ET115: 1767 | EU115: 2874 | EV115: 0 | EW115: 0 | EX115: 0 | EY115: 1767 | EZ115: 2874 | FA115: 3034.944 | FB115: Communications|Communications Policy, Research and Development | FC115: 003 | FD115: 002 | FE115: 002 | FF115: 002 | FG115: 003002 | FH115: 003002 | FI115: 2 | FJ115: 003002002002 | FL115: 003002002 | FT115: 6 | FU115: International Relations and Cooperation | FV115: 1 | FW115: Administration | FX115: 7 | FY115: Foreign Fixed Assets Management
Y116: 11 | AA116: 11 | AB116: 26 | AC116: Energy | AF116: Rezah Atcha | AG116: (012) 315 5287 | AH116: Rezah.Atcha@treasury.gov.za | AI116: Nomagugu Madikane | AJ116: (012) 315 5312 | AK116: Nomagugu.Madikane@treasury.gov.za | AO116: datafileNAT@treasury.gov.za | AP116: 314102 | AQ116: 327522 | AR116: 352413.6708 | AT116: 26 | AU116: Energy | AV116: 310647 | AW116: 323852 | AX116: 348540 | DG116: Cooperative Governance And Traditional Affairs | DH116: Administration | DI116: 4 | DJ116: 5 | DK116: 5 | DL116: 0 | DM116: 5 | DN116: 1372 | DO116: 5 | DP116: 1426 | DQ116: 4 | DR116: 852 | DS116: 4 | DT116: 898 | DU116: 4 | DV116: 950 | DW116: Cooperative Governance And Traditional Affairs|Administration | DX116: 004 | DY116: 001 | DZ116: 004001 | EC116: 322 | ED116: 57 | EE116: 3 | EF116: Communications | EG116: 2 | EH116: Communications Policy, Research and Development | EI116: 2 | EJ116: Broadcasting Policy | EK116: Payments for capital assets | EL116: Machinery and equipment | EM116: Other machinery and equipment | EN116: 90 | EO116: 95 | EP116: 178 | EQ116: 178 | ER116: 148 | ES116: 0 | ET116: 0 | EU116: 0 | EV116: 0 | EW116: 0 | EX116: 0 | EY116: 0 | EZ116: 0 | FA116: 0 | FB116: Communications|Communications Policy, Research and Development | FC116: 003 | FD116: 002 | FE116: 002 | FF116: 057 | FG116: 003002 | FH116: 003057 | FI116: 57 | FJ116: 003002002057 | FL116: 003002057 | FT116: 6 | FU116: International Relations and Cooperation | FV116: 1 | FW116: Administration | FX116: 8 | FY116: Office Accommodation
Y117: 12 | AA117: 12 | AB117: 27 | AC117: Environmental Affairs | AF117: Ricardo Andrews | AG117: (012) 315 5766 | AH117: Ricardo.Andrews@treasury.gov.za | AI117: Ashley Ramasimu | AJ117: (012) 315 5166 | AK117: Mukundi.Maphangwa@treasury.gov.za | AO117: datafileNAT@treasury.gov.za | AP117: 1046585 | AQ117: 1090839 | AR117: 1173742.76 | AT117: 27 | AU117: Environmental Affairs | AV117: 1035073 | AW117: 1078615 | AX117: 1160842 | DG117: Cooperative Governance And Traditional Affairs | DH117: Administration | DI117: 5 | DJ117: 18 | DK117: 18 | DL117: 0 | DM117: 18 | DN117: 5396 | DO117: 18 | DP117: 5612 | DQ117: 18 | DR117: 4210 | DS117: 18 | DT117: 4537 | DU117: 18 | DV117: 4800 | DW117: Cooperative Governance And Traditional Affairs|Administration | DX117: 004 | DY117: 001 | DZ117: 004001 | EC117: 323 | ED117: 2 | EE117: 3 | EF117: Communications | EG117: 2 | EH117: Communications Policy, Research and Development | EI117: 3 | EJ117: Media Policy | EK117: Current payments | EL117: Goods and services | EM117: Goods and services | EN117: 0 | EO117: 0 | EP117: 0 | EQ117: 0 | ER117: 0 | ES117: 150 | ET117: 158 | EU117: 168 | EV117: 0 | EW117: 0 | EX117: 0 | EY117: 158 | EZ117: 168 | FA117: 177.408 | FB117: Communications|Communications Policy, Research and Development | FC117: 003 | FD117: 002 | FE117: 003 | FF117: 002 | FG117: 003002 | FH117: 003002 | FI117: 2 | FJ117: 003002003002 | FL117: 003002002 | FT117: 6 | FU117: International Relations and Cooperation | FV117: 2 | FW117: International Relations | FX117: 1 | FY117: Africa
Y118: 13 | AA118: 13 | AB118: 46 | AC118: Government Communication and Information System | AF118: Japie Jacobs | AG118: (012) 315 5546 | AH118: Japie.Jacobs@treasury.gov.za | AI118: Thapelo Mokwana | AJ118: (012) 315 5796 | AK118: Thapelo.Mokwana@treasury.gov.za | AO118: datafileNAT@treasury.gov.za | AP118: 237604 | AQ118: 254821 | AR118: 274187.3951 | AT118: 46 | AU118: Government Communication and Information System | AV118: 236825 | AW118: 253983 | AX118: 273302 | DG118: Cooperative Governance And Traditional Affairs | DH118: Administration | DI118: 6 | DJ118: 39 | DK118: 39 | DL118: 0 | DM118: 39 | DN118: 12118 | DO118: 39 | DP118: 12603 | DQ118: 35 | DR118: 11144 | DS118: 35 | DT118: 11746 | DU118: 35 | DV118: 12427 | DW118: Cooperative Governance And Traditional Affairs|Administration | DX118: 004 | DY118: 001 | DZ118: 004001 | EC118: 324 | ED118: 1 | EE118: 3 | EF118: Communications | EG118: 2 | EH118: Communications Policy, Research and Development | EI118: 4 | EJ118: Technology and Engineering Services | EK118: Current payments | EL118: Compensation of employees | EM118: Compensation of employees | EN118: 0 | EO118: 0 | EP118: 0 | EQ118: 925 | ER118: 1 | ES118: 0 | ET118: 0 | EU118: 0 | EV118: 0 | EW118: 0 | EX118: 0 | EY118: 0 | EZ118: 0 | FA118: 0 | FB118: Communications|Communications Policy, Research and Development | FC118: 003 | FD118: 002 | FE118: 004 | FF118: 001 | FG118: 003002 | FH118: 003001 | FI118: 1 | FJ118: 003002004001 | FL118: 003002001 | FT118: 6 | FU118: International Relations and Cooperation | FV118: 2 | FW118: International Relations | FX118: 2 | FY118: Asia and Middle East
Y119: 14 | AA119: 14 | AB119: 16 | AC119: Health | AF119: Aparna Kollipara | AG119: (012) 315 5386 | AH119: Aparna.Kollipara@treasury.gov.za | AI119: Refiloe Thokoa | AJ119: (012) 395 6559 | AK119: Refiloe.Thokoa@treasury.gov.za | AO119: datafileNAT@treasury.gov.za | AP119: 878298 | AQ119: 954316 | AR119: 1026844.013 | AT119: 16 | AU119: Health | AV119: 760037 | AW119: 828822 | AX119: 894357 | DG119: Cooperative Governance And Traditional Affairs | DH119: Administration | DI119: 7 | DJ119: 9 | DK119: 9 | DL119: 0 | DM119: 9 | DN119: 3217 | DO119: 9 | DP119: 3554 | DQ119: 13 | DR119: 4457 | DS119: 13 | DT119: 4698 | DU119: 13 | DV119: 4970 | DW119: Cooperative Governance And Traditional Affairs|Administration | DX119: 004 | DY119: 001 | DZ119: 004001 | EC119: 324 | ED119: 2 | EE119: 3 | EF119: Communications | EG119: 2 | EH119: Communications Policy, Research and Development | EI119: 4 | EJ119: Technology and Engineering Services | EK119: Current payments | EL119: Goods and services | EM119: Goods and services | EN119: 0 | EO119: 0 | EP119: 0 | EQ119: 108 | ER119: 108 | ES119: 410 | ET119: 438 | EU119: 458 | EV119: 0 | EW119: 0 | EX119: 0 | EY119: 438 | EZ119: 458 | FA119: 483.648 | FB119: Communications|Communications Policy, Research and Development | FC119: 003 | FD119: 002 | FE119: 004 | FF119: 002 | FG119: 003002 | FH119: 003002 | FI119: 2 | FJ119: 003002004002 | FL119: 003002002 | FT119: 6 | FU119: International Relations and Cooperation | FV119: 2 | FW119: International Relations | FX119: 3 | FY119: Americas and Caribbean
Y120: 15 | AA120: 15 | AB120: 15 | AC120: Higher Education and Training | AF120: Nokwazi Makanya | AG120: (012) 315 9057 | AH120: Nokwazi.Makanya@treasury.gov.za | AI120: Barileng Sape | AJ120: (012) 406 9069 | AK120: Barileng.Sape@treasury.gov.za | AO120: datafileNAT@treasury.gov.za | AP120: 8429841 | AQ120: 8961753 | AR120: 9642846.196 | AT120: 15 | AU120: Higher Education and Training | AV120: 8425378 | AW120: 8956964 | AX120: 9637693 | DG120: Cooperative Governance And Traditional Affairs | DH120: Administration | DI120: 8 | DJ120: 16 | DK120: 16 | DL120: 0 | DM120: 16 | DN120: 6614 | DO120: 16 | DP120: 6877 | DQ120: 25 | DR120: 9475 | DS120: 25 | DT120: 9997 | DU120: 25 | DV120: 10577 | DW120: Cooperative Governance And Traditional Affairs|Administration | DX120: 004 | DY120: 001 | DZ120: 004001 | EC120: 332 | ED120: 1 | EE120: 3 | EF120: Communications | EG120: 3 | EH120: Industry and Capacity Development | EI120: 2 | EJ120: Enterprise Development | EK120: Current payments | EL120: Compensation of employees | EM120: Compensation of employees | EN120: 4490 | EO120: 4490 | EP120: 4791 | EQ120: 4062 | ER120: 3415 | ES120: 5112 | ET120: 6559 | EU120: 6853 | EV120: 0 | EW120: 0 | EX120: 0 | EY120: 6559 | EZ120: 6853 | FA120: 7373.827976 | FB120: Communications|Industry and Capacity Development | FC120: 003 | FD120: 003 | FE120: 002 | FF120: 001 | FG120: 003003 | FH120: 003001 | FI120: 1 | FJ120: 003003002001 | FL120: 003003001 | FT120: 6 | FU120: International Relations and Cooperation | FV120: 2 | FW120: International Relations | FX120: 4 | FY120: Europe
Y121: 16 | AA121: 16 | AB121: 5 | AC121: Home Affairs | AF121: Isaac Mabena | AG121: (012) 315 5582 | AH121: Isaac.Mabena@treasury.gov.za | AO121: datafileNAT@treasury.gov.za | AP121: 3233745 | AQ121: 3328378 | AR121: 3581334.716 | AT121: 5 | AU121: Home Affairs | AV121: 3198176 | AW121: 3291079 | AX121: 3541970 | DG121: Cooperative Governance And Traditional Affairs | DH121: Administration | DI121: 9 | DJ121: 21 | DK121: 21 | DL121: 0 | DM121: 21 | DN121: 9541 | DO121: 21 | DP121: 9923 | DQ121: 35 | DR121: 13848 | DS121: 35 | DT121: 14696 | DU121: 35 | DV121: 15548 | DW121: Cooperative Governance And Traditional Affairs|Administration | DX121: 004 | DY121: 001 | DZ121: 004001 | EC121: 332 | ED121: 2 | EE121: 3 | EF121: Communications | EG121: 3 | EH121: Industry and Capacity Development | EI121: 2 | EJ121: Enterprise Development | EK121: Current payments | EL121: Goods and services | EM121: Goods and services | EN121: 1300 | EO121: 1368 | EP121: 1440 | EQ121: 740 | ER121: 321 | ES121: 1470 | ET121: 1546 | EU121: 1637 | EV121: 0 | EW121: 0 | EX121: 0 | EY121: 1546 | EZ121: 1637 | FA121: 1728.672 | FB121: Communications|Industry and Capacity Development | FC121: 003 | FD121: 003 | FE121: 002 | FF121: 002 | FG121: 003003 | FH121: 003002 | FI121: 2 | FJ121: 003003002002 | FL121: 003003002 | FT121: 6 | FU121: International Relations and Cooperation | FV121: 3 | FW121: International Cooperation | FX121: 1 | FY121: Global System of Governance
Y122: 17 | AA122: 17 | AB122: 38 | AC122: Human Settlements | AF122: James Archer | AG122: (012) 395 6736 | AH122: James.Archer@treasury.gov.za | AI122: Lindiwe Ngcongwane | AJ122: (012) 315 5357 | AK122: Lindiwe.Ngcongwane@treasury.gov.za | AO122: datafileNAT@treasury.gov.za | AP122: 387519 | AQ122: 381217 | AR122: 410189.4906 | AT122: 38 | AU122: Human Settlements | AV122: 383257 | AW122: 376945 | AX122: 405680 | CZ122: =+CQ122&CR122&CS122 ->  | DG122: Cooperative Governance And Traditional Affairs | DH122: Administration | DI122: 10 | DJ122: 0 | DK122: 0 | DL122: 0 | DM122: 0 | DN122: 0 | DO122: 0 | DP122: 0 | DQ122: 2 | DR122: 900 | DS122: 2 | DT122: 949 | DU122: 2 | DV122: 1004 | DW122: Cooperative Governance And Traditional Affairs|Administration | DX122: 004 | DY122: 001 | DZ122: 004001 | EC122: 332 | ED122: 57 | EE122: 3 | EF122: Communications | EG122: 3 | EH122: Industry and Capacity Development | EI122: 2 | EJ122: Enterprise Development | EK122: Payments for capital assets | EL122: Machinery and equipment | EM122: Other machinery and equipment | EN122: 88 | EO122: 142 | EP122: 150 | EQ122: 150 | ER122: 50 | ES122: 40 | ET122: 41 | EU122: 44 | EV122: 0 | EW122: 0 | EX122: 0 | EY122: 41 | EZ122: 44 | FA122: 46.464 | FB122: Communications|Industry and Capacity Development | FC122: 003 | FD122: 003 | FE122: 002 | FF122: 057 | FG122: 003003 | FH122: 003057 | FI122: 57 | FJ122: 003003002057 | FL122: 003003057 | FT122: 6 | FU122: International Relations and Cooperation | FV122: 3 | FW122: International Cooperation | FX122: 2 | FY122: Continental Cooperation
Y123: 18 | AA123: 18 | AB123: 20 | AC123: Independent Police Investigative Directorate | AF123: Nompumelelo Radebe | AG123: (012) 315 5957 | AH123: Nompumelelo.Radebe@treasury.gov.za | AI123: Velisubuhle Buti | AJ123: (012) 395 6709 | AK123: Sithabiso.Buthelezi@treasury.gov.za | AO123: datafileNAT@treasury.gov.za | AP123: 186157 | AQ123: 195797 | AR123: 210677.5713 | AT123: 20 | AU123: Independent Police Investigative Directorate | AV123: 186157 | AW123: 195797 | AX123: 210678 | DG123: Cooperative Governance And Traditional Affairs | DH123: Administration | DI123: 11 | DJ123: 46 | DK123: 46 | DL123: 0 | DM123: 46 | DN123: 20897 | DO123: 39 | DP123: 21105 | DQ123: 35 | DR123: 26931 | DS123: 35 | DT123: 28385 | DU123: 35 | DV123: 30031 | DW123: Cooperative Governance And Traditional Affairs|Administration | DX123: 004 | DY123: 001 | DZ123: 004001 | EC123: 333 | ED123: 1 | EE123: 3 | EF123: Communications | EG123: 3 | EH123: Industry and Capacity Development | EI123: 3 | EJ123: Broadcasting Digital Migration | EK123: Current payments | EL123: Compensation of employees | EM123: Compensation of employees | EN123: 2488 | EO123: 2639 | EP123: 2816 | EQ123: 3545 | ER123: 2179 | ES123: 3004 | ET123: 3206 | EU123: 3392 | EV123: 0 | EW123: 0 | EX123: 0 | EY123: 3206 | EZ123: 3392 | FA123: 3649.791988 | FB123: Communications|Industry and Capacity Development | FC123: 003 | FD123: 003 | FE123: 003 | FF123: 001 | FG123: 003003 | FH123: 003001 | FI123: 1 | FJ123: 003003003001 | FL123: 003003001 | FT123: 6 | FU123: International Relations and Cooperation | FV123: 3 | FW123: International Cooperation | FX123: 3 | FY123: South-South Cooperation
Y124: 19 | AA124: 19 | AB124: 6 | AC124: International Relations and Cooperation | AF124: Gcobisa Matshaya | AG124: (012) 315 5320 | AH124: Gcobisa.Matshaya@treasury.gov.za | AI124: Thulasizwe Motha | AJ124: (012) 406 9019 | AK124: Thulasizwe.Motha@treasury.gov.za | AO124: datafileNAT@treasury.gov.za | AP124: 2563514 | AQ124: 2655820 | AR124: 2857662.311 | AT124: 6 | AU124: International Relations and Cooperation | AV124: 2914027 | AW124: 2964489 | AX124: 2874494 | DG124: Cooperative Governance And Traditional Affairs | DH124: Administration | DI124: 12 | DJ124: 5 | DK124: 5 | DL124: 0 | DM124: 5 | DN124: 3106 | DO124: 5 | DP124: 3230 | DQ124: 8 | DR124: 6529 | DS124: 8 | DT124: 6982 | DU124: 8 | DV124: 7387 | DW124: Cooperative Governance And Traditional Affairs|Administration | DX124: 004 | DY124: 001 | DZ124: 004001 | EC124: 333 | ED124: 2 | EE124: 3 | EF124: Communications | EG124: 3 | EH124: Industry and Capacity Development | EI124: 3 | EJ124: Broadcasting Digital Migration | EK124: Current payments | EL124: Goods and services | EM124: Goods and services | EN124: 650 | EO124: 684 | EP124: 1000 | EQ124: 11700 | ER124: 11965 | ES124: 1100 | ET124: 1150 | EU124: 7154 | EV124: 0 | EW124: 0 | EX124: 0 | EY124: 1150 | EZ124: 7154 | FA124: 7554.624 | FB124: Communications|Industry and Capacity Development | FC124: 003 | FD124: 003 | FE124: 003 | FF124: 002 | FG124: 003003 | FH124: 003002 | FI124: 2 | FJ124: 003003003002 | FL124: 003003002 | FT124: 6 | FU124: International Relations and Cooperation | FV124: 3 | FW124: International Cooperation | FX124: 4 | FY124: North-South Dialogue
Y125: 20 | AA125: 20 | AB125: 21 | AC125: Justice and Constitutional Development | AF125: Maggy Mokoka | AG125: (012) 315 5468 | AH125: Maggy.Mokoka@treasury.gov.za | AI125: Rendani Randela | AJ125: (012) 315 5345 | AK125: rendani.randela@treasury.gov.za | AO125: datafileNAT@treasury.gov.za | AP125: 10578040 | AQ125: 11067609 | AR125: 11908747.24 | AT125: 21 | AU125: Justice and Constitutional Development | AV125: 10578040 | AW125: 11067609 | AX125: 11908747 | DG125: Cooperative Governance And Traditional Affairs | DH125: Administration | DI125: 13 | DJ125: 29 | DK125: 29 | DL125: 0 | DM125: 29 | DN125: 25290 | DO125: 29 | DP125: 26351 | DQ125: 36 | DR125: 30688 | DS125: 36 | DT125: 32455 | DU125: 36 | DV125: 34337 | DW125: Cooperative Governance And Traditional Affairs|Administration | DX125: 004 | DY125: 001 | DZ125: 004001 | EC125: 333 | ED125: 57 | EE125: 3 | EF125: Communications | EG125: 3 | EH125: Industry and Capacity Development | EI125: 3 | EJ125: Broadcasting Digital Migration | EK125: Payments for capital assets | EL125: Machinery and equipment | EM125: Other machinery and equipment | EN125: 0 | EO125: 0 | EP125: 0 | EQ125: 0 | ER125: 32 | ES125: 0 | ET125: 0 | EU125: 0 | EV125: 0 | EW125: 0 | EX125: 0 | EY125: 0 | EZ125: 0 | FA125: 0 | FB125: Communications|Industry and Capacity Development | FC125: 003 | FD125: 003 | FE125: 003 | FF125: 057 | FG125: 003003 | FH125: 003057 | FI125: 57 | FJ125: 003003003057 | FL125: 003003057 | FT125: 6 | FU125: International Relations and Cooperation | FV125: 4 | FW125: Public Diplomacy and Protocol Services | FX125: 1 | FY125: Public Diplomacy
Y126: 21 | AA126: 21 | AB126: 28 | AC126: Labour | AF126: Judy Naidoo | AG126: (012) 315 5269 | AH126: Judy.Naidoo@treasury.gov.za | AI126: Nico Likhethe | AJ126: (012) 315 5773 | AK126: Velisubuhle.Buti@treasury.gov.za | AO126: datafileNAT@treasury.gov.za | AP126: 1221487 | AQ126: 1307915 | AR126: 1407316.535 | AT126: 28 | AU126: Labour | AV126: 1224502 | AW126: 1317790 | AX126: 1410207 | DG126: Cooperative Governance And Traditional Affairs | DH126: Administration | DI126: 14 | DJ126: 11 | DK126: 11 | DL126: 0 | DM126: 11 | DN126: 10710 | DO126: 11 | DP126: 11238 | DQ126: 8 | DR126: 7824 | DS126: 8 | DT126: 8246 | DU126: 8 | DV126: 8724 | DW126: Cooperative Governance And Traditional Affairs|Administration | DX126: 004 | DY126: 001 | DZ126: 004001 | EC126: 334 | ED126: 2 | EE126: 3 | EF126: Communications | EG126: 3 | EH126: Industry and Capacity Development | EI126: 4 | EJ126: Industry Research and Analysis | EK126: Current payments | EL126: Goods and services | EM126: Goods and services | EN126: 0 | EO126: 0 | EP126: 0 | EQ126: 0 | ER126: 0 | ES126: 168 | ET126: 179 | EU126: 188 | EV126: 0 | EW126: 0 | EX126: 0 | EY126: 179 | EZ126: 188 | FA126: 198.528 | FB126: Communications|Industry and Capacity Development | FC126: 003 | FD126: 003 | FE126: 004 | FF126: 002 | FG126: 003003 | FH126: 003002 | FI126: 2 | FJ126: 003003004002 | FL126: 003003002 | FT126: 6 | FU126: International Relations and Cooperation | FV126: 4 | FW126: Public Diplomacy and Protocol Services | FX126: 2 | FY126: Protocol Services
Y127: 22 | AA127: 22 | AB127: 42 | AC127: Military Veterans | AF127: Mashudu Bidzha | AG127: (012) 315 5344 | AH127: Mashudu.Bidzha@treasury.gov.za | AI127: Lesiba Ledwaba | AJ127: (012) 395 6660 | AK127: Lesiba.Ledwaba@treasury.gov.za | AO127: datafileNAT@treasury.gov.za | AP127: 113829 | AQ127: 122257 | AR127: 131548.5316 | AT127: 42 | AU127: Military Veterans | AV127: 113829 | AW127: 122257 | AX127: 131549 | DG127: Cooperative Governance And Traditional Affairs | DH127: Administration | DI127: 15 | DJ127: 2 | DK127: 2 | DL127: 0 | DM127: 2 | DN127: 2100 | DO127: 2 | DP127: 2184 | DQ127: 2 | DR127: 2095 | DS127: 2 | DT127: 2218 | DU127: 2 | DV127: 2347 | DW127: Cooperative Governance And Traditional Affairs|Administration | DX127: 004 | DY127: 001 | DZ127: 004001 | EC127: 341 | ED127: 1 | EE127: 3 | EF127: Communications | EG127: 4 | EH127: Entity Oversight | EI127: 1 | EJ127: Programme Management for Entity Oversight | EK127: Current payments | EL127: Compensation of employees | EM127: Compensation of employees | EN127: 0 | EO127: 0 | EP127: 1698 | EQ127: 1698 | ER127: 1906 | ES127: 1665 | ET127: 1748 | EU127: 1847 | EV127: 0 | EW127: 0 | EX127: 0 | EY127: 1748 | EZ127: 1847 | FA127: 1987.371993 | FB127: Communications|Entity Oversight | FC127: 003 | FD127: 004 | FE127: 001 | FF127: 001 | FG127: 003004 | FH127: 003001 | FI127: 1 | FJ127: 003004001001 | FL127: 003004001 | FT127: 6 | FU127: International Relations and Cooperation | FV127: 5 | FW127: International Transfers | FX127: 1 | FY127: Departmental agencies
Y128: 23 | AA128: 23 | AB128: 29 | AC128: Mineral Resources | AF128: Bothwell Deka | AG128: (012) 395 6784 | AH128: Bothwell.Deka@treasury.gov.za | AI128: Tumelo Mokgoshi | AJ128: (012) 395 6777 | AK128: Tumelo.Mokgoshi@treasury.gov.za | AO128: datafileNAT@treasury.gov.za | AP128: 579130 | AQ128: 604785 | AR128: 650748.6578 | AT128: 29 | AU128: Mineral Resources | AV128: 572760 | AW128: 598008 | AX128: 643596 | DG128: Cooperative Governance And Traditional Affairs | DH128: Administration | DI128: 16 | DJ128: 2 | DK128: 2 | DL128: 0 | DM128: 2 | DN128: 4296 | DO128: 2 | DP128: 4410 | DQ128: 3 | DR128: 6800 | DS128: 3 | DT128: 7254 | DU128: 3 | DV128: 7677 | DW128: Cooperative Governance And Traditional Affairs|Administration | DX128: 004 | DY128: 001 | DZ128: 004001 | EC128: 341 | ED128: 2 | EE128: 3 | EF128: Communications | EG128: 4 | EH128: Entity Oversight | EI128: 1 | EJ128: Programme Management for Entity Oversight | EK128: Current payments | EL128: Goods and services | EM128: Goods and services | EN128: 0 | EO128: 0 | EP128: 365 | EQ128: 365 | ER128: 300 | ES128: 466 | ET128: 492 | EU128: 523 | EV128: 0 | EW128: 0 | EX128: 0 | EY128: 492 | EZ128: 523 | FA128: 552.288 | FB128: Communications|Entity Oversight | FC128: 003 | FD128: 004 | FE128: 001 | FF128: 002 | FG128: 003004 | FH128: 003002 | FI128: 2 | FJ128: 003004001002 | FL128: 003004002 | FT128: 6 | FU128: International Relations and Cooperation | FV128: 5 | FW128: International Transfers | FX128: 2 | FY128: Membership contribution
Y129: 24 | AA129: 24 | AB129: 44 | AC129: National School of Government | AF129: George Tembo | AG129: (012) 315 5514 | AH129: George.Tembo@treasury.gov.za | AI129: Mokgatla Tema | AJ129: (012) 315 5948 | AK129: Mokgatla.Tema@treasury.gov.za | AO129: datafileNAT@treasury.gov.za | AP129: 52488 | AQ129: 59340 | AR129: 63849.83979 | AT129: 44 | AU129: National School of Government | AV129: 51911 | AW129: 58687 | AX129: 63148 | DG129: Cooperative Governance And Traditional Affairs | DH129: Regional and Urban Development and Legislative Support | DI129: 5 | DJ129: 1 | DK129: 1 | DL129: 0 | DM129: 1 | DN129: 184 | DO129: 1 | DP129: 194 | DQ129: 2 | DR129: 294 | DS129: 2 | DT129: 311 | DU129: 2 | DV129: 329 | DW129: Cooperative Governance And Traditional Affairs|Regional and Urban Development and Legislative Support | DX129: 004 | DY129: 002 | DZ129: 004002 | EC129: 341 | ED129: 57 | EE129: 3 | EF129: Communications | EG129: 4 | EH129: Entity Oversight | EI129: 1 | EJ129: Programme Management for Entity Oversight | EK129: Payments for capital assets | EL129: Machinery and equipment | EM129: Other machinery and equipment | EN129: 0 | EO129: 0 | EP129: 76 | EQ129: 76 | ER129: 76 | ES129: 0 | ET129: 0 | EU129: 0 | EV129: 0 | EW129: 0 | EX129: 0 | EY129: 0 | EZ129: 0 | FA129: 0 | FB129: Communications|Entity Oversight | FC129: 003 | FD129: 004 | FE129: 001 | FF129: 057 | FG129: 003004 | FH129: 003057 | FI129: 57 | FJ129: 003004001057 | FL129: 003004057 | FT129: 7 | FU129: National Treasury | FV129: 1 | FW129: Administration | FX129: 1 | FY129: Ministry
Y130: 25 | AA130: 25 | AB130: 7 | AC130: National Treasury | AF130: Japie Jacobs | AG130: (012) 315 5546 | AH130: Japie.Jacobs@treasury.gov.za | AI130: Rhoda Marais | AJ130: (012) 315 5906 | AK130: Rhoda.Marais@treasury.gov.za | AO130: datafileNAT@treasury.gov.za | AP130: 808165 | AQ130: 816915 | AR130: 879000.5371 | AT130: 7 | AU130: National Treasury | AV130: 799276 | AW130: 807760 | AX130: 869339 | DG130: Cooperative Governance And Traditional Affairs | DH130: Regional and Urban Development and Legislative Support | DI130: 6 | DJ130: 4 | DK130: 4 | DL130: 0 | DM130: 4 | DN130: 976 | DO130: 4 | DP130: 1036 | DQ130: 8 | DR130: 1344 | DS130: 8 | DT130: 1422 | DU130: 8 | DV130: 1504 | DW130: Cooperative Governance And Traditional Affairs|Regional and Urban Development and Legislative Support | DX130: 004 | DY130: 002 | DZ130: 004002 | EC130: 342 | ED130: 1 | EE130: 3 | EF130: Communications | EG130: 4 | EH130: Entity Oversight | EI130: 2 | EJ130: Broadcasting and Community Media | EK130: Current payments | EL130: Compensation of employees | EM130: Compensation of employees | EN130: 1846 | EO130: 2834 | EP130: 4304 | EQ130: 2004 | ER130: 569 | ES130: 4577 | ET130: 4865 | EU130: 5145 | EV130: 0 | EW130: 0 | EX130: 0 | EY130: 4865 | EZ130: 5145 | FA130: 5536.019982 | FB130: Communications|Entity Oversight | FC130: 003 | FD130: 004 | FE130: 002 | FF130: 001 | FG130: 003004 | FH130: 003001 | FI130: 1 | FJ130: 003004002001 | FL130: 003004001 | FT130: 7 | FU130: National Treasury | FV130: 1 | FW130: Administration | FX130: 2 | FY130: Departmental Management
Y131: 26 | AA131: 26 | AB131: 22 | AC131: Office of the Chief Justice and Judicial Administration | AF131: Werner Krause | AG131: (012) 315 5211 | AH131: Werner.Krause@treasury.gov.za | AI131: Keabetswe Matlwa | AJ131: (012) 395 6678 | AK131: Keabetswe.Matlwa@treasury.gov.za | AO131: datafileNAT@treasury.gov.za | AP131: 1524040 | AQ131: 1609065 | AR131: 1731353.934 | AT131: 22 | AU131: Office of the Chief Justice and Judicial Administration | AV131: 1533598 | AW131: 1619187 | AX131: 1742043 | CY131: =+CQ131&CR131&CS131&CT131&CU131 ->  | DG131: Cooperative Governance And Traditional Affairs | DH131: Regional and Urban Development and Legislative Support | DI131: 7 | DJ131: 1 | DK131: 1 | DL131: 0 | DM131: 1 | DN131: 307 | DO131: 1 | DP131: 344 | DQ131: 1 | DR131: 218 | DS131: 1 | DT131: 231 | DU131: 1 | DV131: 244 | DW131: Cooperative Governance And Traditional Affairs|Regional and Urban Development and Legislative Support | DX131: 004 | DY131: 002 | DZ131: 004002 | EC131: 342 | ED131: 2 | EE131: 3 | EF131: Communications | EG131: 4 | EH131: Entity Oversight | EI131: 2 | EJ131: Broadcasting and Community Media | EK131: Current payments | EL131: Goods and services | EM131: Goods and services | EN131: 221 | EO131: 808 | EP131: 331 | EQ131: 331 | ER131: 168 | ES131: 466 | ET131: 492 | EU131: 523 | EV131: 0 | EW131: 0 | EX131: 0 | EY131: 492 | EZ131: 523 | FA131: 552.288 | FB131: Communications|Entity Oversight | FC131: 003 | FD131: 004 | FE131: 002 | FF131: 002 | FG131: 003004 | FH131: 003002 | FI131: 2 | FJ131: 003004002002 | FL131: 003004002 | FT131: 7 | FU131: National Treasury | FV131: 1 | FW131: Administration | FX131: 3 | FY131: Corporate Services
Y132: 27 | AA132: 27 | AB132: 2 | AC132: Parliament | AF132: Isaac Mabena | AG132: (012) 315 5582 | AH132: Isaac.Mabena@treasury.gov.za | AO132: datafileNAT@treasury.gov.za | AP132: 1356714 | AQ132: 1406925 | AR132: 1513851.295 | AT132: 2 | AU132: Parliament | AV132: 1341791 | AW132: 1391159 | AX132: 1497211 | CZ132: =+CQ132&CR132&CS132 ->  | DA132: =+CQ132&CR132&CS132&CU132 ->  | DG132: Cooperative Governance And Traditional Affairs | DH132: Regional and Urban Development and Legislative Support | DI132: 8 | DJ132: 3 | DK132: 3 | DL132: 0 | DM132: 3 | DN132: 1068 | DO132: 3 | DP132: 1196 | DQ132: 3 | DR132: 780 | DS132: 3 | DT132: 825 | DU132: 3 | DV132: 873 | DW132: Cooperative Governance And Traditional Affairs|Regional and Urban Development and Legislative Support | DX132: 004 | DY132: 002 | DZ132: 004002 | EC132: 342 | ED132: 46 | EE132: 3 | EF132: Communications | EG132: 4 | EH132: Entity Oversight | EI132: 2 | EJ132: Broadcasting and Community Media | EK132: Transfers and subsidies | EL132: Departmental agencies and accounts | EM132: Departmental agencies (non-business entities) | EN132: 20790 | EO132: 21815 | EP132: 22615 | EQ132: 22615 | ER132: 22615 | ES132: 23814 | ET132: 25005 | EU132: 26455 | EV132: 0 | EW132: 0 | EX132: 0 | EY132: 25005 | EZ132: 26455 | FA132: 27936.48 | FB132: Communications|Entity Oversight | FC132: 003 | FD132: 004 | FE132: 002 | FF132: 046 | FG132: 003004 | FH132: 003046 | FI132: 46 | FJ132: 003004002046 | FL132: 003004046 | FT132: 7 | FU132: National Treasury | FV132: 1 | FW132: Administration | FX132: 4 | FY132: Enterprise Wide Risk Management
Y133: 28 | AA133: 28 | AB133: 8 | AC133: Planning, Monitoring and Evaluation | AF133: Gcobisa Matshaya | AG133: (012) 315 5320 | AH133: Gcobisa.Matshaya@treasury.gov.za | AI133: Thulasizwe Motha | AJ133: (012) 406 9019 | AK133: Thulasizwe.Motha@treasury.gov.za | AO133: datafileNAT@treasury.gov.za | AP133: 279163 | AQ133: 318997 | AR133: 343240.7709 | AT133: 8 | AU133: Planning, Monitoring and Evaluation | AV133: 276092 | AW133: 273398 | AX133: 331556 | DG133: Cooperative Governance And Traditional Affairs | DH133: Regional and Urban Development and Legislative Support | DI133: 9 | DJ133: 1 | DK133: 1 | DL133: 0 | DM133: 1 | DN133: 364 | DO133: 1 | DP133: 408 | DQ133: 3 | DR133: 1203 | DS133: 3 | DT133: 1273 | DU133: 3 | DV133: 1347 | DW133: Cooperative Governance And Traditional Affairs|Regional and Urban Development and Legislative Support | DX133: 004 | DY133: 002 | DZ133: 004002 | EC133: 342 | ED133: 49 | EE133: 3 | EF133: Communications | EG133: 4 | EH133: Entity Oversight | EI133: 2 | EJ133: Broadcasting and Community Media | EK133: Transfers and subsidies | EL133: Public corporations and private enterprises | EM133: Public corporations | EN133: 256570 | EO133: 227168 | EP133: 172927 | EQ133: 172927 | ER133: 172927 | ES133: 182093 | ET133: 191198 | EU133: 202287 | EV133: 0 | EW133: 0 | EX133: 0 | EY133: 191198 | EZ133: 202287 | FA133: 213615.072 | FB133: =+EF133&"|"&EH133 -> Communications|Entity Oversight | FC133: =REPT("0",3-LEN(EE133))&EE133 -> 003 | FD133: =REPT("0",3-LEN(EG133))&EG133 -> 004 | FE133: =REPT("0",3-LEN(EI133))&EI133 -> 002 | FF133: =REPT("0",3-LEN(ED133))&ED133 -> 049 | FG133: =+FC133&FD133 -> 003004 | FH133: =+FC133&FF133 -> 003049 | FI133: =+FF133*1 -> 49 | FJ133: =FG133&FE133&REPT("0",3-LEN(FI133))&FI133 -> 003004002049 | FL133: =LEFT(FJ133,6)&FF133 -> 003004049 | FT133: 7 | FU133: National Treasury | FV133: 1 | FW133: Administration | FX133: 5 | FY133: Financial Administration
Y134: 29 | AA134: 29 | AB134: 23 | AC134: Police | AF134: Nompumelelo Radebe | AG134: (012) 315 5957 | AH134: Nompumelelo.Radebe@treasury.gov.za | AI134: Sithabiso Buthelezi | AJ134: (012) 406 9025 | AK134: Sithabiso.Buthelezi@treasury.gov.za | AO134: datafileNAT@treasury.gov.za | AP134: 66196773 | AQ134: 70655395 | AR134: 76025204.77 | AT134: 23 | AU134: Police | AV134: 66196773 | AW134: 70655395 | AX134: 76025205 | DG134: Cooperative Governance And Traditional Affairs | DH134: Regional and Urban Development and Legislative Support | DI134: 11 | DJ134: 2 | DK134: 2 | DL134: 0 | DM134: 2 | DN134: 1300 | DO134: 2 | DP134: 1456 | DQ134: 7 | DR134: 4228 | DS134: 7 | DT134: 4473 | DU134: 7 | DV134: 4733 | DW134: Cooperative Governance And Traditional Affairs|Regional and Urban Development and Legislative Support | DX134: 004 | DY134: 002 | DZ134: 004002 | EC134: 342 | ED134: 57 | EE134: 3 | EF134: Communications | EG134: 4 | EH134: Entity Oversight | EI134: 2 | EJ134: Broadcasting and Community Media | EK134: Payments for capital assets | EL134: Machinery and equipment | EM134: Other machinery and equipment | EN134: 0 | EO134: 74 | EP134: 76 | EQ134: 76 | ER134: 76 | ES134: 0 | ET134: 0 | EU134: 0 | EV134: 0 | EW134: 0 | EX134: 0 | EY134: 0 | EZ134: 0 | FA134: 0 | FB134: Communications|Entity Oversight | FC134: 003 | FD134: 004 | FE134: 002 | FF134: 057 | FG134: 003004 | FH134: 003057 | FI134: 57 | FJ134: 003004002057 | FL134: 003004057 | FT134: 7 | FU134: National Treasury | FV134: 1 | FW134: Administration | FX134: 6 | FY134: Legal Services
Y135: 30 | AA135: 30 | AB135: 9 | AC135: Public Enterprises | AF135: Thabiso Molewa | AG135: (012) 315 6780 | AH135: Thabiso.Molewa@treasury.gov.za | AO135: datafileNAT@treasury.gov.za | AP135: 168797 | AQ135: 173464 | AR135: 186647.2634 | AT135: 9 | AU135: Public Enterprises | AV135: 166940 | AW135: 171520 | AX135: 184595 | DG135: Cooperative Governance And Traditional Affairs | DH135: Regional and Urban Development and Legislative Support | DI135: 12 | DJ135: 0 | DK135: 0 | DL135: 0 | DM135: 0 | DN135: 0 | DO135: 0 | DP135: 0 | DQ135: 2 | DR135: 1590 | DS135: 2 | DT135: 1682 | DU135: 2 | DV135: 1830 | DW135: Cooperative Governance And Traditional Affairs|Regional and Urban Development and Legislative Support | DX135: 004 | DY135: 002 | DZ135: 004002 | EC135: 343 | ED135: 1 | EE135: 3 | EF135: Communications | EG135: 4 | EH135: Entity Oversight | EI135: 3 | EJ135: Communication and Branding | EK135: Current payments | EL135: Compensation of employees | EM135: Compensation of employees | EN135: 0 | EO135: 0 | EP135: 1280 | EQ135: 4380 | ER135: 3099 | ES135: 1351 | ET135: 1422 | EU135: 1502 | EV135: 0 | EW135: 0 | EX135: 0 | EY135: 1422 | EZ135: 1502 | FA135: 1616.151995 | FB135: Communications|Entity Oversight | FC135: 003 | FD135: 004 | FE135: 003 | FF135: 001 | FG135: 003004 | FH135: 003001 | FI135: 1 | FJ135: 003004003001 | FL135: 003004001 | FT135: 7 | FU135: National Treasury | FV135: 1 | FW135: Administration | FX135: 7 | FY135: Internal Audit
Y136: 31 | AA136: 31 | AB136: 10 | AC136: Public Service and Administration | AF136: George Tembo | AG136: (012) 315 5514 | AH136: George.Tembo@treasury.gov.za | AI136: Mokgatla Tema | AJ136: (012) 315 5948 | AK136: Mokgatla.Tema@treasury.gov.za | AO136: datafileNAT@treasury.gov.za | AP136: 278777 | AQ136: 291921 | AR136: 314106.995 | AT136: 10 | AU136: Public Service and Administration | AV136: 275711 | AW136: 288650 | AX136: 310654 | DG136: Cooperative Governance And Traditional Affairs | DH136: Regional and Urban Development and Legislative Support | DI136: 13 | DJ136: 9 | DK136: 9 | DL136: 0 | DM136: 9 | DN136: 7209 | DO136: 9 | DP136: 8074 | DQ136: 9 | DR136: 7893 | DS136: 9 | DT136: 8351 | DU136: 9 | DV136: 8835 | DW136: Cooperative Governance And Traditional Affairs|Regional and Urban Development and Legislative Support | DX136: 004 | DY136: 002 | DZ136: 004002 | EC136: 343 | ED136: 2 | EE136: 3 | EF136: Communications | EG136: 4 | EH136: Entity Oversight | EI136: 3 | EJ136: Communication and Branding | EK136: Current payments | EL136: Goods and services | EM136: Goods and services | EN136: 0 | EO136: 0 | EP136: 331 | EQ136: 331 | ER136: 332 | ES136: 466 | ET136: 492 | EU136: 523 | EV136: 0 | EW136: 0 | EX136: 0 | EY136: 492 | EZ136: 523 | FA136: 552.288 | FB136: Communications|Entity Oversight | FC136: 003 | FD136: 004 | FE136: 003 | FF136: 002 | FG136: 003004 | FH136: 003002 | FI136: 2 | FJ136: 003004003002 | FL136: 003004002 | FT136: 7 | FU136: National Treasury | FV136: 1 | FW136: Administration | FX136: 8 | FY136: Communications
Y137: 32 | AA137: 32 | AB137: 45 | AC137: Public Service Commission | AF137: George Tembo | AG137: (012) 315 5514 | AH137: George.Tembo@treasury.gov.za | AI137: Viwe Sobudula | AJ137: (012) 315 5015 | AK137: Viwe.Sobudula@treasury.gov.za | AO137: datafileNAT@treasury.gov.za | AP137: 195322 | AQ137: 209569 | AR137: 225496.2433 | AT137: 45 | AU137: Public Service Commission | AV137: 193173 | AW137: 207264 | AX137: 223016 | DG137: Cooperative Governance And Traditional Affairs | DH137: Regional and Urban Development and Legislative Support | DI137: 14 | DJ137: 7 | DK137: 7 | DL137: 0 | DM137: 7 | DN137: 6580 | DO137: 7 | DP137: 7370 | DQ137: 5 | DR137: 4385 | DS137: 5 | DT137: 4639 | DU137: 5 | DV137: 5019 | DW137: Cooperative Governance And Traditional Affairs|Regional and Urban Development and Legislative Support | DX137: 004 | DY137: 002 | DZ137: 004002 | EC137: 343 | ED137: 46 | EE137: 3 | EF137: Communications | EG137: 4 | EH137: Entity Oversight | EI137: 3 | EJ137: Communication and Branding | EK137: Transfers and subsidies | EL137: Departmental agencies and accounts | EM137: Departmental agencies (non-business entities) | EN137: 569605 | EO137: 539078 | EP137: 538636 | EQ137: 538636 | ER137: 538636 | ES137: 563342 | ET137: 600117 | EU137: 637982 | EV137: 0 | EW137: 0 | EX137: 0 | EY137: 600117 | EZ137: 637982 | FA137: 673708.992 | FB137: Communications|Entity Oversight | FC137: 003 | FD137: 004 | FE137: 003 | FF137: 046 | FG137: 003004 | FH137: 003046 | FI137: 46 | FJ137: 003004003046 | FL137: 003004046 | FT137: 7 | FU137: National Treasury | FV137: 1 | FW137: Administration | FX137: 9 | FY137: Office Accommodation
Y138: 33 | AA138: 33 | AB138: 11 | AC138: Public Works | AF138: George Tembo | AG138: (012) 315 5514 | AH138: George.Tembo@treasury.gov.za | AI138: Mercy Mhlophe | AJ138: (012) 315 5598 | AK138: Mercy.Mhlophe@treasury.gov.za | AO138: datafileNAT@treasury.gov.za | AP138: 488401 | AQ138: 520564 | AR138: 560126.8621 | AT138: 11 | AU138: Public Works | AV138: 486413 | AW138: 518347 | AX138: 557826 | DG138: Cooperative Governance And Traditional Affairs | DH138: Regional and Urban Development and Legislative Support | DI138: 15 | DJ138: 2 | DK138: 2 | DL138: 0 | DM138: 2 | DN138: 1987 | DO138: 2 | DP138: 2880 | DQ138: 1 | DR138: 1390 | DS138: 1 | DT138: 1471 | DU138: 1 | DV138: 1559 | DW138: Cooperative Governance And Traditional Affairs|Regional and Urban Development and Legislative Support | DX138: 004 | DY138: 002 | DZ138: 004002 | EC138: 343 | ED138: 57 | EE138: 3 | EF138: Communications | EG138: 4 | EH138: Entity Oversight | EI138: 3 | EJ138: Communication and Branding | EK138: Payments for capital assets | EL138: Machinery and equipment | EM138: Other machinery and equipment | EN138: 0 | EO138: 0 | EP138: 76 | EQ138: 76 | ER138: 76 | ES138: 0 | ET138: 0 | EU138: 0 | EV138: 0 | EW138: 0 | EX138: 0 | EY138: 0 | EZ138: 0 | FA138: 0 | FB138: Communications|Entity Oversight | FC138: 003 | FD138: 004 | FE138: 003 | FF138: 057 | FG138: 003004 | FH138: 003057 | FI138: 57 | FJ138: 003004003057 | FL138: 003004057 | FT138: 7 | FU138: National Treasury | FV138: 2 | FW138: Economic Policy, Tax, Financial Regulation and Research | FX138: 1 | FY138: Programme Management for Economic Policy, Tax, Financial Regulation and Research
Y139: 34 | AA139: 34 | AB139: 39 | AC139: Rural Development and Land Reform | AF139: Bothwell Deka | AG139: (012) 395 6784 | AH139: Bothwell.Deka@treasury.gov.za | AI139: Kismore Mangondo | AJ139: (012) 315 5558 | AK139: Kismore.Mangondo@treasury.gov.za | AO139: datafileNAT@treasury.gov.za | AP139: 2218992 | AQ139: 2351947 | AR139: 2530694.964 | AT139: 39 | AU139: Rural Development and Land Reform | AV139: 2194584 | AW139: 2325590 | AX139: 2502879 | DG139: Cooperative Governance And Traditional Affairs | DH139: Institutional Development | DI139: 5 | DJ139: 0 | DK139: 0 | DL139: 0 | DM139: 0 | DN139: 0 | DO139: 0 | DP139: 0 | DQ139: 1 | DR139: 147 | DS139: 1 | DT139: 156 | DU139: 1 | DV139: 0 | DW139: Cooperative Governance And Traditional Affairs|Institutional Development | DX139: 004 | DY139: 003 | DZ139: 004003 | EC139: 344 | ED139: 1 | EE139: 3 | EF139: Communications | EG139: 4 | EH139: Entity Oversight | EI139: 4 | EJ139: Regulatory Institutions | EK139: Current payments | EL139: Compensation of employees | EM139: Compensation of employees | EN139: 0 | EO139: 0 | EP139: 1280 | EQ139: 480 | ER139: 0 | ES139: 1351 | ET139: 1422 | EU139: 1502 | EV139: 0 | EW139: 0 | EX139: 0 | EY139: 1422 | EZ139: 1502 | FA139: 1616.151995 | FB139: Communications|Entity Oversight | FC139: 003 | FD139: 004 | FE139: 004 | FF139: 001 | FG139: 003004 | FH139: 003001 | FI139: 1 | FJ139: 003004004001 | FL139: 003004001 | FT139: 7 | FU139: National Treasury | FV139: 2 | FW139: Economic Policy, Tax, Financial Regulation and Research | FX139: 2 | FY139: Research
Y140: 35 | AA140: 35 | AB140: 30 | AC140: Science and Technology | AF140: Ricardo Andrews | AG140: (012) 315 5766 | AH140: Ricardo.Andrews@treasury.gov.za | AO140: datafileNAT@treasury.gov.za | AP140: 319036 | AQ140: 331404 | AR140: 356590.7028 | AT140: 30 | AU140: Science and Technology | AV140: 315527 | AW140: 327690 | AX140: 352671 | DG140: Cooperative Governance And Traditional Affairs | DH140: Institutional Development | DI140: 6 | DJ140: 10 | DK140: 10 | DL140: 0 | DM140: 10 | DN140: 1580 | DO140: 10 | DP140: 1832 | DQ140: 18 | DR140: 3024 | DS140: 18 | DT140: 3199 | DU140: 18 | DV140: 3385 | DW140: Cooperative Governance And Traditional Affairs|Institutional Development | DX140: 004 | DY140: 003 | DZ140: 004003 | EC140: 344 | ED140: 2 | EE140: 3 | EF140: Communications | EG140: 4 | EH140: Entity Oversight | EI140: 4 | EJ140: Regulatory Institutions | EK140: Current payments | EL140: Goods and services | EM140: Goods and services | EN140: 0 | EO140: 0 | EP140: 331 | EQ140: 331 | ER140: 331 | ES140: 466 | ET140: 492 | EU140: 523 | EV140: 0 | EW140: 0 | EX140: 0 | EY140: 492 | EZ140: 523 | FA140: 552.288 | FB140: Communications|Entity Oversight | FC140: 003 | FD140: 004 | FE140: 004 | FF140: 002 | FG140: 003004 | FH140: 003002 | FI140: 2 | FJ140: 003004004002 | FL140: 003004002 | FT140: 7 | FU140: National Treasury | FV140: 2 | FW140: Economic Policy, Tax, Financial Regulation and Research | FX140: 3 | FY140: Financial Sector Policy
Y141: 36 | AA141: 36 | AB141: 31 | AC141: Small Business Development | AF141: Rudzani Sikhwari | AG141: (012) 315 5823 | AH141: Rudzani.Sikhwari@treasury.gov.za | AO141: datafileNAT@treasury.gov.za | AP141: 139060 | AQ141: 143100 | AR141: 153975.5995 | AT141: 31 | AU141: Small Business Development | AV141: 137530 | AW141: 141496 | AX141: 152284 | DG141: Cooperative Governance And Traditional Affairs | DH141: Institutional Development | DI141: 7 | DJ141: 3 | DK141: 3 | DL141: 0 | DM141: 3 | DN141: 653 | DO141: 3 | DP141: 757 | DQ141: 2 | DR141: 436 | DS141: 2 | DT141: 461 | DU141: 2 | DV141: 488 | DW141: Cooperative Governance And Traditional Affairs|Institutional Development | DX141: 004 | DY141: 003 | DZ141: 004003 | EC141: 344 | ED141: 46 | EE141: 3 | EF141: Communications | EG141: 4 | EH141: Entity Oversight | EI141: 4 | EJ141: Regulatory Institutions | EK141: Transfers and subsidies | EL141: Departmental agencies and accounts | EM141: Departmental agencies (non-business entities) | EN141: 473336 | EO141: 455122 | EP141: 475978 | EQ141: 475978 | ER141: 475978 | ES141: 500953 | ET141: 526889 | EU141: 557449 | EV141: 0 | EW141: 0 | EX141: 0 | EY141: 526889 | EZ141: 557449 | FA141: 588666.144 | FB141: Communications|Entity Oversight | FC141: 003 | FD141: 004 | FE141: 004 | FF141: 046 | FG141: 003004 | FH141: 003046 | FI141: 46 | FJ141: 003004004046 | FL141: 003004046 | FT141: 7 | FU141: National Treasury | FV141: 2 | FW141: Economic Policy, Tax, Financial Regulation and Research | FX141: 4 | FY141: Tax Policy
Y142: 37 | AA142: 37 | AB142: 17 | AC142: Social Development | AF142: Lindi Mzankomo | AG142: (012) 315 5256 | AH142: Lindi.Mzankomo@treasury.gov.za | AI142: Yusuf Mayet | AJ142: (012) 315 5189 | AK142: Yusuf.Mayet@treasury.gov.za | AO142: datafileNAT@treasury.gov.za | AP142: 465532 | AQ142: 478373 | AR142: 514729.3463 | AT142: 17 | AU142: Social Development | AV142: 476811 | AW142: 490351 | AX142: 527441 | DG142: Cooperative Governance And Traditional Affairs | DH142: Institutional Development | DI142: 8 | DJ142: 4 | DK142: 4 | DL142: 0 | DM142: 4 | DN142: 1176 | DO142: 4 | DP142: 1364 | DQ142: 3 | DR142: 780 | DS142: 3 | DT142: 825 | DU142: 3 | DV142: 873 | DW142: Cooperative Governance And Traditional Affairs|Institutional Development | DX142: 004 | DY142: 003 | DZ142: 004003 | EC142: 344 | ED142: 57 | EE142: 3 | EF142: Communications | EG142: 4 | EH142: Entity Oversight | EI142: 4 | EJ142: Regulatory Institutions | EK142: Payments for capital assets | EL142: Machinery and equipment | EM142: Other machinery and equipment | EN142: 0 | EO142: 0 | EP142: 76 | EQ142: 76 | ER142: 76 | ES142: 0 | ET142: 0 | EU142: 0 | EV142: 0 | EW142: 0 | EX142: 0 | EY142: 0 | EZ142: 0 | FA142: 0 | FB142: Communications|Entity Oversight | FC142: 003 | FD142: 004 | FE142: 004 | FF142: 057 | FG142: 003004 | FH142: 003057 | FI142: 57 | FJ142: 003004004057 | FL142: 003004057 | FT142: 7 | FU142: National Treasury | FV142: 2 | FW142: Economic Policy, Tax, Financial Regulation and Research | FX142: 5 | FY142: Economic Policy
Y143: 38 | AA143: 38 | AB143: 40 | AC143: Sport and Recreation South Africa | AF143: Spencer Janari | AG143: (012) 315 5436 | AH143: Spencer.Janari@treasury.gov.za | AI143: Letsepa Pakkies | AJ143: (012) 395 6656 | AK143: Letsepa.Pakkies@treasury.gov.za | AO143: datafileNAT@treasury.gov.za | AP143: 107284 | AQ143: 113334 | AR143: 121947.3836 | AT143: 40 | AU143: Sport and Recreation South Africa | AV143: 106104 | AW143: 111545 | AX143: 120058 | DG143: Cooperative Governance And Traditional Affairs | DH143: Institutional Development | DI143: 9 | DJ143: 3 | DK143: 3 | DL143: 0 | DM143: 3 | DN143: 1170 | DO143: 3 | DP143: 1357 | DQ143: 4 | DR143: 1680 | DS143: 4 | DT143: 1777 | DU143: 4 | DV143: 1880 | DW143: Cooperative Governance And Traditional Affairs|Institutional Development | DX143: 004 | DY143: 003 | DZ143: 004003 | EC143: 411 | ED143: 1 | EE143: 4 | EF143: Cooperative Governance And Traditional Affairs | EG143: 1 | EH143: Administration | EI143: 1 | EJ143: Ministry | EK143: Current payments | EL143: Compensation of employees | EM143: Compensation of employees | EN143: 21010 | EO143: 19804 | EP143: 20359 | EQ143: 20359 | ER143: 20359 | ES143: 18601 | ET143: 19680 | EU143: 20821 | EV143: 0 | EW143: 0 | EX143: 0 | EY143: 19680 | EZ143: 20821 | FA143: 22403.39593 | FB143: Cooperative Governance And Traditional Affairs|Administration | FC143: 004 | FD143: 001 | FE143: 001 | FF143: 001 | FG143: 004001 | FH143: 004001 | FI143: 1 | FJ143: 004001001001 | FL143: 004001001 | FT143: 7 | FU143: National Treasury | FV143: 2 | FW143: Economic Policy, Tax, Financial Regulation and Research | FX143: 6 | FY143: Cooperative Banks Development Agency
Y144: 39 | AA144: 39 | AB144: 12 | AC144: Statistics South Africa | AF144: Japie Jacobs | AG144: (012) 315 5546 | AH144: Japie.Jacobs@treasury.gov.za | AI144: Thapelo Mokwana | AJ144: (012) 315 5796 | AK144: Thapelo.Mokwana@treasury.gov.za | AO144: datafileNAT@treasury.gov.za | AP144: 1367257 | AQ144: 1373861 | AR144: 1460988.431 | AT144: 12 | AU144: Statistics South Africa | AV144: 1352218 | AW144: 1428465 | AX144: 1444929 | DG144: Cooperative Governance And Traditional Affairs | DH144: Institutional Development | DI144: 11 | DJ144: 32 | DK144: 32 | DL144: 0 | DM144: 32 | DN144: 13300 | DO144: 32 | DP144: 16869 | DQ144: 27 | DR144: 16308 | DS144: 27 | DT144: 17254 | DU144: 27 | DV144: 18255 | DW144: Cooperative Governance And Traditional Affairs|Institutional Development | DX144: 004 | DY144: 003 | DZ144: 004003 | EC144: 411 | ED144: 2 | EE144: 4 | EF144: Cooperative Governance And Traditional Affairs | EG144: 1 | EH144: Administration | EI144: 1 | EJ144: Ministry | EK144: Current payments | EL144: Goods and services | EM144: Goods and services | EN144: 14355 | EO144: 13022 | EP144: 7313 | EQ144: 7313 | ER144: 7313 | ES144: 8093 | ET144: 8330 | EU144: 8619 | EV144: 0 | EW144: 0 | EX144: 0 | EY144: 8330 | EZ144: 8619 | FA144: 9101.664 | FB144: Cooperative Governance And Traditional Affairs|Administration | FC144: 004 | FD144: 001 | FE144: 001 | FF144: 002 | FG144: 004001 | FH144: 004002 | FI144: 2 | FJ144: 004001001002 | FL144: 004001002 | FT144: 7 | FU144: National Treasury | FV144: 3 | FW144: Public Finance and Budget Management | FX144: 1 | FY144: Programme Management for Public Finance and Budget Management
Y145: 40 | AA145: 40 | AB145: 32 | AC145: Telecommunications and Postal Services | AF145: Rezah Atcha | AG145: (012) 315 5287 | AH145: Rezah.Atcha@treasury.gov.za | AI145: Keitumetse Motshegwe | AJ145: (012) 395 6750 | AK145: keitumetse.motshegwe@treasury.gov.za | AO145: datafileNAT@treasury.gov.za | AP145: 217094 | AQ145: 226842 | AR145: 244081.9912 | AT145: 32 | AU145: Telecommunications and Postal Services | AV145: 214706 | AW145: 224300 | AX145: 241399 | DG145: Cooperative Governance And Traditional Affairs | DH145: Institutional Development | DI145: 13 | DJ145: 12 | DK145: 12 | DL145: 0 | DM145: 12 | DN145: 9709 | DO145: 12 | DP145: 11002 | DQ145: 19 | DR145: 15105 | DS145: 19 | DT145: 15981 | DU145: 19 | DV145: 16908 | DW145: Cooperative Governance And Traditional Affairs|Institutional Development | DX145: 004 | DY145: 003 | DZ145: 004003 | EC145: 411 | ED145: 57 | EE145: 4 | EF145: Cooperative Governance And Traditional Affairs | EG145: 1 | EH145: Administration | EI145: 1 | EJ145: Ministry | EK145: Payments for capital assets | EL145: Machinery and equipment | EM145: Other machinery and equipment | EN145: 400 | EO145: 87 | EP145: 80 | EQ145: 80 | ER145: 80 | ES145: 0 | ET145: 0 | EU145: 0 | EV145: 0 | EW145: 0 | EX145: 0 | EY145: 0 | EZ145: 0 | FA145: 0 | FB145: Cooperative Governance And Traditional Affairs|Administration | FC145: 004 | FD145: 001 | FE145: 001 | FF145: 057 | FG145: 004001 | FH145: 004057 | FI145: 57 | FJ145: 004001001057 | FL145: 004001057 | FT145: 7 | FU145: National Treasury | FV145: 3 | FW145: Public Finance and Budget Management | FX145: 2 | FY145: Public Finance
Y146: 41 | AA146: 41 | AB146: 1 | AC146: The Presidency | AF146: Gcobisa Matshaya | AG146: (012) 315 532 | AH146: Gcobisa.Matshaya@treasury.gov.za | AI146: Thulasizwe Motha | AJ146: (012) 406 9019 | AK146: Thulasizwe.Motha@treasury.gov.za | AO146: datafileNAT@treasury.gov.za | AP146: 321925 | AQ146: 332663 | AR146: 357945.3868 | AT146: 1 | AU146: The Presidency | AV146: 318384 | AW146: 328935 | AX146: 354011 | DG146: Cooperative Governance And Traditional Affairs | DH146: Institutional Development | DI146: 14 | DJ146: 5 | DK146: 5 | DL146: 0 | DM146: 5 | DN146: 4490 | DO146: 5 | DP146: 5108 | DQ146: 6 | DR146: 5264 | DS146: 6 | DT146: 5569 | DU146: 6 | DV146: 5892 | DW146: Cooperative Governance And Traditional Affairs|Institutional Development | DX146: 004 | DY146: 003 | DZ146: 004003 | EC146: 411 | ED146: 52 | EE146: 4 | EF146: Cooperative Governance And Traditional Affairs | EG146: 1 | EH146: Administration | EI146: 1 | EJ146: Ministry | EK146: Transfers and subsidies | EL146: Households | EM146: Social benefits | EN146: 974 | EO146: 0 | EP146: 0 | EQ146: 0 | ER146: 0 | ES146: 0 | ET146: 0 | EU146: 0 | EV146: 0 | EW146: 0 | EX146: 0 | EY146: 0 | EZ146: 0 | FA146: 0 | FB146: Cooperative Governance And Traditional Affairs|Administration | FC146: 004 | FD146: 001 | FE146: 001 | FF146: 052 | FG146: 004001 | FH146: 004052 | FI146: 52 | FJ146: 004001001052 | FL146: 004001052 | FT146: 7 | FU146: National Treasury | FV146: 3 | FW146: Public Finance and Budget Management | FX146: 3 | FY146: Budget Office and Coordination
Y147: 42 | AA147: 42 | AB147: 33 | AC147: Tourism | AF147: Ricardo Andrews | AG147: (012) 315 5766 | AH147: Ricardo.Andrews@treasury.gov.za | AI147: Thamsanqa Nhlapo | AJ147: (012) 315 5024 | AK147: Thamsanqa.Nhlapo@treasury.gov.za | AO147: datafileNAT@treasury.gov.za | AP147: 274896 | AQ147: 285801 | AR147: 307521.875 | AT147: 33 | AU147: Tourism | AV147: 271872 | AW147: 282598 | AX147: 304142 | DG147: Cooperative Governance And Traditional Affairs | DH147: Institutional Development | DI147: 15 | DJ147: 1 | DK147: 1 | DL147: 0 | DM147: 1 | DN147: 1115 | DO147: 1 | DP147: 1293 | DQ147: 1 | DR147: 1268 | DS147: 1 | DT147: 1343 | DU147: 1 | DV147: 1420 | DW147: Cooperative Governance And Traditional Affairs|Institutional Development | DX147: 004 | DY147: 003 | DZ147: 004003 | EC147: 411 | ED147: 44 | EE147: 4 | EF147: Cooperative Governance And Traditional Affairs | EG147: 1 | EH147: Administration | EI147: 1 | EJ147: Ministry | EK147: Transfers and subsidies | EL147: Provinces and municipalities | EM147: Municipalities | EN147: 17 | EO147: 0 | EP147: 0 | EQ147: 0 | ER147: 0 | ES147: 0 | ET147: 0 | EU147: 0 | EV147: 0 | EW147: 0 | EX147: 0 | EY147: 0 | EZ147: 0 | FA147: 0 | FB147: Cooperative Governance And Traditional Affairs|Administration | FC147: 004 | FD147: 001 | FE147: 001 | FF147: 044 | FG147: 004001 | FH147: 004044 | FI147: 44 | FJ147: 004001001044 | FL147: 004001044 | FT147: 7 | FU147: National Treasury | FV147: 3 | FW147: Public Finance and Budget Management | FX147: 4 | FY147: Intergovernmental Relations
Y148: 43 | AA148: 43 | AB148: 34 | AC148: Trade and Industry | AF148: Nokuthula Ngomane | AG148: (012) 315 5223 | AH148: Nokuthula.Ngomane@treasury.gov.za | AI148: Millicent Movare | AJ148: (012) 315 5279 | AK148: Millicent.Movare@treasury.gov.za | AO148: datafileNAT@treasury.gov.za | AP148: 912451 | AQ148: 938361 | AR148: 1009676.433 | AT148: 34 | AU148: Trade and Industry | AV148: 902415 | AW148: 927845 | AX148: 998578 | DG148: Cooperative Governance And Traditional Affairs | DH148: National Disaster Management Centre | DI148: 6 | DJ148: 5 | DK148: 5 | DL148: 0 | DM148: 5 | DN148: 880 | DO148: 5 | DP148: 1093 | DQ148: 7 | DR148: 1820 | DS148: 7 | DT148: 1915 | DU148: 7 | DV148: 2126 | DW148: Cooperative Governance And Traditional Affairs|National Disaster Management Centre | DX148: 004 | DY148: 004 | DZ148: 004004 | EC148: 412 | ED148: 1 | EE148: 4 | EF148: Cooperative Governance And Traditional Affairs | EG148: 1 | EH148: Administration | EI148: 2 | EJ148: Management | EK148: Current payments | EL148: Compensation of employees | EM148: Compensation of employees | EN148: 12529 | EO148: 12494 | EP148: 14288 | EQ148: 15288 | ER148: 15288 | ES148: 10998 | ET148: 11602 | EU148: 12275 | EV148: 0 | EW148: 0 | EX148: 0 | EY148: 11602 | EZ148: 12275 | FA148: 13207.89996 | FB148: Cooperative Governance And Traditional Affairs|Administration | FC148: 004 | FD148: 001 | FE148: 002 | FF148: 001 | FG148: 004001 | FH148: 004001 | FI148: 1 | FJ148: 004001002001 | FL148: 004001001 | FT148: 7 | FU148: National Treasury | FV148: 3 | FW148: Public Finance and Budget Management | FX148: 5 | FY148: Financial and Fiscal Commission
Y149: 44 | AA149: 44 | AB149: 43 | AC149: Traditional Affairs | AF149: Misaveni Ngobeni | AG149: (012) 315 5305 | AH149: misaveni.ngobeni@treasury.gov.za | AI149: Millicent Mulaudzi | AJ149: (012) 395 6576 | AK149: Millicent.Mulaudzi@treasury.gov.za | AO149: datafileNAT@treasury.gov.za | AP149: 69043 | AQ149: 73853 | AR149: 79465.82774 | AT149: 43 | AU149: Traditional Affairs | AV149: 68284 | AW149: 73041 | AX149: 78592 | DG149: Cooperative Governance And Traditional Affairs | DH149: National Disaster Management Centre | DI149: 7 | DJ149: 2 | DK149: 2 | DL149: 0 | DM149: 2 | DN149: 331 | DO149: 2 | DP149: 638 | DQ149: 2 | DR149: 634 | DS149: 2 | DT149: 667 | DU149: 2 | DV149: 806 | DW149: Cooperative Governance And Traditional Affairs|National Disaster Management Centre | DX149: 004 | DY149: 004 | DZ149: 004004 | EC149: 412 | ED149: 2 | EE149: 4 | EF149: Cooperative Governance And Traditional Affairs | EG149: 1 | EH149: Administration | EI149: 2 | EJ149: Management | EK149: Current payments | EL149: Goods and services | EM149: Goods and services | EN149: 3041 | EO149: 4024 | EP149: 6724 | EQ149: 4724 | ER149: 4724 | ES149: 3216 | ET149: 3310 | EU149: 3425 | EV149: 0 | EW149: 0 | EX149: 0 | EY149: 3310 | EZ149: 3425 | FA149: 3616.8 | FB149: Cooperative Governance And Traditional Affairs|Administration | FC149: 004 | FD149: 001 | FE149: 002 | FF149: 002 | FG149: 004001 | FH149: 004002 | FI149: 2 | FJ149: 004001002002 | FL149: 004001002 | FT149: 7 | FU149: National Treasury | FV149: 4 | FW149: Asset and Liability Management | FX149: 1 | FY149: Programme Management for Asset and Liability Management
Y150: 45 | AA150: 45 | AB150: 35 | AC150: Transport | AF150: Ulrike Rwida | AG150: (012) 315 5578 | AH150: Ulrike.Rwida@treasury.gov.za | AI150: Luyolo Ntlangula | AJ150: (012) 315 5571 | AK150: Luyolo.Ntlangula@treasury.gov.za | AO150: datafileNAT@treasury.gov.za | AP150: 439021 | AQ150: 457837 | AR150: 492632.6104 | AT150: 35 | AU150: Transport | AV150: 434192 | AW150: 452706 | AX150: 487218 | DG150: Cooperative Governance And Traditional Affairs | DH150: National Disaster Management Centre | DI150: 8 | DJ150: 2 | DK150: 2 | DL150: 0 | DM150: 2 | DN150: 735 | DO150: 2 | DP150: 829 | DQ150: 2 | DR150: 748 | DS150: 2 | DT150: 787 | DU150: 2 | DV150: 935 | DW150: Cooperative Governance And Traditional Affairs|National Disaster Management Centre | DX150: 004 | DY150: 004 | DZ150: 004004 | EC150: 412 | ED150: 57 | EE150: 4 | EF150: Cooperative Governance And Traditional Affairs | EG150: 1 | EH150: Administration | EI150: 2 | EJ150: Management | EK150: Payments for capital assets | EL150: Machinery and equipment | EM150: Other machinery and equipment | EN150: 171 | EO150: 14 | EP150: 50 | EQ150: 50 | ER150: 50 | ES150: 0 | ET150: 0 | EU150: 0 | EV150: 0 | EW150: 0 | EX150: 0 | EY150: 0 | EZ150: 0 | FA150: 0 | FB150: Cooperative Governance And Traditional Affairs|Administration | FC150: 004 | FD150: 001 | FE150: 002 | FF150: 057 | FG150: 004001 | FH150: 004057 | FI150: 57 | FJ150: 004001002057 | FL150: 004001057 | FT150: 7 | FU150: National Treasury | FV150: 4 | FW150: Asset and Liability Management | FX150: 2 | FY150: State Owned Entity Financial Management and Governance
Y151: 46 | AA151: 46 | AB151: 36 | AC151: Water and Sanitation | AF151: Misaveni Ngobeni | AG151: (012) 315 5305 | AH151: misaveni.ngobeni@treasury.gov.za | AI151: Iqbal Mahomed Alli | AJ151: (012) 315 5809 | AK151: Iqbal.Mahomed-Alli@treasury.gov.za | AO151: datafileNAT@treasury.gov.za | AP151: 1670228 | AQ151: 1739701 | AR151: 1871918.27 | AT151: 36 | AU151: Water and Sanitation | AV151: 1651856 | AW151: 1720205 | AX151: 1851343 | DG151: Cooperative Governance And Traditional Affairs | DH151: National Disaster Management Centre | DI151: 9 | DJ151: 6 | DK151: 6 | DL151: 0 | DM151: 6 | DN151: 2710 | DO151: 6 | DP151: 3057 | DQ151: 6 | DR151: 2865 | DS151: 6 | DT151: 2954 | DU151: 6 | DV151: 3325 | DW151: Cooperative Governance And Traditional Affairs|National Disaster Management Centre | DX151: 004 | DY151: 004 | DZ151: 004004 | EC151: 413 | ED151: 1 | EE151: 4 | EF151: Cooperative Governance And Traditional Affairs | EG151: 1 | EH151: Administration | EI151: 3 | EJ151: Corporate Services | EK151: Current payments | EL151: Compensation of employees | EM151: Compensation of employees | EN151: 52019 | EO151: 56153 | EP151: 57768 | EQ151: 54468 | ER151: 54468 | ES151: 61704 | ET151: 65256 | EU151: 69002 | EV151: 0 | EW151: 0 | EX151: 0 | EY151: 65256 | EZ151: 69002 | FA151: 74246.15175 | FB151: Cooperative Governance And Traditional Affairs|Administration | FC151: 004 | FD151: 001 | FE151: 003 | FF151: 001 | FG151: 004001 | FH151: 004001 | FI151: 1 | FJ151: 004001003001 | FL151: 004001001 | FT151: 7 | FU151: National Treasury | FV151: 4 | FW151: Asset and Liability Management | FX151: 3 | FY151: Government Debt Management
Y152: 47 | AA152: 47 | AB152: 13 | AC152: Women | AF152: George Tembo | AG152: (012) 315 5514 | AH152: George.Tembo@treasury.gov.za | AI152: Viwe Sobudula | AJ152: (012) 315 5015 | AK152: Viwe.Sobudula@treasury.gov.za | AO152: datafileNAT@treasury.gov.za | AP152: 72839 | AQ152: 74776 | AR152: 80458.97573 | AT152: 13 | AU152: Women | AV152: 72038 | AW152: 73938 | AX152: 79575 | DG152: Cooperative Governance And Traditional Affairs | DH152: National Disaster Management Centre | DI152: 11 | DJ152: 7 | DK152: 7 | DL152: 0 | DM152: 7 | DN152: 3980 | DO152: 7 | DP152: 4489 | DQ152: 13 | DR152: 9004 | DS152: 13 | DT152: 9296 | DU152: 13 | DV152: 9866 | DW152: Cooperative Governance And Traditional Affairs|National Disaster Management Centre | DX152: 004 | DY152: 004 | DZ152: 004004 | EC152: 413 | ED152: 2 | EE152: 4 | EF152: Cooperative Governance And Traditional Affairs | EG152: 1 | EH152: Administration | EI152: 3 | EJ152: Corporate Services | EK152: Current payments | EL152: Goods and services | EM152: Goods and services | EN152: 44250 | EO152: 42070 | EP152: 50351 | EQ152: 45566 | ER152: 45566 | ES152: 77218 | ET152: 56575 | EU152: 58399 | EV152: 0 | EW152: 0 | EX152: 0 | EY152: 56575 | EZ152: 58399 | FA152: 61669.344 | FB152: Cooperative Governance And Traditional Affairs|Administration | FC152: 004 | FD152: 001 | FE152: 003 | FF152: 002 | FG152: 004001 | FH152: 004002 | FI152: 2 | FJ152: 004001003002 | FL152: 004001002 | FT152: 7 | FU152: National Treasury | FV152: 4 | FW152: Asset and Liability Management | FX152: 4 | FY152: Financial Operations
AP153: =SUM(AP106:AP152) -> 155572477 | AQ153: =SUM(AQ106:AQ152) -> 164174106 | AR153: =SUM(AR106:AR152) -> 176634051.5 | AT153: Grand Total | AV153: =SUM(AV106:AV152) -> 155429340 | AW153: =SUM(AW106:AW152) -> 163987364 | AX153: 176083508 | DG153: Cooperative Governance And Traditional Affairs | DH153: National Disaster Management Centre | DI153: 12 | DJ153: 0 | DK153: 0 | DL153: 0 | DM153: 0 | DN153: 0 | DO153: 0 | DP153: 0 | DQ153: 1 | DR153: 841 | DS153: 1 | DT153: 885 | DU153: 1 | DV153: 936 | DW153: Cooperative Governance And Traditional Affairs|National Disaster Management Centre | DX153: 004 | DY153: 004 | DZ153: 004004 | EC153: 413 | ED153: 57 | EE153: 4 | EF153: Cooperative Governance And Traditional Affairs | EG153: 1 | EH153: Administration | EI153: 3 | EJ153: Corporate Services | EK153: Payments for capital assets | EL153: Machinery and equipment | EM153: Other machinery and equipment | EN153: 7275 | EO153: 10440 | EP153: 2700 | EQ153: 2712 | ER153: 2712 | ES153: 1254 | ET153: 1138 | EU153: 1205 | EV153: 0 | EW153: 0 | EX153: 0 | EY153: 1138 | EZ153: 1205 | FA153: 1272.48 | FB153: Cooperative Governance And Traditional Affairs|Administration | FC153: 004 | FD153: 001 | FE153: 003 | FF153: 057 | FG153: 004001 | FH153: 004057 | FI153: 57 | FJ153: 004001003057 | FL153: 004001057 | FT153: 7 | FU153: National Treasury | FV153: 4 | FW153: Asset and Liability Management | FX153: 5 | FY153: Strategy and Risk Management
DG154: Cooperative Governance And Traditional Affairs | DH154: National Disaster Management Centre | DI154: 13 | DJ154: 6 | DK154: 6 | DL154: 0 | DM154: 6 | DN154: 4562 | DO154: 6 | DP154: 5146 | DQ154: 6 | DR154: 5980 | DS154: 6 | DT154: 6001 | DU154: 6 | DV154: 5839 | DW154: Cooperative Governance And Traditional Affairs|National Disaster Management Centre | DX154: 004 | DY154: 004 | DZ154: 004004 | EC154: 413 | ED154: 56 | EE154: 4 | EF154: Cooperative Governance And Traditional Affairs | EG154: 1 | EH154: Administration | EI154: 3 | EJ154: Corporate Services | EK154: Payments for capital assets | EL154: Machinery and equipment | EM154: Transport equipment | EN154: 1433 | EO154: 361 | EP154: 1000 | EQ154: 478 | ER154: 478 | ES154: 1746 | ET154: 1950 | EU154: 1990 | EV154: 0 | EW154: 0 | EX154: 0 | EY154: 1950 | EZ154: 1990 | FA154: 2101.44 | FB154: Cooperative Governance And Traditional Affairs|Administration | FC154: 004 | FD154: 001 | FE154: 003 | FF154: 056 | FG154: 004001 | FH154: 004056 | FI154: 56 | FJ154: 004001003056 | FL154: 004001056 | FT154: 7 | FU154: National Treasury | FV154: 4 | FW154: Asset and Liability Management | FX154: 6 | FY154: Financial Investments
DG155: Cooperative Governance And Traditional Affairs | DH155: National Disaster Management Centre | DI155: 14 | DJ155: 4 | DK155: 4 | DL155: 0 | DM155: 4 | DN155: 4256 | DO155: 4 | DP155: 4801 | DQ155: 4 | DR155: 4028 | DS155: 4 | DT155: 4931 | DU155: 4 | DV155: 4929 | DW155: Cooperative Governance And Traditional Affairs|National Disaster Management Centre | DX155: 004 | DY155: 004 | DZ155: 004004 | EC155: 413 | ED155: 46 | EE155: 4 | EF155: Cooperative Governance And Traditional Affairs | EG155: 1 | EH155: Administration | EI155: 3 | EJ155: Corporate Services | EK155: Transfers and subsidies | EL155: Departmental agencies and accounts | EM155: Departmental agencies (non-business entities) | EN155: 0 | EO155: 735 | EP155: 0 | EQ155: 0 | ER155: 0 | ES155: 0 | ET155: 0 | EU155: 0 | EV155: 0 | EW155: 0 | EX155: 0 | EY155: 0 | EZ155: 0 | FA155: 0 | FB155: Cooperative Governance And Traditional Affairs|Administration | FC155: 004 | FD155: 001 | FE155: 003 | FF155: 046 | FG155: 004001 | FH155: 004046 | FI155: 46 | FJ155: 004001003046 | FL155: 004001046 | FT155: 7 | FU155: National Treasury | FV155: 5 | FW155: Financial Accounting and Supply Chain Management Systems | FX155: 1 | FY155: Programme Management for Financial Accounting and Supply Chain Management Systems
DG156: Cooperative Governance And Traditional Affairs | DH156: National Disaster Management Centre | DI156: 15 | DJ156: 1 | DK156: 1 | DL156: 0 | DM156: 1 | DN156: 1256 | DO156: 1 | DP156: 1417 | DQ156: 1 | DR156: 1428 | DS156: 1 | DT156: 1498 | DU156: 1 | DV156: 1850 | DW156: Cooperative Governance And Traditional Affairs|National Disaster Management Centre | DX156: 004 | DY156: 004 | DZ156: 004004 | EC156: 413 | ED156: 52 | EE156: 4 | EF156: Cooperative Governance And Traditional Affairs | EG156: 1 | EH156: Administration | EI156: 3 | EJ156: Corporate Services | EK156: Transfers and subsidies | EL156: Households | EM156: Social benefits | EN156: 0 | EO156: 18 | EP156: 0 | EQ156: 0 | ER156: 0 | ES156: 0 | ET156: 0 | EU156: 0 | EV156: 0 | EW156: 0 | EX156: 0 | EY156: 0 | EZ156: 0 | FA156: 0 | FB156: Cooperative Governance And Traditional Affairs|Administration | FC156: 004 | FD156: 001 | FE156: 003 | FF156: 052 | FG156: 004001 | FH156: 004052 | FI156: 52 | FJ156: 004001003052 | FL156: 004001052 | FT156: 7 | FU156: National Treasury | FV156: 5 | FW156: Financial Accounting and Supply Chain Management Systems | FX156: 2 | FY156: Office of the Chief Procurement Officer
DG157: Cooperative Governance And Traditional Affairs | DH157: Local Government Support and Intervention Management | DI157: 5 | DJ157: 2 | DK157: 2 | DL157: 0 | DM157: 2 | DN157: 390 | DO157: 2 | DP157: 469 | DQ157: 2 | DR157: 294 | DS157: 2 | DT157: 311 | DU157: 2 | DV157: 329 | DW157: Cooperative Governance And Traditional Affairs|Local Government Support and Intervention Management | DX157: 004 | DY157: 005 | DZ157: 004005 | EC157: 413 | ED157: 44 | EE157: 4 | EF157: Cooperative Governance And Traditional Affairs | EG157: 1 | EH157: Administration | EI157: 3 | EJ157: Corporate Services | EK157: Transfers and subsidies | EL157: Provinces and municipalities | EM157: Municipalities | EN157: 2 | EO157: 24 | EP157: 100 | EQ157: 100 | ER157: 100 | ES157: 100 | ET157: 103 | EU157: 106 | EV157: 0 | EW157: 0 | EX157: 0 | EY157: 103 | EZ157: 106 | FA157: 111.936 | FB157: Cooperative Governance And Traditional Affairs|Administration | FC157: 004 | FD157: 001 | FE157: 003 | FF157: 044 | FG157: 004001 | FH157: 004044 | FI157: 44 | FJ157: 004001003044 | FL157: 004001044 | FT157: 7 | FU157: National Treasury | FV157: 5 | FW157: Financial Accounting and Supply Chain Management Systems | FX157: 3 | FY157: Financial Systems
DG158: Cooperative Governance And Traditional Affairs | DH158: Local Government Support and Intervention Management | DI158: 6 | DJ158: 10 | DK158: 10 | DL158: 0 | DM158: 10 | DN158: 2450 | DO158: 10 | DP158: 2950 | DQ158: 8 | DR158: 1352 | DS158: 8 | DT158: 1430 | DU158: 8 | DV158: 1513 | DW158: Cooperative Governance And Traditional Affairs|Local Government Support and Intervention Management | DX158: 004 | DY158: 005 | DZ158: 004005 | EC158: 414 | ED158: 1 | EE158: 4 | EF158: Cooperative Governance And Traditional Affairs | EG158: 1 | EH158: Administration | EI158: 4 | EJ158: Financial Services | EK158: Current payments | EL158: Compensation of employees | EM158: Compensation of employees | EN158: 16723 | EO158: 16133 | EP158: 17174 | EQ158: 18674 | ER158: 18674 | ES158: 21793 | ET158: 23057 | EU158: 24394 | EV158: 0 | EW158: 0 | EX158: 0 | EY158: 23057 | EZ158: 24394 | FA158: 26247.94391 | FB158: Cooperative Governance And Traditional Affairs|Administration | FC158: 004 | FD158: 001 | FE158: 004 | FF158: 001 | FG158: 004001 | FH158: 004001 | FI158: 1 | FJ158: 004001004001 | FL158: 004001001 | FT158: 7 | FU158: National Treasury | FV158: 5 | FW158: Financial Accounting and Supply Chain Management Systems | FX158: 4 | FY158: Financial Reporting for National Accounts
DG159: Cooperative Governance And Traditional Affairs | DH159: Local Government Support and Intervention Management | DI159: 7 | DJ159: 3 | DK159: 3 | DL159: 0 | DM159: 3 | DN159: 865 | DO159: 3 | DP159: 1041 | DQ159: 4 | DR159: 832 | DS159: 4 | DT159: 880 | DU159: 4 | DV159: 931 | DW159: Cooperative Governance And Traditional Affairs|Local Government Support and Intervention Management | DX159: 004 | DY159: 005 | DZ159: 004005 | EC159: 414 | ED159: 2 | EE159: 4 | EF159: Cooperative Governance And Traditional Affairs | EG159: 1 | EH159: Administration | EI159: 4 | EJ159: Financial Services | EK159: Current payments | EL159: Goods and services | EM159: Goods and services | EN159: 9719 | EO159: 8628 | EP159: 11895 | EQ159: 10713 | ER159: 10713 | ES159: 10781 | ET159: 11678 | EU159: 12337 | EV159: 0 | EW159: 0 | EX159: 0 | EY159: 11678 | EZ159: 12337 | FA159: 13027.872 | FB159: Cooperative Governance And Traditional Affairs|Administration | FC159: 004 | FD159: 001 | FE159: 004 | FF159: 002 | FG159: 004001 | FH159: 004002 | FI159: 2 | FJ159: 004001004002 | FL159: 004001002 | FT159: 7 | FU159: National Treasury | FV159: 5 | FW159: Financial Accounting and Supply Chain Management Systems | FX159: 5 | FY159: Financial Management Policy and Compliance Improvement
DG160: Cooperative Governance And Traditional Affairs | DH160: Local Government Support and Intervention Management | DI160: 8 | DJ160: 5 | DK160: 5 | DL160: 0 | DM160: 5 | DN160: 1750 | DO160: 5 | DP160: 2107 | DQ160: 5 | DR160: 1255 | DS160: 5 | DT160: 1328 | DU160: 5 | DV160: 1405 | DW160: Cooperative Governance And Traditional Affairs|Local Government Support and Intervention Management | DX160: 004 | DY160: 005 | DZ160: 004005 | EC160: 414 | ED160: 57 | EE160: 4 | EF160: Cooperative Governance And Traditional Affairs | EG160: 1 | EH160: Administration | EI160: 4 | EJ160: Financial Services | EK160: Payments for capital assets | EL160: Machinery and equipment | EM160: Other machinery and equipment | EN160: 170 | EO160: 30 | EP160: 1200 | EQ160: 432 | ER160: 432 | ES160: 2000 | ET160: 2058 | EU160: 2130 | EV160: 0 | EW160: 0 | EX160: 0 | EY160: 2058 | EZ160: 2130 | FA160: 2249.28 | FB160: Cooperative Governance And Traditional Affairs|Administration | FC160: 004 | FD160: 001 | FE160: 004 | FF160: 057 | FG160: 004001 | FH160: 004057 | FI160: 57 | FJ160: 004001004057 | FL160: 004001057 | FT160: 7 | FU160: National Treasury | FV160: 5 | FW160: Financial Accounting and Supply Chain Management Systems | FX160: 6 | FY160: Audit Statutory Bodies
DG161: Cooperative Governance And Traditional Affairs | DH161: Local Government Support and Intervention Management | DI161: 9 | DJ161: 6 | DK161: 6 | DL161: 0 | DM161: 6 | DN161: 2079 | DO161: 6 | DP161: 2503 | DQ161: 14 | DR161: 7218 | DS161: 14 | DT161: 7637 | DU161: 14 | DV161: 8080 | DW161: Cooperative Governance And Traditional Affairs|Local Government Support and Intervention Management | DX161: 004 | DY161: 005 | DZ161: 004005 | EC161: 414 | ED161: 63 | EE161: 4 | EF161: Cooperative Governance And Traditional Affairs | EG161: 1 | EH161: Administration | EI161: 4 | EJ161: Financial Services | EK161: Payments for financial assets | EL161: Payments for financial assets | EM161: Payments for financial assets | EN161: 418 | EO161: 263 | EP161: 0 | EQ161: 100 | ER161: 100 | ES161: 0 | ET161: 0 | EU161: 0 | EV161: 0 | EW161: 0 | EX161: 0 | EY161: 0 | EZ161: 0 | FA161: 0 | FB161: Cooperative Governance And Traditional Affairs|Administration | FC161: 004 | FD161: 001 | FE161: 004 | FF161: 063 | FG161: 004001 | FH161: 004063 | FI161: 63 | FJ161: 004001004063 | FL161: 004001063 | FT161: 7 | FU161: National Treasury | FV161: 5 | FW161: Financial Accounting and Supply Chain Management Systems | FX161: 7 | FY161: Service Charges: Commercial Banks
DG162: Cooperative Governance And Traditional Affairs | DH162: Local Government Support and Intervention Management | DI162: 11 | DJ162: 0 | DK162: 0 | DL162: 0 | DM162: 0 | DN162: 0 | DO162: 0 | DP162: 0 | DQ162: 35 | DR162: 21866 | DS162: 35 | DT162: 23134 | DU162: 35 | DV162: 24476 | DW162: Cooperative Governance And Traditional Affairs|Local Government Support and Intervention Management | DX162: 004 | DY162: 005 | DZ162: 004005 | EC162: 414 | ED162: 52 | EE162: 4 | EF162: Cooperative Governance And Traditional Affairs | EG162: 1 | EH162: Administration | EI162: 4 | EJ162: Financial Services | EK162: Transfers and subsidies | EL162: Households | EM162: Social benefits | EN162: 0 | EO162: 222 | EP162: 0 | EQ162: 64 | ER162: 64 | ES162: 0 | ET162: 0 | EU162: 0 | EV162: 0 | EW162: 0 | EX162: 0 | EY162: 0 | EZ162: 0 | FA162: 0 | FB162: Cooperative Governance And Traditional Affairs|Administration | FC162: 004 | FD162: 001 | FE162: 004 | FF162: 052 | FG162: 004001 | FH162: 004052 | FI162: 52 | FJ162: 004001004052 | FL162: 004001052 | FT162: 7 | FU162: National Treasury | FV162: 6 | FW162: International Financial Relations | FX162: 1 | FY162: Programme Management for International Financial Relations
DG163: Cooperative Governance And Traditional Affairs | DH163: Local Government Support and Intervention Management | DI163: 12 | DJ163: 0 | DK163: 0 | DL163: 0 | DM163: 0 | DN163: 0 | DO163: 0 | DP163: 0 | DQ163: 2 | DR163: 1580 | DS163: 2 | DT163: 1672 | DU163: 2 | DV163: 1769 | DW163: Cooperative Governance And Traditional Affairs|Local Government Support and Intervention Management | DX163: 004 | DY163: 005 | DZ163: 004005 | EC163: 415 | ED163: 1 | EE163: 4 | EF163: Cooperative Governance And Traditional Affairs | EG163: 1 | EH163: Administration | EI163: 5 | EJ163: Internal Audit and Risk Management | EK163: Current payments | EL163: Compensation of employees | EM163: Compensation of employees | EN163: 5151 | EO163: 5703 | EP163: 5299 | EQ163: 6099 | ER163: 6099 | ES163: 6810 | ET163: 7175 | EU163: 7581 | EV163: 0 | EW163: 0 | EX163: 0 | EY163: 7175 | EZ163: 7581 | FA163: 8157.155973 | FB163: Cooperative Governance And Traditional Affairs|Administration | FC163: 004 | FD163: 001 | FE163: 005 | FF163: 001 | FG163: 004001 | FH163: 004001 | FI163: 1 | FJ163: 004001005001 | FL163: 004001001 | FT163: 7 | FU163: National Treasury | FV163: 6 | FW163: International Financial Relations | FX163: 2 | FY163: International Economic Cooperation
DG164: Cooperative Governance And Traditional Affairs | DH164: Local Government Support and Intervention Management | DI164: 13 | DJ164: 20 | DK164: 20 | DL164: 0 | DM164: 20 | DN164: 13292 | DO164: 20 | DP164: 16004 | DQ164: 18 | DR164: 17906 | DS164: 18 | DT164: 18945 | DU164: 18 | DV164: 20044 | DW164: Cooperative Governance And Traditional Affairs|Local Government Support and Intervention Management | DX164: 004 | DY164: 005 | DZ164: 004005 | EC164: 415 | ED164: 2 | EE164: 4 | EF164: Cooperative Governance And Traditional Affairs | EG164: 1 | EH164: Administration | EI164: 5 | EJ164: Internal Audit and Risk Management | EK164: Current payments | EL164: Goods and services | EM164: Goods and services | EN164: 3592 | EO164: 2897 | EP164: 4558 | EQ164: 5758 | ER164: 5758 | ES164: 4665 | ET164: 4802 | EU164: 4967 | EV164: 0 | EW164: 0 | EX164: 0 | EY164: 4802 | EZ164: 4967 | FA164: 5245.152 | FB164: Cooperative Governance And Traditional Affairs|Administration | FC164: 004 | FD164: 001 | FE164: 005 | FF164: 002 | FG164: 004001 | FH164: 004002 | FI164: 2 | FJ164: 004001005002 | FL164: 004001002 | FT164: 7 | FU164: National Treasury | FV164: 6 | FW164: International Financial Relations | FX164: 3 | FY164: African Integration and Support
DG165: Cooperative Governance And Traditional Affairs | DH165: Local Government Support and Intervention Management | DI165: 14 | DJ165: 10 | DK165: 10 | DL165: 0 | DM165: 10 | DN165: 7990 | DO165: 10 | DP165: 9620 | DQ165: 8 | DR165: 8944 | DS165: 8 | DT165: 9463 | DU165: 8 | DV165: 10012 | DW165: Cooperative Governance And Traditional Affairs|Local Government Support and Intervention Management | DX165: 004 | DY165: 005 | DZ165: 004005 | EC165: 415 | ED165: 57 | EE165: 4 | EF165: Cooperative Governance And Traditional Affairs | EG165: 1 | EH165: Administration | EI165: 5 | EJ165: Internal Audit and Risk Management | EK165: Payments for capital assets | EL165: Machinery and equipment | EM165: Other machinery and equipment | EN165: 0 | EO165: 0 | EP165: 0 | EQ165: 0 | ER165: 0 | ES165: 0 | ET165: 0 | EU165: 0 | EV165: 0 | EW165: 0 | EX165: 0 | EY165: 0 | EZ165: 0 | FA165: 0 | FB165: Cooperative Governance And Traditional Affairs|Administration | FC165: 004 | FD165: 001 | FE165: 005 | FF165: 057 | FG165: 004001 | FH165: 004057 | FI165: 57 | FJ165: 004001005057 | FL165: 004001057 | FT165: 7 | FU165: National Treasury | FV165: 6 | FW165: International Financial Relations | FX165: 4 | FY165: International Development Funding Institutions
DG166: Cooperative Governance And Traditional Affairs | DH166: Local Government Support and Intervention Management | DI166: 15 | DJ166: 1 | DK166: 1 | DL166: 0 | DM166: 1 | DN166: 1202 | DO166: 1 | DP166: 1446 | DQ166: 1 | DR166: 1601 | DS166: 1 | DT166: 1691 | DU166: 1 | DV166: 1791 | DW166: Cooperative Governance And Traditional Affairs|Local Government Support and Intervention Management | DX166: 004 | DY166: 005 | DZ166: 004005 | EC166: 416 | ED166: 2 | EE166: 4 | EF166: Cooperative Governance And Traditional Affairs | EG166: 1 | EH166: Administration | EI166: 6 | EJ166: Office Accommodation | EK166: Current payments | EL166: Goods and services | EM166: Goods and services | EN166: 44499 | EO166: 43307 | EP166: 35598 | EQ166: 35598 | ER166: 35598 | ES166: 37485 | ET166: 41581 | EU166: 43022 | EV166: 0 | EW166: 0 | EX166: 0 | EY166: 41581 | EZ166: 43022 | FA166: 45431.232 | FB166: Cooperative Governance And Traditional Affairs|Administration | FC166: 004 | FD166: 001 | FE166: 006 | FF166: 002 | FG166: 004001 | FH166: 004002 | FI166: 2 | FJ166: 004001006002 | FL166: 004001002 | FT166: 7 | FU166: National Treasury | FV166: 6 | FW166: International Financial Relations | FX166: 5 | FY166: International Projects
DG167: Cooperative Governance And Traditional Affairs | DH167: Community Work Programme | DI167: 6 | DJ167: 1 | DK167: 1 | DL167: 0 | DM167: 1 | DN167: 306 | DO167: 1 | DP167: 426 | DQ167: 19 | DR167: 6491 | DS167: 19 | DT167: 7101 | DU167: 19 | DV167: 7421 | DW167: Cooperative Governance And Traditional Affairs|Community Work Programme | DX167: 004 | DY167: 006 | DZ167: 004006 | EC167: 421 | ED167: 1 | EE167: 4 | EF167: Cooperative Governance And Traditional Affairs | EG167: 2 | EH167: Regional and Urban Development and Legislative Support | EI167: 1 | EJ167: Management Regional and Urban Development & Legislative Support | EK167: Current payments | EL167: Compensation of employees | EM167: Compensation of employees | EN167: 2130 | EO167: 2834 | EP167: 4773 | EQ167: 4773 | ER167: 4773 | ES167: 2146 | ET167: 2270 | EU167: 2402 | EV167: 0 | EW167: 0 | EX167: 0 | EY167: 2270 | EZ167: 2402 | FA167: 2584.551991 | FB167: Cooperative Governance And Traditional Affairs|Regional and Urban Development and Legislative Support | FC167: 004 | FD167: 002 | FE167: 001 | FF167: 001 | FG167: 004002 | FH167: 004001 | FI167: 1 | FJ167: 004002001001 | FL167: 004002001 | FT167: 7 | FU167: National Treasury | FV167: 7 | FW167: Civil and Military Pensions, Contributions to Funds and Other Benefits | FX167: 1 | FY167: Government Pensions Administration Agency
DG168: Cooperative Governance And Traditional Affairs | DH168: Community Work Programme | DI168: 7 | DJ168: 0 | DK168: 0 | DL168: 0 | DM168: 0 | DN168: 0 | DO168: 0 | DP168: 0 | DQ168: 6 | DR168: 3739 | DS168: 6 | DT168: 4090 | DU168: 6 | DV168: 4274 | DW168: Cooperative Governance And Traditional Affairs|Community Work Programme | DX168: 004 | DY168: 006 | DZ168: 004006 | EC168: 421 | ED168: 2 | EE168: 4 | EF168: Cooperative Governance And Traditional Affairs | EG168: 2 | EH168: Regional and Urban Development and Legislative Support | EI168: 1 | EJ168: Management Regional and Urban Development & Legislative Support | EK168: Current payments | EL168: Goods and services | EM168: Goods and services | EN168: 908 | EO168: 511 | EP168: 1349 | EQ168: 1349 | ER168: 1349 | ES168: 950 | ET168: 977 | EU168: 1012 | EV168: 0 | EW168: 0 | EX168: 0 | EY168: 977 | EZ168: 1012 | FA168: 1068.672 | FB168: Cooperative Governance And Traditional Affairs|Regional and Urban Development and Legislative Support | FC168: 004 | FD168: 002 | FE168: 001 | FF168: 002 | FG168: 004002 | FH168: 004002 | FI168: 2 | FJ168: 004002001002 | FL168: 004002002 | FT168: 7 | FU168: National Treasury | FV168: 7 | FW168: Civil and Military Pensions, Contributions to Funds and Other Benefits | FX168: 2 | FY168: Civil Pensions and Contributions to Funds
DG169: Cooperative Governance And Traditional Affairs | DH169: Community Work Programme | DI169: 8 | DJ169: 1 | DK169: 1 | DL169: 0 | DM169: 0 | DN169: 0 | DO169: 0 | DP169: 0 | DQ169: 13 | DR169: 6006 | DS169: 13 | DT169: 6571 | DU169: 13 | DV169: 6867 | DW169: Cooperative Governance And Traditional Affairs|Community Work Programme | DX169: 004 | DY169: 006 | DZ169: 004006 | EC169: 421 | ED169: 57 | EE169: 4 | EF169: Cooperative Governance And Traditional Affairs | EG169: 2 | EH169: Regional and Urban Development and Legislative Support | EI169: 1 | EJ169: Management Regional and Urban Development & Legislative Support | EK169: Payments for capital assets | EL169: Machinery and equipment | EM169: Other machinery and equipment | EN169: 0 | EO169: 0 | EP169: 0 | EQ169: 0 | ER169: 0 | ES169: 0 | ET169: 0 | EU169: 0 | EV169: 0 | EW169: 0 | EX169: 0 | EY169: 0 | EZ169: 0 | FA169: 0 | FB169: Cooperative Governance And Traditional Affairs|Regional and Urban Development and Legislative Support | FC169: 004 | FD169: 002 | FE169: 001 | FF169: 057 | FG169: 004002 | FH169: 004057 | FI169: 57 | FJ169: 004002001057 | FL169: 004002057 | FT169: 7 | FU169: National Treasury | FV169: 7 | FW169: Civil and Military Pensions, Contributions to Funds and Other Benefits | FX169: 3 | FY169: Military Pensions and Other Benefits
DG170: Cooperative Governance And Traditional Affairs | DH170: Community Work Programme | DI170: 9 | DJ170: 0 | DK170: 0 | DL170: 0 | DM170: 0 | DN170: 0 | DO170: 0 | DP170: 0 | DQ170: 31 | DR170: 15531 | DS170: 31 | DT170: 16991 | DU170: 31 | DV170: 17501 | DW170: Cooperative Governance And Traditional Affairs|Community Work Programme | DX170: 004 | DY170: 006 | DZ170: 004006 | EC170: 422 | ED170: 1 | EE170: 4 | EF170: Cooperative Governance And Traditional Affairs | EG170: 2 | EH170: Regional and Urban Development and Legislative Support | EI170: 2 | EJ170: Local Government Legislative Support and Institutional Establishment | EK170: Current payments | EL170: Compensation of employees | EM170: Compensation of employees | EN170: 3837 | EO170: 3848 | EP170: 3915 | EQ170: 3915 | ER170: 3915 | ES170: 1309 | ET170: 1385 | EU170: 4204 | EV170: 0 | EW170: 0 | EX170: 0 | EY170: 1385 | EZ170: 4204 | FA170: 4523.503985 | FB170: Cooperative Governance And Traditional Affairs|Regional and Urban Development and Legislative Support | FC170: 004 | FD170: 002 | FE170: 002 | FF170: 001 | FG170: 004002 | FH170: 004001 | FI170: 1 | FJ170: 004002002001 | FL170: 004002001 | FT170: 7 | FU170: National Treasury | FV170: 8 | FW170: Technical Support and Development Finance | FX170: 2 | FY170: Local Government Financial Management Support
DG171: Cooperative Governance And Traditional Affairs | DH171: Community Work Programme | DI171: 11 | DJ171: 0 | DK171: 0 | DL171: 0 | DM171: 1 | DN171: 405 | DO171: 1 | DP171: 563 | DQ171: 17 | DR171: 10370 | DS171: 17 | DT171: 11405 | DU171: 17 | DV171: 11818 | DW171: Cooperative Governance And Traditional Affairs|Community Work Programme | DX171: 004 | DY171: 006 | DZ171: 004006 | EC171: 422 | ED171: 2 | EE171: 4 | EF171: Cooperative Governance And Traditional Affairs | EG171: 2 | EH171: Regional and Urban Development and Legislative Support | EI171: 2 | EJ171: Local Government Legislative Support and Institutional Establishment | EK171: Current payments | EL171: Goods and services | EM171: Goods and services | EN171: 1969 | EO171: 2905 | EP171: 1715 | EQ171: 1715 | ER171: 1715 | ES171: 2100 | ET171: 2161 | EU171: 2236 | EV171: 0 | EW171: 0 | EX171: 0 | EY171: 2161 | EZ171: 2236 | FA171: 2361.216 | FB171: Cooperative Governance And Traditional Affairs|Regional and Urban Development and Legislative Support | FC171: 004 | FD171: 002 | FE171: 002 | FF171: 002 | FG171: 004002 | FH171: 004002 | FI171: 2 | FJ171: 004002002002 | FL171: 004002002 | FT171: 7 | FU171: National Treasury | FV171: 8 | FW171: Technical Support and Development Finance | FX171: 3 | FY171: Urban Development and Support
DG172: Cooperative Governance And Traditional Affairs | DH172: Community Work Programme | DI172: 13 | DJ172: 9 | DK172: 9 | DL172: 0 | DM172: 9 | DN172: 9150 | DO172: 9 | DP172: 14800 | DQ172: 11 | DR172: 9680 | DS172: 11 | DT172: 10590 | DU172: 11 | DV172: 10056 | DW172: Cooperative Governance And Traditional Affairs|Community Work Programme | DX172: 004 | DY172: 006 | DZ172: 004006 | EC172: 422 | ED172: 57 | EE172: 4 | EF172: Cooperative Governance And Traditional Affairs | EG172: 2 | EH172: Regional and Urban Development and Legislative Support | EI172: 2 | EJ172: Local Government Legislative Support and Institutional Establishment | EK172: Payments for capital assets | EL172: Machinery and equipment | EM172: Other machinery and equipment | EN172: 31 | EO172: 0 | EP172: 0 | EQ172: 0 | ER172: 0 | ES172: 0 | ET172: 0 | EU172: 0 | EV172: 0 | EW172: 0 | EX172: 0 | EY172: 0 | EZ172: 0 | FA172: 0 | FB172: Cooperative Governance And Traditional Affairs|Regional and Urban Development and Legislative Support | FC172: 004 | FD172: 002 | FE172: 002 | FF172: 057 | FG172: 004002 | FH172: 004057 | FI172: 57 | FJ172: 004002002057 | FL172: 004002057 | FT172: 7 | FU172: National Treasury | FV172: 8 | FW172: Technical Support and Development Finance | FX172: 4 | FY172: Employment Creation Facilitation
DG173: Cooperative Governance And Traditional Affairs | DH173: Community Work Programme | DI173: 14 | DJ173: 7 | DK173: 7 | DL173: 0 | DM173: 7 | DN173: 9448 | DO173: 7 | DP173: 16850 | DQ173: 9 | DR173: 10161 | DS173: 9 | DT173: 11600 | DU173: 9 | DV173: 12222 | DW173: Cooperative Governance And Traditional Affairs|Community Work Programme | DX173: 004 | DY173: 006 | DZ173: 004006 | EC173: 423 | ED173: 1 | EE173: 4 | EF173: Cooperative Governance And Traditional Affairs | EG173: 2 | EH173: Regional and Urban Development and Legislative Support | EI173: 3 | EJ173: Urban Development Planning | EK173: Current payments | EL173: Compensation of employees | EM173: Compensation of employees | EN173: 4530 | EO173: 5249 | EP173: 4703 | EQ173: 4703 | ER173: 4703 | ES173: 2120 | ET173: 2730 | EU173: 2696 | EV173: 0 | EW173: 0 | EX173: 0 | EY173: 2730 | EZ173: 2696 | FA173: 2900.89599 | FB173: Cooperative Governance And Traditional Affairs|Regional and Urban Development and Legislative Support | FC173: 004 | FD173: 002 | FE173: 003 | FF173: 001 | FG173: 004002 | FH173: 004001 | FI173: 1 | FJ173: 004002003001 | FL173: 004002001 | FT173: 7 | FU173: National Treasury | FV173: 8 | FW173: Technical Support and Development Finance | FX173: 5 | FY173: Government Technical Advisory Centre
DG174: Cooperative Governance And Traditional Affairs | DH174: Community Work Programme | DI174: 15 | DJ174: 1 | DK174: 1 | DL174: 0 | DM174: 1 | DN174: 2950 | DO174: 1 | DP174: 4100 | DQ174: 1 | DR174: 1505 | DS174: 1 | DT174: 1646 | DU174: 1 | DV174: 1983 | DW174: Cooperative Governance And Traditional Affairs|Community Work Programme | DX174: 004 | DY174: 006 | DZ174: 004006 | EC174: 423 | ED174: 2 | EE174: 4 | EF174: Cooperative Governance And Traditional Affairs | EG174: 2 | EH174: Regional and Urban Development and Legislative Support | EI174: 3 | EJ174: Urban Development Planning | EK174: Current payments | EL174: Goods and services | EM174: Goods and services | EN174: 2026 | EO174: 1679 | EP174: 4120 | EQ174: 4120 | ER174: 4120 | ES174: 5210 | ET174: 3304 | EU174: 3418 | EV174: 0 | EW174: 0 | EX174: 0 | EY174: 3304 | EZ174: 3418 | FA174: 3609.408 | FB174: Cooperative Governance And Traditional Affairs|Regional and Urban Development and Legislative Support | FC174: 004 | FD174: 002 | FE174: 003 | FF174: 002 | FG174: 004002 | FH174: 004002 | FI174: 2 | FJ174: 004002003002 | FL174: 004002002 | FT174: 7 | FU174: National Treasury | FV174: 8 | FW174: Technical Support and Development Finance | FX174: 6 | FY174: Infrastructure Development Support
DG175: Home Affairs | DH175: Administration | DI175: 3 | DJ175: 852 | DK175: 78 | DL175: 0 | DM175: 78 | DN175: 7769 | DO175: 474 | DP175: 47272 | DQ175: 474 | DR175: 55428 | DS175: 230 | DT175: 31235 | DU175: 230 | DV175: 33344 | DW175: Home Affairs|Administration | DX175: 005 | DY175: 001 | DZ175: 005001 | EC175: 423 | ED175: 57 | EE175: 4 | EF175: Cooperative Governance And Traditional Affairs | EG175: 2 | EH175: Regional and Urban Development and Legislative Support | EI175: 3 | EJ175: Urban Development Planning | EK175: Payments for capital assets | EL175: Machinery and equipment | EM175: Other machinery and equipment | EN175: 23 | EO175: 85 | EP175: 0 | EQ175: 0 | ER175: 0 | ES175: 0 | ET175: 0 | EU175: 0 | EV175: 0 | EW175: 0 | EX175: 0 | EY175: 0 | EZ175: 0 | FA175: 0 | FB175: Cooperative Governance And Traditional Affairs|Regional and Urban Development and Legislative Support | FC175: 004 | FD175: 002 | FE175: 003 | FF175: 057 | FG175: 004002 | FH175: 004057 | FI175: 57 | FJ175: 004002003057 | FL175: 004002057 | FT175: 7 | FU175: National Treasury | FV175: 9 | FW175: Revenue Administration | FX175: 1 | FY175: South African Revenue Service
DG176: Home Affairs | DH176: Administration | DI176: 4 | DJ176: 443 | DK176: 0 | DL176: 64 | DM176: 64 | DN176: 8899 | DO176: 57 | DP176: 7935 | DQ176: 57 | DR176: 9305 | DS176: 57 | DT176: 10806 | DU176: 57 | DV176: 11536 | DW176: Home Affairs|Administration | DX176: 005 | DY176: 001 | DZ176: 005001 | EC176: 424 | ED176: 1 | EE176: 4 | EF176: Cooperative Governance And Traditional Affairs | EG176: 2 | EH176: Regional and Urban Development and Legislative Support | EI176: 4 | EJ176: Spatial Planning Districts and Regions | EK176: Current payments | EL176: Compensation of employees | EM176: Compensation of employees | EN176: 4010 | EO176: 4455 | EP176: 5186 | EQ176: 5186 | ER176: 5186 | ES176: 5782 | ET176: 6118 | EU176: 2812 | EV176: 0 | EW176: 0 | EX176: 0 | EY176: 6118 | EZ176: 2812 | FA176: 3025.71199 | FB176: Cooperative Governance And Traditional Affairs|Regional and Urban Development and Legislative Support | FC176: 004 | FD176: 002 | FE176: 004 | FF176: 001 | FG176: 004002 | FH176: 004001 | FI176: 1 | FJ176: 004002004001 | FL176: 004002001 | FT176: 7 | FU176: National Treasury | FV176: 10 | FW176: Financial Intelligence and State Security | FX176: 1 | FY176: Financial Intelligence Centre
DG177: Home Affairs | DH177: Administration | DI177: 5 | DJ177: 630 | DK177: 37 | DL177: 0 | DM177: 37 | DN177: 5222 | DO177: 37 | DP177: 5229 | DQ177: 37 | DR177: 6130 | DS177: 37 | DT177: 7120 | DU177: 37 | DV177: 7600 | DW177: Home Affairs|Administration | DX177: 005 | DY177: 001 | DZ177: 005001 | EC177: 424 | ED177: 2 | EE177: 4 | EF177: Cooperative Governance And Traditional Affairs | EG177: 2 | EH177: Regional and Urban Development and Legislative Support | EI177: 4 | EJ177: Spatial Planning Districts and Regions | EK177: Current payments | EL177: Goods and services | EM177: Goods and services | EN177: 4007 | EO177: 2072 | EP177: 3660 | EQ177: 3660 | ER177: 3660 | ES177: 6161 | ET177: 6426 | EU177: 6557 | EV177: 0 | EW177: 0 | EX177: 0 | EY177: 6426 | EZ177: 6557 | FA177: 6924.192 | FB177: Cooperative Governance And Traditional Affairs|Regional and Urban Development and Legislative Support | FC177: 004 | FD177: 002 | FE177: 004 | FF177: 002 | FG177: 004002 | FH177: 004002 | FI177: 2 | FJ177: 004002004002 | FL177: 004002002 | FT177: 7 | FU177: National Treasury | FV177: 10 | FW177: Financial Intelligence and State Security | FX177: 2 | FY177: Secret Services
DG178: Home Affairs | DH178: Administration | DI178: 6 | DJ178: 957 | DK178: 273 | DL178: 2 | DM178: 228 | DN178: 38640 | DO178: 263 | DP178: 44626 | DQ178: 263 | DR178: 52325 | DS178: 263 | DT178: 60768 | DU178: 263 | DV178: 64871 | DW178: Home Affairs|Administration | DX178: 005 | DY178: 001 | DZ178: 005001 | EC178: 425 | ED178: 1 | EE178: 4 | EF178: Cooperative Governance And Traditional Affairs | EG178: 2 | EH178: Regional and Urban Development and Legislative Support | EI178: 5 | EJ178: Intergovernmental Policy and Practice | EK178: Current payments | EL178: Compensation of employees | EM178: Compensation of employees | EN178: 3437 | EO178: 3589 | EP178: 4381 | EQ178: 4381 | ER178: 4381 | ES178: 6868 | ET178: 6852 | EU178: 8441 | EV178: 0 | EW178: 0 | EX178: 0 | EY178: 6852 | EZ178: 8441 | FA178: 9082.51597 | FB178: Cooperative Governance And Traditional Affairs|Regional and Urban Development and Legislative Support | FC178: 004 | FD178: 002 | FE178: 005 | FF178: 001 | FG178: 004002 | FH178: 004001 | FI178: 1 | FJ178: 004002005001 | FL178: 004002001 | FT178: 7 | FU178: National Treasury | FV178: 16 | FW178: Direct charge against the National Revenue Fund | FX178: 1 | FY178: Provincial Equitable Share
DG179: Home Affairs | DH179: Administration | DI179: 7 | DJ179: 2976 | DK179: 113 | DL179: 0 | DM179: 113 | DN179: 23642 | DO179: 115 | DP179: 24090 | DQ179: 115 | DR179: 28247 | DS179: 115 | DT179: 32805 | DU179: 115 | DV179: 35020 | DW179: Home Affairs|Administration | DX179: 005 | DY179: 001 | DZ179: 005001 | EC179: 425 | ED179: 2 | EE179: 4 | EF179: Cooperative Governance And Traditional Affairs | EG179: 2 | EH179: Regional and Urban Development and Legislative Support | EI179: 5 | EJ179: Intergovernmental Policy and Practice | EK179: Current payments | EL179: Goods and services | EM179: Goods and services | EN179: 3140 | EO179: 2810 | EP179: 3400 | EQ179: 3400 | ER179: 3400 | ES179: 2108 | ET179: 2170 | EU179: 2245 | EV179: 0 | EW179: 0 | EX179: 0 | EY179: 2170 | EZ179: 2245 | FA179: 2370.72 | FB179: Cooperative Governance And Traditional Affairs|Regional and Urban Development and Legislative Support | FC179: 004 | FD179: 002 | FE179: 005 | FF179: 002 | FG179: 004002 | FH179: 004002 | FI179: 2 | FJ179: 004002005002 | FL179: 004002002 | FT179: 7 | FU179: National Treasury | FV179: 16 | FW179: Direct charge against the National Revenue Fund | FX179: 2 | FY179: Debt-service costs
DG180: Home Affairs | DH180: Administration | DI180: 8 | DJ180: 981 | DK180: 106 | DL180: 2 | DM180: 108 | DN180: 28061 | DO180: 149 | DP180: 38761 | DQ180: 149 | DR180: 45449 | DS180: 149 | DT180: 52782 | DU180: 149 | DV180: 56346 | DW180: Home Affairs|Administration | DX180: 005 | DY180: 001 | DZ180: 005001 | EC180: 426 | ED180: 44 | EE180: 4 | EF180: Cooperative Governance And Traditional Affairs | EG180: 2 | EH180: Regional and Urban Development and Legislative Support | EI180: 6 | EJ180: Municipal Demarcation Transition Grant | EK180: Transfers and subsidies | EL180: Provinces and municipalities | EM180: Municipalities | EN180: 0 | EO180: 0 | EP180: 39000 | EQ180: 39000 | ER180: 39000 | ES180: 297422 | ET180: 111856 | EU180: 52900 | EV180: 0 | EW180: 0 | EX180: -52900 | EY180: 111856 | EZ180: 0 | FA180: 0 | FB180: Cooperative Governance And Traditional Affairs|Regional and Urban Development and Legislative Support | FC180: 004 | FD180: 002 | FE180: 006 | FF180: 044 | FG180: 004002 | FH180: 004044 | FI180: 44 | FJ180: 004002006044 | FL180: 004002044 | FT180: 7 | FU180: National Treasury | FV180: 16 | FW180: Direct charge against the National Revenue Fund | FX180: 3 | FY180: General Fuel Levy Sharing with Metropolitan Municipalities
DG181: Home Affairs | DH181: Administration | DI181: 9 | DJ181: 252 | DK181: 73 | DL181: 2 | DM181: 75 | DN181: 23165 | DO181: 3 | DP181: 928 | DQ181: 3 | DR181: 1088 | DS181: 3 | DT181: 1263 | DU181: 3 | DV181: 1349 | DW181: Home Affairs|Administration | DX181: 005 | DY181: 001 | DZ181: 005001 | EC181: 427 | ED181: 46 | EE181: 4 | EF181: Cooperative Governance And Traditional Affairs | EG181: 2 | EH181: Regional and Urban Development and Legislative Support | EI181: 7 | EJ181: Municipal Demarcation Board | EK181: Transfers and subsidies | EL181: Departmental agencies and accounts | EM181: Departmental agencies (non-business entities) | EN181: 42152 | EO181: 44230 | EP181: 45793 | EQ181: 45793 | ER181: 45793 | ES181: 58220 | ET181: 50631 | EU181: 53568 | EV181: 0 | EW181: 0 | EX181: 0 | EY181: 50631 | EZ181: 53568 | FA181: 56567.808 | FB181: Cooperative Governance And Traditional Affairs|Regional and Urban Development and Legislative Support | FC181: 004 | FD181: 002 | FE181: 007 | FF181: 046 | FG181: 004002 | FH181: 004046 | FI181: 46 | FJ181: 004002007046 | FL181: 004002046 | FT181: 7 | FU181: National Treasury | FV181: 16 | FW181: Direct charge against the National Revenue Fund | FX181: 4 | FY181: National Revenue Fund payments
DG182: Home Affairs | DH182: Administration | DI182: 10 | DJ182: 589 | DK182: 52 | DL182: 0 | DM182: 52 | DN182: 20047 | DO182: 123 | DP182: 47476 | DQ182: 123 | DR182: 55668 | DS182: 123 | DT182: 64650 | DU182: 123 | DV182: 69015 | DW182: Home Affairs|Administration | DX182: 005 | DY182: 001 | DZ182: 005001 | EC182: 428 | ED182: 51 | EE182: 4 | EF182: Cooperative Governance And Traditional Affairs | EG182: 2 | EH182: Regional and Urban Development and Legislative Support | EI182: 8 | EJ182: South African Cities Network | EK182: Transfers and subsidies | EL182: Non-profit institutions | EM182: Non-profit institutions | EN182: 11765 | EO182: 6071 | EP182: 6286 | EQ182: 6286 | ER182: 6286 | ES182: 6619 | ET182: 6950 | EU182: 7353 | EV182: 0 | EW182: 0 | EX182: 0 | EY182: 6950 | EZ182: 7353 | FA182: 7764.768 | FB182: Cooperative Governance And Traditional Affairs|Regional and Urban Development and Legislative Support | FC182: 004 | FD182: 002 | FE182: 008 | FF182: 051 | FG182: 004002 | FH182: 004051 | FI182: 51 | FJ182: 004002008051 | FL182: 004002051 | FT182: 8 | FU182: Planning, Monitoring and Evaluation | FV182: 1 | FW182: Administration | FX182: 1 | FY182: Departmental Management
DG183: Home Affairs | DH183: Administration | DI183: 11 | DJ183: 198 | DK183: 88 | DL183: 2 | DM183: 90 | DN183: 73048 | DO183: 33 | DP183: 26817 | DQ183: 33 | DR183: 31444 | DS183: 33 | DT183: 36517 | DU183: 33 | DV183: 38983 | DW183: Home Affairs|Administration | DX183: 005 | DY183: 001 | DZ183: 005001 | EC183: 431 | ED183: 1 | EE183: 4 | EF183: Cooperative Governance And Traditional Affairs | EG183: 3 | EH183: Institutional Development | EI183: 1 | EJ183: Management: Institutional Development | EK183: Current payments | EL183: Compensation of employees | EM183: Compensation of employees | EN183: 6576 | EO183: 7866 | EP183: 11547 | EQ183: 11547 | ER183: 11547 | ES183: 2216 | ET183: 2345 | EU183: 2481 | EV183: 0 | EW183: 0 | EX183: 0 | EY183: 2345 | EZ183: 2481 | FA183: 2669.555991 | FB183: Cooperative Governance And Traditional Affairs|Institutional Development | FC183: 004 | FD183: 003 | FE183: 001 | FF183: 001 | FG183: 004003 | FH183: 004001 | FI183: 1 | FJ183: 004003001001 | FL183: 004003001 | FT183: 8 | FU183: Planning, Monitoring and Evaluation | FV183: 1 | FW183: Administration | FX183: 2 | FY183: Corporate and Financial Services
DG184: Home Affairs | DH184: Administration | DI184: 12 | DJ184: 207 | DK184: 53 | DL184: 0 | DM184: 53 | DN184: 50981 | DO184: 110 | DP184: 105938 | DQ184: 110 | DR184: 124216 | DS184: 110 | DT184: 144260 | DU184: 110 | DV184: 154001 | DW184: Home Affairs|Administration | DX184: 005 | DY184: 001 | DZ184: 005001 | EC184: 431 | ED184: 2 | EE184: 4 | EF184: Cooperative Governance And Traditional Affairs | EG184: 3 | EH184: Institutional Development | EI184: 1 | EJ184: Management: Institutional Development | EK184: Current payments | EL184: Goods and services | EM184: Goods and services | EN184: 3190 | EO184: 7492 | EP184: 9281 | EQ184: 9281 | ER184: 9281 | ES184: 950 | ET184: 978 | EU184: 1012 | EV184: 0 | EW184: 0 | EX184: 0 | EY184: 978 | EZ184: 1012 | FA184: 1068.672 | FB184: Cooperative Governance And Traditional Affairs|Institutional Development | FC184: 004 | FD184: 003 | FE184: 001 | FF184: 002 | FG184: 004003 | FH184: 004002 | FI184: 2 | FJ184: 004003001002 | FL184: 004003002 | FT184: 8 | FU184: Planning, Monitoring and Evaluation | FV184: 1 | FW184: Administration | FX184: 3 | FY184: Information Technology Support
DG185: Home Affairs | DH185: Administration | DI185: 13 | DJ185: 112 | DK185: 67 | DL185: 1 | DM185: 68 | DN185: 83744 | DO185: 68 | DP185: 83846 | DQ185: 68 | DR185: 98312 | DS185: 68 | DT185: 114176 | DU185: 68 | DV185: 121885 | DW185: Home Affairs|Administration | DX185: 005 | DY185: 001 | DZ185: 005001 | EC185: 431 | ED185: 57 | EE185: 4 | EF185: Cooperative Governance And Traditional Affairs | EG185: 3 | EH185: Institutional Development | EI185: 1 | EJ185: Management: Institutional Development | EK185: Payments for capital assets | EL185: Machinery and equipment | EM185: Other machinery and equipment | EN185: 34 | EO185: 0 | EP185: 0 | EQ185: 0 | ER185: 0 | ES185: 0 | ET185: 0 | EU185: 0 | EV185: 0 | EW185: 0 | EX185: 0 | EY185: 0 | EZ185: 0 | FA185: 0 | FB185: Cooperative Governance And Traditional Affairs|Institutional Development | FC185: 004 | FD185: 003 | FE185: 001 | FF185: 057 | FG185: 004003 | FH185: 004057 | FI185: 57 | FJ185: 004003001057 | FL185: 004003057 | FT185: 8 | FU185: Planning, Monitoring and Evaluation | FV185: 1 | FW185: Administration | FX185: 4 | FY185: Internal Audit and Enterprise Risk Management
DG186: Home Affairs | DH186: Administration | DI186: 14 | DJ186: 33 | DK186: 23 | DL186: 0 | DM186: 23 | DN186: 34170 | DO186: 22 | DP186: 32724 | DQ186: 22 | DR186: 38370 | DS186: 21 | DT186: 42536 | DU186: 21 | DV186: 45408 | DW186: Home Affairs|Administration | DX186: 005 | DY186: 001 | DZ186: 005001 | EC186: 432 | ED186: 1 | EE186: 4 | EF186: Cooperative Governance And Traditional Affairs | EG186: 3 | EH186: Institutional Development | EI186: 2 | EJ186: Municipal Human Resources Management Systems | EK186: Current payments | EL186: Compensation of employees | EM186: Compensation of employees | EN186: 3636 | EO186: 4057 | EP186: 4139 | EQ186: 4139 | ER186: 4139 | ES186: 4331 | ET186: 4581 | EU186: 4852 | EV186: 0 | EW186: 0 | EX186: 0 | EY186: 4581 | EZ186: 4852 | FA186: 5220.751983 | FB186: Cooperative Governance And Traditional Affairs|Institutional Development | FC186: 004 | FD186: 003 | FE186: 002 | FF186: 001 | FG186: 004003 | FH186: 004001 | FI186: 1 | FJ186: 004003002001 | FL186: 004003001 | FT186: 8 | FU186: Planning, Monitoring and Evaluation | FV186: 1 | FW186: Administration | FX186: 5 | FY186: Ministerial Support
DG187: Home Affairs | DH187: Administration | DI187: 15 | DJ187: 10 | DK187: 8 | DL187: 2 | DM187: 10 | DN187: 18067 | DO187: 11 | DP187: 19898 | DQ187: 11 | DR187: 23331 | DS187: 11 | DT187: 27096 | DU187: 11 | DV187: 28926 | DW187: Home Affairs|Administration | DX187: 005 | DY187: 001 | DZ187: 005001 | EC187: 432 | ED187: 2 | EE187: 4 | EF187: Cooperative Governance And Traditional Affairs | EG187: 3 | EH187: Institutional Development | EI187: 2 | EJ187: Municipal Human Resources Management Systems | EK187: Current payments | EL187: Goods and services | EM187: Goods and services | EN187: 1350 | EO187: 2209 | EP187: 5478 | EQ187: 5478 | ER187: 5478 | ES187: 3100 | ET187: 3191 | EU187: 3301 | EV187: 0 | EW187: 0 | EX187: 0 | EY187: 3191 | EZ187: 3301 | FA187: 3485.856 | FB187: Cooperative Governance And Traditional Affairs|Institutional Development | FC187: 004 | FD187: 003 | FE187: 002 | FF187: 002 | FG187: 004003 | FH187: 004002 | FI187: 2 | FJ187: 004003002002 | FL187: 004003002 | FT187: 8 | FU187: Planning, Monitoring and Evaluation | FV187: 2 | FW187: Outcomes Monitoring and Evaluation | FX187: 1 | FY187: Programme Management for Outcomes Monitoring and Evaluation
DG188: Home Affairs | DH188: Administration | DI188: 16 | DJ188: 3 | DK188: 3 | DL188: 0 | DM188: 3 | DN188: 4975 | DO188: 3 | DP188: 4981 | DQ188: 3 | DR188: 5840 | DS188: 3 | DT188: 6783 | DU188: 3 | DV188: 7241 | DW188: Home Affairs|Administration | DX188: 005 | DY188: 001 | DZ188: 005001 | EC188: 432 | ED188: 57 | EE188: 4 | EF188: Cooperative Governance And Traditional Affairs | EG188: 3 | EH188: Institutional Development | EI188: 2 | EJ188: Municipal Human Resources Management Systems | EK188: Payments for capital assets | EL188: Machinery and equipment | EM188: Other machinery and equipment | EN188: 0 | EO188: 0 | EP188: 20 | EQ188: 20 | ER188: 20 | ES188: 0 | ET188: 0 | EU188: 0 | EV188: 0 | EW188: 0 | EX188: 0 | EY188: 0 | EZ188: 0 | FA188: 0 | FB188: Cooperative Governance And Traditional Affairs|Institutional Development | FC188: 004 | FD188: 003 | FE188: 002 | FF188: 057 | FG188: 004003 | FH188: 004057 | FI188: 57 | FJ188: 004003002057 | FL188: 004003057 | FT188: 8 | FU188: Planning, Monitoring and Evaluation | FV188: 2 | FW188: Outcomes Monitoring and Evaluation | FX188: 2 | FY188: Outcomes Support
DG189: Home Affairs | DH189: Citizen Affairs | DI189: 3 | DJ189: 0 | DK189: 420 | DL189: 0 | DM189: 420 | DN189: 41868 | DO189: 400 | DP189: 55630 | DQ189: 400 | DR189: 52496 | DS189: 305 | DT189: 43273 | DU189: 305 | DV189: 46212 | DW189: Home Affairs|Citizen Affairs | DX189: 005 | DY189: 002 | DZ189: 005002 | EC189: 432 | ED189: 48 | EE189: 4 | EF189: Cooperative Governance And Traditional Affairs | EG189: 3 | EH189: Institutional Development | EI189: 2 | EJ189: Municipal Human Resources Management Systems | EK189: Transfers and subsidies | EL189: Foreign governments and international organisations | EM189: Foreign governments and international organisations | EN189: 400 | EO189: 238 | EP189: 0 | EQ189: 0 | ER189: 0 | ES189: 0 | ET189: 0 | EU189: 0 | EV189: 0 | EW189: 0 | EX189: 0 | EY189: 0 | EZ189: 0 | FA189: 0 | FB189: Cooperative Governance And Traditional Affairs|Institutional Development | FC189: 004 | FD189: 003 | FE189: 002 | FF189: 048 | FG189: 004003 | FH189: 004048 | FI189: 48 | FJ189: 004003002048 | FL189: 004003048 | FT189: 8 | FU189: Planning, Monitoring and Evaluation | FV189: 2 | FW189: Outcomes Monitoring and Evaluation | FX189: 3 | FY189: Evaluation and Research
DG190: Home Affairs | DH190: Citizen Affairs | DI190: 4 | DJ190: 0 | DK190: 0 | DL190: 0 | DM190: 1 | DN190: 139 | DO190: 1 | DP190: 246 | DQ190: 1 | DR190: 183 | DS190: 1 | DT190: 198 | DU190: 1 | DV190: 212 | DW190: Home Affairs|Citizen Affairs | DX190: 005 | DY190: 002 | DZ190: 005002 | EC190: 433 | ED190: 1 | EE190: 4 | EF190: Cooperative Governance And Traditional Affairs | EG190: 3 | EH190: Institutional Development | EI190: 3 | EJ190: Municipal Finance | EK190: Current payments | EL190: Compensation of employees | EM190: Compensation of employees | EN190: 5576 | EO190: 6133 | EP190: 6455 | EQ190: 6455 | ER190: 6455 | ES190: 6795 | ET190: 7701 | EU190: 8147 | EV190: 0 | EW190: 0 | EX190: 0 | EY190: 7701 | EZ190: 8147 | FA190: 8766.171971 | FB190: Cooperative Governance And Traditional Affairs|Institutional Development | FC190: 004 | FD190: 003 | FE190: 003 | FF190: 001 | FG190: 004003 | FH190: 004001 | FI190: 1 | FJ190: 004003003001 | FL190: 004003001 | FT190: 8 | FU190: Planning, Monitoring and Evaluation | FV190: 3 | FW190: Institutional Performance Monitoring and Evaluation | FX190: 1 | FY190: Programme Management for Institutional Performance Monitoring and Evaluation
DG191: Home Affairs | DH191: Citizen Affairs | DI191: 5 | DJ191: 0 | DK191: 282 | DL191: 0 | DM191: 282 | DN191: 39830 | DO191: 251 | DP191: 49460 | DQ191: 251 | DR191: 46674 | DS191: 251 | DT191: 50457 | DU191: 251 | DV191: 53884 | DW191: Home Affairs|Citizen Affairs | DX191: 005 | DY191: 002 | DZ191: 005002 | EC191: 433 | ED191: 2 | EE191: 4 | EF191: Cooperative Governance And Traditional Affairs | EG191: 3 | EH191: Institutional Development | EI191: 3 | EJ191: Municipal Finance | EK191: Current payments | EL191: Goods and services | EM191: Goods and services | EN191: 2710 | EO191: 2589 | EP191: 2727 | EQ191: 6627 | ER191: 6627 | ES191: 27690 | ET191: 24983 | EU191: 22996 | EV191: 0 | EW191: 0 | EX191: 0 | EY191: 24983 | EZ191: 22996 | FA191: 24283.776 | FB191: Cooperative Governance And Traditional Affairs|Institutional Development | FC191: 004 | FD191: 003 | FE191: 003 | FF191: 002 | FG191: 004003 | FH191: 004002 | FI191: 2 | FJ191: 004003003002 | FL191: 004003002 | FT191: 8 | FU191: Planning, Monitoring and Evaluation | FV191: 3 | FW191: Institutional Performance Monitoring and Evaluation | FX191: 2 | FY191: Management Performance Monitoring and Support
DG192: Home Affairs | DH192: Citizen Affairs | DI192: 6 | DJ192: 5204 | DK192: 4970 | DL192: 0 | DM192: 4753 | DN192: 806137 | DO192: 4228 | DP192: 1000430 | DQ192: 4228 | DR192: 944069 | DS192: 4228 | DT192: 1020602 | DU192: 4228 | DV192: 1089915 | DW192: Home Affairs|Citizen Affairs | DX192: 005 | DY192: 002 | DZ192: 005002 | EC192: 434 | ED192: 1 | EE192: 4 | EF192: Cooperative Governance And Traditional Affairs | EG192: 3 | EH192: Institutional Development | EI192: 4 | EJ192: Citizen Engagement | EK192: Current payments | EL192: Compensation of employees | EM192: Compensation of employees | EN192: 3526 | EO192: 3752 | EP192: 3950 | EQ192: 3950 | ER192: 3950 | ES192: 3108 | ET192: 3289 | EU192: 3696 | EV192: 0 | EW192: 0 | EX192: 0 | EY192: 3289 | EZ192: 3696 | FA192: 3976.895987 | FB192: Cooperative Governance And Traditional Affairs|Institutional Development | FC192: 004 | FD192: 003 | FE192: 004 | FF192: 001 | FG192: 004003 | FH192: 004001 | FI192: 1 | FJ192: 004003004001 | FL192: 004003001 | FT192: 8 | FU192: Planning, Monitoring and Evaluation | FV192: 3 | FW192: Institutional Performance Monitoring and Evaluation | FX192: 3 | FY192: Presidential Frontline Service Delivery Performance Monitoring and Support
DG193: Home Affairs | DH193: Citizen Affairs | DI193: 7 | DJ193: 103 | DK193: 976 | DL193: 0 | DM193: 976 | DN193: 204365 | DO193: 1012 | DP193: 295629 | DQ193: 1012 | DR193: 278974 | DS193: 1012 | DT193: 301590 | DU193: 1012 | DV193: 322073 | DW193: Home Affairs|Citizen Affairs | DX193: 005 | DY193: 002 | DZ193: 005002 | EC193: 434 | ED193: 2 | EE193: 4 | EF193: Cooperative Governance And Traditional Affairs | EG193: 3 | EH193: Institutional Development | EI193: 4 | EJ193: Citizen Engagement | EK193: Current payments | EL193: Goods and services | EM193: Goods and services | EN193: 993 | EO193: 2784 | EP193: 3006 | EQ193: 3006 | ER193: 3006 | ES193: 5292 | ET193: 3412 | EU193: 3558 | EV193: 0 | EW193: 0 | EX193: 0 | EY193: 3412 | EZ193: 3558 | FA193: 3757.248 | FB193: Cooperative Governance And Traditional Affairs|Institutional Development | FC193: 004 | FD193: 003 | FE193: 004 | FF193: 002 | FG193: 004003 | FH193: 004002 | FI193: 2 | FJ193: 004003004002 | FL193: 004003002 | FT193: 8 | FU193: Planning, Monitoring and Evaluation | FV193: 3 | FW193: Institutional Performance Monitoring and Evaluation | FX193: 4 | FY193: Macro Monitoring and Evaluation Policy and Capacity Building
DG194: Home Affairs | DH194: Citizen Affairs | DI194: 8 | DJ194: 514 | DK194: 889 | DL194: 0 | DM194: 889 | DN194: 231167 | DO194: 699 | DP194: 253578 | DQ194: 699 | DR194: 239292 | DS194: 699 | DT194: 258691 | DU194: 699 | DV194: 276260 | DW194: Home Affairs|Citizen Affairs | DX194: 005 | DY194: 002 | DZ194: 005002 | EC194: 434 | ED194: 57 | EE194: 4 | EF194: Cooperative Governance And Traditional Affairs | EG194: 3 | EH194: Institutional Development | EI194: 4 | EJ194: Citizen Engagement | EK194: Payments for capital assets | EL194: Machinery and equipment | EM194: Other machinery and equipment | EN194: 115 | EO194: 197 | EP194: 0 | EQ194: 0 | ER194: 0 | ES194: 0 | ET194: 0 | EU194: 0 | EV194: 0 | EW194: 0 | EX194: 0 | EY194: 0 | EZ194: 0 | FA194: 0 | FB194: Cooperative Governance And Traditional Affairs|Institutional Development | FC194: 004 | FD194: 003 | FE194: 004 | FF194: 057 | FG194: 004003 | FH194: 004057 | FI194: 57 | FJ194: 004003004057 | FL194: 004003057 | FT194: 8 | FU194: Planning, Monitoring and Evaluation | FV194: 4 | FW194: National Planning | FX194: 1 | FY194: Programme Management for National Planning
DG195: Home Affairs | DH195: Citizen Affairs | DI195: 9 | DJ195: 10 | DK195: 69 | DL195: 0 | DM195: 69 | DN195: 21329 | DO195: 35 | DP195: 15094 | DQ195: 35 | DR195: 14244 | DS195: 35 | DT195: 15398 | DU195: 35 | DV195: 16444 | DW195: Home Affairs|Citizen Affairs | DX195: 005 | DY195: 002 | DZ195: 005002 | EC195: 435 | ED195: 1 | EE195: 4 | EF195: Cooperative Governance And Traditional Affairs | EG195: 3 | EH195: Institutional Development | EI195: 5 | EJ195: Anti-Corruption and Good Governance | EK195: Current payments | EL195: Compensation of employees | EM195: Compensation of employees | EN195: 3321 | EO195: 3631 | EP195: 3959 | EQ195: 3959 | ER195: 3959 | ES195: 4418 | ET195: 4672 | EU195: 2705 | EV195: 0 | EW195: 0 | EX195: 0 | EY195: 4672 | EZ195: 2705 | FA195: 2910.57999 | FB195: Cooperative Governance And Traditional Affairs|Institutional Development | FC195: 004 | FD195: 003 | FE195: 005 | FF195: 001 | FG195: 004003 | FH195: 004001 | FI195: 1 | FJ195: 004003005001 | FL195: 004003001 | FT195: 8 | FU195: Planning, Monitoring and Evaluation | FV195: 4 | FW195: National Planning | FX195: 2 | FY195: Research and Policy Services
DG196: Home Affairs | DH196: Citizen Affairs | DI196: 10 | DJ196: 206 | DK196: 254 | DL196: 0 | DM196: 254 | DN196: 97998 | DO196: 310 | DP196: 166862 | DQ196: 310 | DR196: 157461 | DS196: 310 | DT196: 170226 | DU196: 310 | DV196: 181787 | DW196: Home Affairs|Citizen Affairs | DX196: 005 | DY196: 002 | DZ196: 005002 | EC196: 435 | ED196: 2 | EE196: 4 | EF196: Cooperative Governance And Traditional Affairs | EG196: 3 | EH196: Institutional Development | EI196: 5 | EJ196: Anti-Corruption and Good Governance | EK196: Current payments | EL196: Goods and services | EM196: Goods and services | EN196: 1501 | EO196: 1295 | EP196: 1506 | EQ196: 1506 | ER196: 1506 | ES196: 2600 | ET196: 2676 | EU196: 2769 | EV196: 0 | EW196: 0 | EX196: 0 | EY196: 2676 | EZ196: 2769 | FA196: 2924.064 | FB196: Cooperative Governance And Traditional Affairs|Institutional Development | FC196: 004 | FD196: 003 | FE196: 005 | FF196: 002 | FG196: 004003 | FH196: 004002 | FI196: 2 | FJ196: 004003005002 | FL196: 004003002 | FT196: 8 | FU196: Planning, Monitoring and Evaluation | FV196: 4 | FW196: National Planning | FX196: 3 | FY196: Government Performance Information
DG197: Home Affairs | DH197: Citizen Affairs | DI197: 11 | DJ197: 9 | DK197: 34 | DL197: 0 | DM197: 34 | DN197: 27618 | DO197: 14 | DP197: 15865 | DQ197: 14 | DR197: 11198 | DS197: 14 | DT197: 16185 | DU197: 14 | DV197: 17284 | DW197: Home Affairs|Citizen Affairs | DX197: 005 | DY197: 002 | DZ197: 005002 | EC197: 435 | ED197: 57 | EE197: 4 | EF197: Cooperative Governance And Traditional Affairs | EG197: 3 | EH197: Institutional Development | EI197: 5 | EJ197: Anti-Corruption and Good Governance | EK197: Payments for capital assets | EL197: Machinery and equipment | EM197: Other machinery and equipment | EN197: 0 | EO197: 0 | EP197: 50 | EQ197: 50 | ER197: 50 | ES197: 0 | ET197: 0 | EU197: 0 | EV197: 0 | EW197: 0 | EX197: 0 | EY197: 0 | EZ197: 0 | FA197: 0 | FB197: Cooperative Governance And Traditional Affairs|Institutional Development | FC197: 004 | FD197: 003 | FE197: 005 | FF197: 057 | FG197: 004003 | FH197: 004057 | FI197: 57 | FJ197: 004003005057 | FL197: 004003057 | FT197: 8 | FU197: Planning, Monitoring and Evaluation | FV197: 5 | FW197: National Youth Development | FX197: 1 | FY197: Youth Development
DG198: Home Affairs | DH198: Citizen Affairs | DI198: 12 | DJ198: 60 | DK198: 73 | DL198: 0 | DM198: 73 | DN198: 70274 | DO198: 75 | DP198: 100727 | DQ198: 75 | DR198: 71099 | DS198: 75 | DT198: 102758 | DU198: 75 | DV198: 109737 | DW198: Home Affairs|Citizen Affairs | DX198: 005 | DY198: 002 | DZ198: 005002 | EC198: 436 | ED198: 1 | EE198: 4 | EF198: Cooperative Governance And Traditional Affairs | EG198: 3 | EH198: Institutional Development | EI198: 6 | EJ198: Municipal Property Rates | EK198: Current payments | EL198: Compensation of employees | EM198: Compensation of employees | EN198: 7525 | EO198: 7754 | EP198: 9532 | EQ198: 9532 | ER198: 9532 | ES198: 12343 | ET198: 13059 | EU198: 13652 | EV198: 0 | EW198: 0 | EX198: 0 | EY198: 13059 | EZ198: 13652 | FA198: 14689.55195 | FB198: Cooperative Governance And Traditional Affairs|Institutional Development | FC198: 004 | FD198: 003 | FE198: 006 | FF198: 001 | FG198: 004003 | FH198: 004001 | FI198: 1 | FJ198: 004003006001 | FL198: 004003001 | FT198: 8 | FU198: Planning, Monitoring and Evaluation | FV198: 5 | FW198: National Youth Development | FX198: 2 | FY198: National Youth Development Agency
DG199: Home Affairs | DH199: Citizen Affairs | DI199: 13 | DJ199: 39 | DK199: 54 | DL199: 0 | DM199: 54 | DN199: 66555 | DO199: 53 | DP199: 91132 | DQ199: 53 | DR199: 64327 | DS199: 53 | DT199: 92970 | DU199: 53 | DV199: 99283 | DW199: Home Affairs|Citizen Affairs | DX199: 005 | DY199: 002 | DZ199: 005002 | EC199: 436 | ED199: 2 | EE199: 4 | EF199: Cooperative Governance And Traditional Affairs | EG199: 3 | EH199: Institutional Development | EI199: 6 | EJ199: Municipal Property Rates | EK199: Current payments | EL199: Goods and services | EM199: Goods and services | EN199: 0 | EO199: 0 | EP199: 0 | EQ199: 0 | ER199: 0 | ES199: 2549 | ET199: 2539 | EU199: 2718 | EV199: 0 | EW199: 0 | EX199: 0 | EY199: 2539 | EZ199: 2718 | FA199: 2870.208 | FB199: Cooperative Governance And Traditional Affairs|Institutional Development | FC199: 004 | FD199: 003 | FE199: 006 | FF199: 002 | FG199: 004003 | FH199: 004002 | FI199: 2 | FJ199: 004003006002 | FL199: 004003002 | FT199: 9 | FU199: Public Enterprises | FV199: 1 | FW199: Administration | FX199: 1 | FY199: Ministry
DG200: Home Affairs | DH200: Citizen Affairs | DI200: 14 | DJ200: 4 | DK200: 13 | DL200: 0 | DM200: 13 | DN200: 19329 | DO200: 14 | DP200: 29040 | DQ200: 14 | DR200: 20498 | DS200: 14 | DT200: 29626 | DU200: 14 | DV200: 31638 | DW200: Home Affairs|Citizen Affairs | DX200: 005 | DY200: 002 | DZ200: 005002 | EC200: 437 | ED200: 44 | EE200: 4 | EF200: Cooperative Governance And Traditional Affairs | EG200: 3 | EH200: Institutional Development | EI200: 7 | EJ200: Local Government Equitable Share | EK200: Transfers and subsidies | EL200: Provinces and municipalities | EM200: Municipalities | EN200: 38964252 | EO200: 41592070 | EP200: 50207698 | EQ200: 51706516 | ER200: 48915846 | ES200: 52568706 | ET200: 57012141 | EU200: 61731845 | EV200: 0 | EW200: 0 | EX200: 0 | EY200: 57012141 | EZ200: 61731845 | FA200: 66423465 | FB200: Cooperative Governance And Traditional Affairs|Institutional Development | FC200: 004 | FD200: 003 | FE200: 007 | FF200: 044 | FG200: 004003 | FH200: 004044 | FI200: 44 | FJ200: 004003007044 | FL200: 004003044 | FT200: 9 | FU200: Public Enterprises | FV200: 1 | FW200: Administration | FX200: 2 | FY200: Management
... 362 more rows

Sheet Help
C3: Content (Click on topic to view) | D3: =" "&Indi1 -> Department Information, Training, PPP Projects & Checks | Q3: =COUNTA(R5:R17) -> 13 | R3: Total number of DescriptBox
Q4: 10 | R4: =CHOOSE(Q4,R5,R6,R7,R8,R9,R10,R11,R12,R13,R14,R15,R16,R17) -> Department Information, Training, PPP Projects & Checks
C5: 1. | Q5: 1 | R5: Introduction
Q6: 2 | R6: General workings
Q7: 3 | R7: Settings
C8: 2. | Q8: 4 | R8: Cover sheet
Q9: 5 | R9: Summary sheet
Q10: 6 | R10: Programme sheets
C11: 3. | Q11: 7 | R11: Grants Admin, Budget Tracking, Function Shifts, Performance Indicators
Q12: 8 | R12: Personnel, Receipts
Q13: 9 | R13: Analysis, Infrastructure, ODA, Deviations, Expenditure Trends
C14: 4. | Q14: 10 | R14: Department Information, Training, PPP Projects & Checks
Q15: 11 | R15: Transfers & subsidies
Q16: 12 | R16: Glossary
C17: 5. | Q17: 13 | R17: Glossary -part2
C20: 6.
C23: 7.
C27: 8.
C29: 9.
C33: 10.
C37: 11.
C39: 12.

Sheet Settings
A1: ENE
A2: 2
A3: 2
A5: =IF($A$4=TRUE,"FALSE",IF($A$3=1,"TRUE","FALSE")) -> FALSE
I11: ECONOMIC CLASSIFICATION | T11: Department Contact Details
I12: Type "Y" to show, "N" to hide (Controls unused classification rows to be hidden across the database) | R12: Check: Hidden values assigned | T12: To be filled by person responsible for completion/submission of datafile
I13: =SUMPRODUCT(Summary!$I$59:$AU$141*(Summary!$F$59:$F$141=Settings!$K13)) -> 63388423.52 | J13: y | K13: Current payments | R13: =IF(AND(J13<>"y",I13<>0),"Incorrectly hidden Row, revise settings", "") -> 
I14: =SUMPRODUCT(Summary!$I$59:$AU$141*(Summary!$F$59:$F$141=Settings!$K14)) -> 5132657.412 | J14: y | K14: Compensation of employees | T14: Name:
I15: =SUMPRODUCT(Summary!$I$59:$AU$141*(Summary!$F$59:$F$141=Settings!$K15)) -> 4613084.805 | J15: y | K15: Salaries and wages
I16: =SUMPRODUCT(Summary!$I$59:$AU$141*(Summary!$F$59:$F$141=Settings!$K16)) -> 519572.6076 | J16: y | K16: Social contributions | T16: Email:
I17: =SUMPRODUCT(Summary!$I$59:$AU$141*(Summary!$F$59:$F$141=Settings!$K17)) -> 58255766.1 | J17: y | K17: Goods and services
I18: =SUMPRODUCT(Summary!$I$59:$AU$141*(Summary!$F$59:$F$141=Settings!$K18)) -> 7663.288 | J18: y | K18: Administrative fees | T18: Telephone number:
I19: =SUMPRODUCT(Summary!$I$59:$AU$141*(Summary!$F$59:$F$141=Settings!$K19)) -> 123780.496 | J19: y | K19: Advertising
I20: =SUMPRODUCT(Summary!$I$59:$AU$141*(Summary!$F$59:$F$141=Settings!$K20)) -> 33861.784 | J20: y | K20: Minor Assets | T20: Mobile (optional):
I21: =SUMPRODUCT(Summary!$I$59:$AU$141*(Summary!$F$59:$F$141=Settings!$K21)) -> 139162.432 | J21: y | K21: Audit costs: External | R21: =IF(AND(J21<>"y",I21<>0),"Incorrectly hidden Row, revise settings", "") -> 
I22: =SUMPRODUCT(Summary!$I$59:$AU$141*(Summary!$F$59:$F$141=Settings!$K22)) -> 39733.184 | J22: y | K22: Bursaries: Employees | T22: CFO contact details
I23: =SUMPRODUCT(Summary!$I$59:$AU$141*(Summary!$F$59:$F$141=Settings!$K23)) -> 176481.2 | J23: y | K23: Catering: Departmental activities
I24: =SUMPRODUCT(Summary!$I$59:$AU$141*(Summary!$F$59:$F$141=Settings!$K24)) -> 228421.704 | J24: y | K24: Communication (G&S) | T24: Name:
I25: =SUMPRODUCT(Summary!$I$59:$AU$141*(Summary!$F$59:$F$141=Settings!$K25)) -> 1157004.856 | J25: y | K25: Computer services
I26: =SUMPRODUCT(Summary!$I$59:$AU$141*(Summary!$F$59:$F$141=Settings!$K26)) -> 4492627.208 | J26: y | K26: Consultants: Business and advisory services | T26: Email:
I27: =SUMPRODUCT(Summary!$I$59:$AU$141*(Summary!$F$59:$F$141=Settings!$K27)) -> 2208 | J27: y | K27: Infrastructure and planning services
I28: =SUMPRODUCT(Summary!$I$59:$AU$141*(Summary!$F$59:$F$141=Settings!$K28)) -> 0 | J28: y | K28: Laboratory services | T28: Telephone number:
I29: =SUMPRODUCT(Summary!$I$59:$AU$141*(Summary!$F$59:$F$141=Settings!$K29)) -> 70679.192 | J29: y | K29: Legal services (G&S)
I30: =SUMPRODUCT(Summary!$I$59:$AU$141*(Summary!$F$59:$F$141=Settings!$K30)) -> 0 | J30: y | K30: Science and technological services | T30: Mobile (optional):
I31: =SUMPRODUCT(Summary!$I$59:$AU$141*(Summary!$F$59:$F$141=Settings!$K31)) -> 39800365.42 | J31: y | K31: Contractors
I32: =SUMPRODUCT(Summary!$I$59:$AU$141*(Summary!$F$59:$F$141=Settings!$K32)) -> 32166.936 | J32: y | K32: Agency and support/outsourced services
I33: =SUMPRODUCT(Summary!$I$59:$AU$141*(Summary!$F$59:$F$141=Settings!$K33)) -> 710.232 | J33: y | K33: Entertainment
I34: =SUMPRODUCT(Summary!$I$59:$AU$141*(Summary!$F$59:$F$141=Settings!$K34)) -> 24557.392 | J34: y | K34: Fleet services (including government motor transport)
J35: y | K35: Housing
J36: y | K36: Inventory: Clothing material and accessories
J37: y | K37: Inventory: Farming supplies
I38: =SUMPRODUCT(Summary!$I$59:$AU$141*(Summary!$F$59:$F$141=Settings!$K38)) -> 157.016 | J38: y | K38: Inventory: Food and food supplies
I39: =SUMPRODUCT(Summary!$I$59:$AU$141*(Summary!$F$59:$F$141=Settings!$K39)) -> 1425.96 | J39: y | K39: Inventory: Fuel, oil and gas
I40: =SUMPRODUCT(Summary!$I$59:$AU$141*(Summary!$F$59:$F$141=Settings!$K40)) -> 7075.768 | J40: y | K40: Inventory: Learner and teacher support material
I41: =SUMPRODUCT(Summary!$I$59:$AU$141*(Summary!$F$59:$F$141=Settings!$K41)) -> 9833710.088 | J41: y | K41: Inventory: Materials and supplies
I42: =SUMPRODUCT(Summary!$I$59:$AU$141*(Summary!$F$59:$F$141=Settings!$K42)) -> 16 | J42: y | K42: Inventory: Medical supplies
I43: =SUMPRODUCT(Summary!$I$59:$AU$141*(Summary!$F$59:$F$141=Settings!$K43)) -> 0 | J43: y | K43: Inventory: Medicine
I44: =SUMPRODUCT(Summary!$I$59:$AU$141*(Summary!$F$59:$F$141=Settings!$K44)) -> 0 | J44: y | K44: Medsas inventory interface
I45: =SUMPRODUCT(Summary!$I$59:$AU$141*(Summary!$F$59:$F$141=Settings!$K45)) -> 11899.76 | J45: y | K45: Inventory: Other supplies
I46: =SUMPRODUCT(Summary!$I$59:$AU$141*(Summary!$F$59:$F$141=Settings!$K46)) -> 54570.576 | J46: y | K46: Consumable supplies
I47: =SUMPRODUCT(Summary!$I$59:$AU$141*(Summary!$F$59:$F$141=Settings!$K47)) -> 308134.312 | J47: y | K47: Consumables: Stationery, printing and office supplies
I48: =SUMPRODUCT(Summary!$I$59:$AU$141*(Summary!$F$59:$F$141=Settings!$K48)) -> 55637.64 | J48: y | K48: Operating leases
I49: =SUMPRODUCT(Summary!$I$59:$AU$141*(Summary!$F$59:$F$141=Settings!$K49)) -> 642.248 | J49: y | K49: Rental and hiring
I50: =SUMPRODUCT(Summary!$I$59:$AU$141*(Summary!$F$59:$F$141=Settings!$K50)) -> 716602.96 | J50: y | K50: Property payments
I51: =SUMPRODUCT(Summary!$I$59:$AU$141*(Summary!$F$59:$F$141=Settings!$K51)) -> 3824.768 | J51: y | K51: Transport provided: Departmental activity
I52: =SUMPRODUCT(Summary!$I$59:$AU$141*(Summary!$F$59:$F$141=Settings!$K52)) -> 712186.088 | J52: y | K52: Travel and subsistence
I53: =SUMPRODUCT(Summary!$I$59:$AU$141*(Summary!$F$59:$F$141=Settings!$K53)) -> 78696.416 | J53: y | K53: Training and development
I54: =SUMPRODUCT(Summary!$I$59:$AU$141*(Summary!$F$59:$F$141=Settings!$K54)) -> 27637.112 | J54: y | K54: Operating payments
I55: =SUMPRODUCT(Summary!$I$59:$AU$141*(Summary!$F$59:$F$141=Settings!$K55)) -> 91972.064 | J55: y | K55: Venues and facilities
I56: =SUMPRODUCT(Summary!$I$59:$AU$141*(Summary!$F$59:$F$141=Settings!$K56)) -> 0 | J56: y | K56: Interest and rent on land
I57: =SUMPRODUCT(Summary!$I$59:$AU$141*(Summary!$F$59:$F$141=Settings!$K57)) -> 0 | J57: y | K57: Interest (Incl. interest on unitary payments (PPP))
I58: =SUMPRODUCT(Summary!$I$59:$AU$141*(Summary!$F$59:$F$141=Settings!$K58)) -> 0 | J58: y | K58: Rent on land
I59: =SUMPRODUCT(Summary!$I$59:$AU$141*(Summary!$F$59:$F$141=Settings!$K59)) -> 1169096293 | J59: y | K59: Transfers and subsidies
I60: =SUMPRODUCT(Summary!$I$59:$AU$141*(Summary!$F$59:$F$141=Settings!$K60)) -> 1159119620 | J60: y | K60: Provinces and municipalities
I61: =SUMPRODUCT(Summary!$I$59:$AU$141*(Summary!$F$59:$F$141=Settings!$K61)) -> 1896385 | J61: y | K61: Provinces
I62: =SUMPRODUCT(Summary!$I$59:$AU$141*(Summary!$F$59:$F$141=Settings!$K62)) -> 1896385 | J62: y | K62: Provincial Revenue Funds
I63: =SUMPRODUCT(Summary!$I$59:$AU$141*(Summary!$F$59:$F$141=Settings!$K63)) -> 0 | J63: y | K63: Provincial agencies and funds
I64: =SUMPRODUCT(Summary!$I$59:$AU$141*(Summary!$F$59:$F$141=Settings!$K64)) -> 1157223235 | J64: y | K64: Municipalities
I65: =SUMPRODUCT(Summary!$I$59:$AU$141*(Summary!$F$59:$F$141=Settings!$K65)) -> 1157223235 | J65: y | K65: Municipal bank accounts
I66: =SUMPRODUCT(Summary!$I$59:$AU$141*(Summary!$F$59:$F$141=Settings!$K66)) -> 0 | J66: y | K66: Municipal agencies and funds
I67: =SUMPRODUCT(Summary!$I$59:$AU$141*(Summary!$F$59:$F$141=Settings!$K67)) -> 8918040 | J67: y | K67: Departmental agencies and accounts
I68: =SUMPRODUCT(Summary!$I$59:$AU$141*(Summary!$F$59:$F$141=Settings!$K68)) -> 0 | J68: y | K68: Social security funds
I69: =SUMPRODUCT(Summary!$I$59:$AU$141*(Summary!$F$59:$F$141=Settings!$K69)) -> 8918040 | J69: y | K69: Departmental agencies (non-business entities)
I70: =SUMPRODUCT(Summary!$I$59:$AU$141*(Summary!$F$59:$F$141=Settings!$K70)) -> 0 | J70: y | K70: Higher education institutions
I71: =SUMPRODUCT(Summary!$I$59:$AU$141*(Summary!$F$59:$F$141=Settings!$K71)) -> 638 | J71: y | K71: Foreign governments and international organisations
I72: =SUMPRODUCT(Summary!$I$59:$AU$141*(Summary!$F$59:$F$141=Settings!$K72)) -> 0 | J72: y | K72: Public corporations and private enterprises
I73: =SUMPRODUCT(Summary!$I$59:$AU$141*(Summary!$F$59:$F$141=Settings!$K73)) -> 0 | J73: y | K73: Public corporations
I74: =SUMPRODUCT(Summary!$I$59:$AU$141*(Summary!$F$59:$F$141=Settings!$K74)) -> 0 | J74: y | K74: Subsidies on products and production (pc)
I75: =SUMPRODUCT(Summary!$I$59:$AU$141*(Summary!$F$59:$F$141=Settings!$K75)) -> 0 | J75: y | K75: Other transfers to public corporations
I76: =SUMPRODUCT(Summary!$I$59:$AU$141*(Summary!$F$59:$F$141=Settings!$K76)) -> 0 | J76: y | K76: Private enterprises
I77: =SUMPRODUCT(Summary!$I$59:$AU$141*(Summary!$F$59:$F$141=Settings!$K77)) -> 0 | J77: y | K77: Subsidies on products and production (pe)
I78: =SUMPRODUCT(Summary!$I$59:$AU$141*(Summary!$F$59:$F$141=Settings!$K78)) -> 0 | J78: y | K78: Other transfers to private enterprises
I79: =SUMPRODUCT(Summary!$I$59:$AU$141*(Summary!$F$59:$F$141=Settings!$K79)) -> 121801 | J79: y | K79: Non-profit institutions | R79: =IF(AND(J79<>"y",I79<>0),"Incorrectly hidden Row, revise settings", "") -> 
I80: =SUMPRODUCT(Summary!$I$59:$AU$141*(Summary!$F$59:$F$141=Settings!$K80)) -> 936194 | J80: y | K80: Households
I81: =SUMPRODUCT(Summary!$I$59:$AU$141*(Summary!$F$59:$F$141=Settings!$K81)) -> 936194 | J81: y | K81: Social benefits
I82: =SUMPRODUCT(Summary!$I$59:$AU$141*(Summary!$F$59:$F$141=Settings!$K82)) -> 0 | J82: y | K82: Other transfers to households
I83: =SUMPRODUCT(Summary!$I$59:$AU$141*(Summary!$F$59:$F$141=Settings!$K83)) -> 138698.432 | J83: y | K83: Payments for capital assets
I84: =SUMPRODUCT(Summary!$I$59:$AU$141*(Summary!$F$59:$F$141=Settings!$K84)) -> 0 | J84: y | K84: Buildings and other fixed structures
I85: =SUMPRODUCT(Summary!$I$59:$AU$141*(Summary!$F$59:$F$141=Settings!$K85)) -> 0 | J85: y | K85: Buildings
I86: =SUMPRODUCT(Summary!$I$59:$AU$141*(Summary!$F$59:$F$141=Settings!$K86)) -> 0 | J86: y | K86: Other fixed structures
I87: =SUMPRODUCT(Summary!$I$59:$AU$141*(Summary!$F$59:$F$141=Settings!$K87)) -> 138560.432 | J87: y | K87: Machinery and equipment
I88: =SUMPRODUCT(Summary!$I$59:$AU$141*(Summary!$F$59:$F$141=Settings!$K88)) -> 26112.32 | J88: y | K88: Transport equipment
I89: =SUMPRODUCT(Summary!$I$59:$AU$141*(Summary!$F$59:$F$141=Settings!$K89)) -> 112448.112 | J89: y | K89: Other machinery and equipment
I90: =SUMPRODUCT(Summary!$I$59:$AU$141*(Summary!$F$59:$F$141=Settings!$K90)) -> 138 | J90: y | K90: Heritage assets
I91: =SUMPRODUCT(Summary!$I$59:$AU$141*(Summary!$F$59:$F$141=Settings!$K91)) -> 0 | J91: y | K91: Specialised military assets
I92: =SUMPRODUCT(Summary!$I$59:$AU$141*(Summary!$F$59:$F$141=Settings!$K92)) -> 0 | J92: y | K92: Biological assets
I93: =SUMPRODUCT(Summary!$I$59:$AU$141*(Summary!$F$59:$F$141=Settings!$K93)) -> 0 | J93: y | K93: Land and sub-soil assets
I94: =SUMPRODUCT(Summary!$I$59:$AU$141*(Summary!$F$59:$F$141=Settings!$K94)) -> 0 | J94: y | K94: Software and other intangible assets
I95: =SUMPRODUCT(Summary!$I$59:$AU$141*(Summary!$F$59:$F$141=Settings!$K95)) -> 1121 | J95: y | K95: Payments for financial assets
R96: =COUNTBLANK(R13:R95) -> 83
C1313: View Selection: MTEC / ENE
C1314: View dependent on current process for which template is in use

Sheet Summary
A1: A | B1: B | C1: C | D1: D | E1: E | F1: F | G1: G | I1: H | J1: I | K1: J | L1: K | M1: L | N1: M | O1: N | P1: O | Q1: P | R1: Q | T1: R | U1: S | V1: T | W1: W | X1: X | AA1: Y | AB1: Z | AC1: AA | AD1: AB | AE1: AC | AF1: AF | AG1: AG | AJ1: AH | AK1: AI | AL1: AJ | AM1: AK | AN1: AL
A3: P's created | B3: =COUNTIF(B31:B45,"<>0") -> 6 | BK3: SheetList
A4: P's listed | B4: =COUNTIF(C31:C45,"<>0") -> 6 | BK4: 1
A5: P'Var | B5: =B4-B3 -> 0 | F5: =IF(G5="","",IF($B$5>0,"No. of programme units to create","No. of programme units to delete")) ->  | G5: =IF(B4-B3=0,"",IF(B4-B3<0,B3-B4,B4-B3)) ->  | BK5: 2
A6: Check | B6: =B4-MAX(B31:B45) -> 0 | F6: Vote no. | G6: =MyVoteNo -> 4 | BK6: 3
